Workbook

Sheet CAPA

Sheet ABC
E5: 1
E6: 2
E7: 321
E8: 312
C9: 1 | D9: 4
C10: 4
A11: 5 | B11: 3
B12: 34
B13: 54 | C13: 3
C14: 54 | D14: 3
C15: 43 | D15: 5
D16: 5
C17: 5 | D17: 43
C18: 5 | D18: 43
A19: 345 | B19: 43 | C19: 5 | D19: 35
A20: 5 | B20: 5
B21: 5 | C21: 4 | D21: 5
C22: 435
B23: 53 | C23: 34
B24: 5 | C24: 34
C25: 5 | D25: 53

Sheet DADOS
B2: DATA | D2: 2021-04-29
B4: CLIENTE | D4: PREFEITURA MUNICIPAL DE POUSO ALEGRE
B6: REVISÃO | D6: R01
B8: PROJETO | D8: AVENIDA SÃO FRANCISCO INTERLIGAÇÃO COM AVENIDA NOROESTE
B10: BDI TIPO 1 | D10: 0.2423
B12: BDI TIPO 2
B14: REFERÊNCIA 1 | D14: SINAPI
B16: DATA REF. 1 | D16: 2021-03-01
B18: REFERÊNCIA 2 | D18: SETOP
B20: DATA REF. 2 | D20: 2021-01-01

Sheet ORC
A2: 1000 | B2: a | C2: ADMINISTRAÇAÕ DE OBRA | P2: =SUMIF(A:A,B2,P:P) -> 0 | Q2: =SUMIF(A:A,B2,Q:Q) -> 0
B3: b
A4: =LEFT(B4,SEARCH(".",B4)-1) -> c | B4: c. | C4: =IF(K4="SINAPI",VLOOKUP(J4,SINAPI,2,0),IF(K4="SETOP",VLOOKUP(J4,SETOP,3,0),IF(K4="CPU",VLOOKUP(J4,COMPOSIÇÃO,2,0),IF(K4="COTAÇÃO",VLOOKUP(J4,COTAÇÃO,3,0),VLOOKUP(J4,DIVERSAS,2,0))))) ->  | L4: =IF(K4="SINAPI",VLOOKUP(J4,SINAPI,3,0),IF(K4="SETOP",VLOOKUP(J4,SETOP,4,0),IF(K4="CPU",VLOOKUP(J4,COMPOSIÇÃO,10,0),IF(K4="COTAÇÃO",VLOOKUP(J4,COTAÇÃO,12,0),VLOOKUP(J4,DIVERSAS,3,0))))) ->  | N4: =IF(K4="SINAPI",VLOOKUP(J4,SINAPI,4,0),IF(K4="SETOP",VLOOKUP(J4,SETOP,5,0),IF(K4="CPU",VLOOKUP(J4,COMPOSIÇÃO,13,0),IF(K4="COTAÇÃO",VLOOKUP(J4,COTAÇÃO,15,0),VLOOKUP(J4,DIVERSAS,4,0))))) ->  | O4: =ROUND(N4*(1+$D$14),2) ->  | P4: =ROUND(M4*N4,2) ->  | Q4: =ROUND(O4*M4,2) -> 
A5: =2000 -> 2000
B8: ="ORÇAMENTO COM MEMORIAL DE CÁLCULO - " &B10 -> ORÇAMENTO COM MEMORIAL DE CÁLCULO - AVENIDA SÃO FRANCISCO INTERLIGAÇÃO COM AVENIDA NOROESTE | P8: Revisão: | Q8: =DADOS!D6 -> R01 | R8: a
B9: Projeto: | F9: Cliente: | O9: Responsável:
B10: =DADOS!D8 -> AVENIDA SÃO FRANCISCO INTERLIGAÇÃO COM AVENIDA NOROESTE
B13: Data: | D13: =DADOS!D2 -> 2021-04-29 | O13: =DADOS!D14 -> SINAPI | P13: =DADOS!D16 -> 2021-03-01
B14: BDI | D14: =DADOS!D10 -> 0.2423 | O14: =DADOS!D18 -> SETOP | P14: =DADOS!D20 -> 2021-01-01
B15: ="PROJETO EXECUTIVO - "&B10 -> PROJETO EXECUTIVO - AVENIDA SÃO FRANCISCO INTERLIGAÇÃO COM AVENIDA NOROESTE
B17: ITEM | C17: DESCRIÇÃO | J17: ITEM | K17: REFERÊNCIA | L17: UNID. | M17: QUANT. | N17: PREÇO UNIT. | O17: PREÇO UNIT. COM BDI | P17: TOTAL | Q17: TOTAL COM BDI
A18: 1000 | B18: 1 | C18: ADMINISTRAÇAÕ DE OBRA | P18: =SUMIF(A:A,B18,P:P) -> 25743.12 | Q18: =SUMIF(A:A,B18,Q:Q) -> 31979.35
A19: =LEFT(B19) -> 1 | B19: 1.1 | C19: =IF(K19="SINAPI",VLOOKUP(J19,SINAPI,2,0),IF(K19="SETOP",VLOOKUP(J19,SETOP,3,0),IF(K19="CPU",VLOOKUP(J19,COMPOSIÇÃO,2,0),IF(K19="COTAÇÃO",VLOOKUP(J19,COTAÇÃO,3,0),VLOOKUP(J19,DIVERSAS,2,0))))) -> FORNECIMENTO E COLOCAÇÃO DE PLACAS DE OBRAS EM CHAPA GALVANIZADA (4,00 X 2,00 M ) SÃO CONFECCIONADAS EM CHAPA GALVANIZADA 26. AS CHAPAS SERÃO AFIXADAS COM REBITES 410 E PARAFUSOS 3/8, EM UMA ESTRUTURA METÁLICA COM VIGA U 2" ENRIJECIDA E METALON 20MMX20MM,334 | J19: ED-50154 | K19: SETOP | L19: =IF(K19="SINAPI",VLOOKUP(J19,SINAPI,3,0),IF(K19="SETOP",VLOOKUP(J19,SETOP,4,0),IF(K19="CPU",VLOOKUP(J19,COMPOSIÇÃO,10,0),IF(K19="COTAÇÃO",VLOOKUP(J19,COTAÇÃO,12,0),VLOOKUP(J19,DIVERSAS,3,0))))) -> U | M19: =E20 -> 1 | N19: =IF(K19="SINAPI",VLOOKUP(J19,SINAPI,4,0),IF(K19="SETOP",VLOOKUP(J19,SETOP,5,0),IF(K19="CPU",VLOOKUP(J19,COMPOSIÇÃO,13,0),IF(K19="COTAÇÃO",VLOOKUP(J19,COTAÇÃO,15,0),VLOOKUP(J19,DIVERSAS,4,0))))) -> 1627.62 | O19: =ROUND(N19*(1+$D$14),2) -> 2021.99 | P19: =ROUND(M19*N19,2) -> 1627.62 | Q19: =ROUND(O19*M19,2) -> 2021.99
A20: 2000 | C20: Quantidade | E20: 1 | F20: =L19 -> U
A21: =LEFT(B21) -> 1 | B21: 1.2 | C21: =IF(K21="SINAPI",VLOOKUP(J21,SINAPI,2,0),IF(K21="SETOP",VLOOKUP(J21,SETOP,3,0),IF(K21="CPU",VLOOKUP(J21,COMPOSIÇÃO,2,0),IF(K21="COTAÇÃO",VLOOKUP(J21,COTAÇÃO,3,0),VLOOKUP(J21,DIVERSAS,2,0))))) -> LOCAÇÃO DE CONTAINER COM ISOLAMENTO TÉRMICO, TIPO 3, PARA DEPÓSITO/FERRAMENTARIA DE OBRA, COM MEDIDAS REFERENCIAIS DE (6) METROS COMPRIMENTO, (2,3) METROS LARGURA E (2,5) METROS ALTURA ÚTIL INTERNA, INCLUSIVE LIGAÇÕES ELÉTRICAS INTERNAS, EXCLUSIVE MOBILIZAÇÃO/DESMOBILIZAÇÃO E LIGAÇÕES PROVISÓRIAS EXTERNAS | J21: ED-16350 | K21: SETOP | L21: =IF(K21="SINAPI",VLOOKUP(J21,SINAPI,3,0),IF(K21="SETOP",VLOOKUP(J21,SETOP,4,0),IF(K21="CPU",VLOOKUP(J21,COMPOSIÇÃO,10,0),IF(K21="COTAÇÃO",VLOOKUP(J21,COTAÇÃO,12,0),VLOOKUP(J21,DIVERSAS,3,0))))) -> MÊS | M21: =E24 -> 2 | N21: =IF(K21="SINAPI",VLOOKUP(J21,SINAPI,4,0),IF(K21="SETOP",VLOOKUP(J21,SETOP,5,0),IF(K21="CPU",VLOOKUP(J21,COMPOSIÇÃO,13,0),IF(K21="COTAÇÃO",VLOOKUP(J21,COTAÇÃO,15,0),VLOOKUP(J21,DIVERSAS,4,0))))) -> 613.3 | O21: =ROUND(N21*(1+$D$14),2) -> 761.9 | P21: =ROUND(M21*N21,2) -> 1226.6 | Q21: =ROUND(O21*M21,2) -> 1523.8
A22: 2000 | C22: Quantidade | E22: 1
A23: 2000 | C23: Meses | E23: 2
A24: 2000 | C24: TOTAL | E24: =E22*E23 -> 2 | F24: =L21 -> MÊS
A25: =LEFT(B25) -> 1 | B25: 1.3 | C25: =IF(K25="SINAPI",VLOOKUP(J25,SINAPI,2,0),IF(K25="SETOP",VLOOKUP(J25,SETOP,3,0),IF(K25="CPU",VLOOKUP(J25,COMPOSIÇÃO,2,0),IF(K25="COTAÇÃO",VLOOKUP(J25,COTAÇÃO,3,0),VLOOKUP(J25,DIVERSAS,2,0))))) -> MOBILIZAÇÃO E DESMOBILIZAÇÃO DE CONTAINER, INCLUSIVE INSTALAÇÃO E TRANSPORTE COM CAMINHÃO GUINDAUTO (MUNCK) | J25: ED-50137 | K25: SETOP | L25: =IF(K25="SINAPI",VLOOKUP(J25,SINAPI,3,0),IF(K25="SETOP",VLOOKUP(J25,SETOP,4,0),IF(K25="CPU",VLOOKUP(J25,COMPOSIÇÃO,10,0),IF(K25="COTAÇÃO",VLOOKUP(J25,COTAÇÃO,12,0),VLOOKUP(J25,DIVERSAS,3,0))))) -> UN | M25: =E26 -> 1 | N25: =IF(K25="SINAPI",VLOOKUP(J25,SINAPI,4,0),IF(K25="SETOP",VLOOKUP(J25,SETOP,5,0),IF(K25="CPU",VLOOKUP(J25,COMPOSIÇÃO,13,0),IF(K25="COTAÇÃO",VLOOKUP(J25,COTAÇÃO,15,0),VLOOKUP(J25,DIVERSAS,4,0))))) -> 680 | O25: =ROUND(N25*(1+$D$14),2) -> 844.76 | P25: =ROUND(M25*N25,2) -> 680 | Q25: =ROUND(O25*M25,2) -> 844.76
A26: 2000 | C26: Quantidade | E26: 1 | F26: =L25 -> UN
A27: 1 | B27: 1.4 | C27: =IF(K27="SINAPI",VLOOKUP(J27,SINAPI,2,0),IF(K27="SETOP",VLOOKUP(J27,SETOP,3,0),IF(K27="CPU",VLOOKUP(J27,COMPOSIÇÃO,2,0),IF(K27="COTAÇÃO",VLOOKUP(J27,COTAÇÃO,3,0),VLOOKUP(J27,DIVERSAS,2,0))))) -> BANHEIRO QUÍMICO 110 X 120 X 230 CM COM MANUTENÇÃO | J27: ED-50155 | K27: SETOP | L27: =IF(K27="SINAPI",VLOOKUP(J27,SINAPI,3,0),IF(K27="SETOP",VLOOKUP(J27,SETOP,4,0),IF(K27="CPU",VLOOKUP(J27,COMPOSIÇÃO,10,0),IF(K27="COTAÇÃO",VLOOKUP(J27,COTAÇÃO,12,0),VLOOKUP(J27,DIVERSAS,3,0))))) -> MÊS | M27: =E30 -> 4 | N27: =IF(K27="SINAPI",VLOOKUP(J27,SINAPI,4,0),IF(K27="SETOP",VLOOKUP(J27,SETOP,5,0),IF(K27="CPU",VLOOKUP(J27,COMPOSIÇÃO,13,0),IF(K27="COTAÇÃO",VLOOKUP(J27,COTAÇÃO,15,0),VLOOKUP(J27,DIVERSAS,4,0))))) -> 515 | O27: =ROUND(N27*(1+$D$14),2) -> 639.78 | P27: =ROUND(M27*N27,2) -> 2060 | Q27: =ROUND(O27*M27,2) -> 2559.12
A28: 2000 | C28: Quantidade | E28: 2
A29: 2000 | C29: Meses | E29: =E23 -> 2
A30: 2000 | C30: TOTAL | E30: =E28*E29 -> 4 | F30: =L27 -> MÊS
A31: 1 | B31: 1.5 | C31: =IF(K31="SINAPI",VLOOKUP(J31,SINAPI,2,0),IF(K31="SETOP",VLOOKUP(J31,SETOP,3,0),IF(K31="CPU",VLOOKUP(J31,COMPOSIÇÃO,2,0),IF(K31="COTAÇÃO",VLOOKUP(J31,COTAÇÃO,3,0),VLOOKUP(J31,DIVERSAS,2,0))))) -> LIGAÇÃO DE ÁGUA PROVISÓRIA PARA CANTEIRO, INCLUSIVE HIDRÔMETRO E CAVALETE PARA MEDIÇÃO DE ÁGUA - ENTRADA PRINCIPAL, EM AÇO GALVANIZADO DN 20MM (1/2") - PADRÃO CONCESSIONÁRIA | J31: ED-50150 | K31: SETOP | L31: =IF(K31="SINAPI",VLOOKUP(J31,SINAPI,3,0),IF(K31="SETOP",VLOOKUP(J31,SETOP,4,0),IF(K31="CPU",VLOOKUP(J31,COMPOSIÇÃO,10,0),IF(K31="COTAÇÃO",VLOOKUP(J31,COTAÇÃO,12,0),VLOOKUP(J31,DIVERSAS,3,0))))) -> UN | M31: =E32 -> 1 | N31: =IF(K31="SINAPI",VLOOKUP(J31,SINAPI,4,0),IF(K31="SETOP",VLOOKUP(J31,SETOP,5,0),IF(K31="CPU",VLOOKUP(J31,COMPOSIÇÃO,13,0),IF(K31="COTAÇÃO",VLOOKUP(J31,COTAÇÃO,15,0),VLOOKUP(J31,DIVERSAS,4,0))))) -> 313.81 | O31: =ROUND(N31*(1+$D$14),2) -> 389.85 | P31: =ROUND(M31*N31,2) -> 313.81 | Q31: =ROUND(O31*M31,2) -> 389.85
A32: 2000 | C32: Quantidade | E32: 1 | F32: =L31 -> UN
A33: 1 | B33: 1.6 | C33: =IF(K33="SINAPI",VLOOKUP(J33,SINAPI,2,0),IF(K33="SETOP",VLOOKUP(J33,SETOP,3,0),IF(K33="CPU",VLOOKUP(J33,COMPOSIÇÃO,2,0),IF(K33="COTAÇÃO",VLOOKUP(J33,COTAÇÃO,3,0),VLOOKUP(J33,DIVERSAS,2,0))))) -> LIGAÇÃO PROVISÓRIA DE LUZ E FORÇA-PADRÃO PROVISÓRIO 30KVA | J33: ED-50151 | K33: SETOP | L33: =IF(K33="SINAPI",VLOOKUP(J33,SINAPI,3,0),IF(K33="SETOP",VLOOKUP(J33,SETOP,4,0),IF(K33="CPU",VLOOKUP(J33,COMPOSIÇÃO,10,0),IF(K33="COTAÇÃO",VLOOKUP(J33,COTAÇÃO,12,0),VLOOKUP(J33,DIVERSAS,3,0))))) -> U | M33: =E34 -> 1 | N33: =IF(K33="SINAPI",VLOOKUP(J33,SINAPI,4,0),IF(K33="SETOP",VLOOKUP(J33,SETOP,5,0),IF(K33="CPU",VLOOKUP(J33,COMPOSIÇÃO,13,0),IF(K33="COTAÇÃO",VLOOKUP(J33,COTAÇÃO,15,0),VLOOKUP(J33,DIVERSAS,4,0))))) -> 526.57 | O33: =ROUND(N33*(1+$D$14),2) -> 654.16 | P33: =ROUND(M33*N33,2) -> 526.57 | Q33: =ROUND(O33*M33,2) -> 654.16
A34: 2000 | C34: Quantidade | E34: 1 | F34: =L33 -> U
A35: 1 | B35: 1.7 | C35: =IF(K35="SINAPI",VLOOKUP(J35,SINAPI,2,0),IF(K35="SETOP",VLOOKUP(J35,SETOP,3,0),IF(K35="CPU",VLOOKUP(J35,COMPOSIÇÃO,2,0),IF(K35="COTAÇÃO",VLOOKUP(J35,COTAÇÃO,3,0),VLOOKUP(J35,DIVERSAS,2,0))))) -> CONE DE SINALIZACAO EM PVC RIGIDO COM FAIXA REFLETIVA, H = 70 / 76 CM | J35: 13244 | K35: SINAPI | L35: =IF(K35="SINAPI",VLOOKUP(J35,SINAPI,3,0),IF(K35="SETOP",VLOOKUP(J35,SETOP,4,0),IF(K35="CPU",VLOOKUP(J35,COMPOSIÇÃO,10,0),IF(K35="COTAÇÃO",VLOOKUP(J35,COTAÇÃO,12,0),VLOOKUP(J35,DIVERSAS,3,0))))) -> UN | M35: =E36 -> 16 | N35: =IF(K35="SINAPI",VLOOKUP(J35,SINAPI,4,0),IF(K35="SETOP",VLOOKUP(J35,SETOP,5,0),IF(K35="CPU",VLOOKUP(J35,COMPOSIÇÃO,13,0),IF(K35="COTAÇÃO",VLOOKUP(J35,COTAÇÃO,15,0),VLOOKUP(J35,DIVERSAS,4,0))))) -> 49.15 | O35: =ROUND(N35*(1+$D$14),2) -> 61.06 | P35: =ROUND(M35*N35,2) -> 786.4 | Q35: =ROUND(O35*M35,2) -> 976.96
A36: 2000 | C36: Quantidade | E36: 16 | F36: U
A37: 1 | B37: 1.8 | C37: =IF(K37="SINAPI",VLOOKUP(J37,SINAPI,2,0),IF(K37="SETOP",VLOOKUP(J37,SETOP,3,0),IF(K37="CPU",VLOOKUP(J37,COMPOSIÇÃO,2,0),IF(K37="COTAÇÃO",VLOOKUP(J37,COTAÇÃO,3,0),VLOOKUP(J37,DIVERSAS,2,0))))) -> TELA PLASTICA LARANJA, TIPO TAPUME PARA SINALIZACAO, MALHA RETANGULAR, ROLO 1.20 X 50 M (L X C) | J37: 37524 | K37: SINAPI | L37: =IF(K37="SINAPI",VLOOKUP(J37,SINAPI,3,0),IF(K37="SETOP",VLOOKUP(J37,SETOP,4,0),IF(K37="CPU",VLOOKUP(J37,COMPOSIÇÃO,10,0),IF(K37="COTAÇÃO",VLOOKUP(J37,COTAÇÃO,12,0),VLOOKUP(J37,DIVERSAS,3,0))))) -> M | M37: =E41 -> 130 | N37: =IF(K37="SINAPI",VLOOKUP(J37,SINAPI,4,0),IF(K37="SETOP",VLOOKUP(J37,SETOP,5,0),IF(K37="CPU",VLOOKUP(J37,COMPOSIÇÃO,13,0),IF(K37="COTAÇÃO",VLOOKUP(J37,COTAÇÃO,15,0),VLOOKUP(J37,DIVERSAS,4,0))))) -> 2.01 | O37: =ROUND(N37*(1+$D$14),2) -> 2.5 | P37: =ROUND(M37*N37,2) -> 261.3 | Q37: =ROUND(O37*M37,2) -> 325
A38: 2000 | C38: Extensão da rede | E38: 130 | F38: M
A39: 2000 | C39: Lados | E39: 2
A40: 2000 | C40: Reaproveitamento | E40: 2 | F40: vezes
A41: 2000 | C41: TOTAL | E41: =E38*E39/E40 -> 130 | F41: =L37 -> M
A42: 1 | B42: 1.9 | C42: =IF(K42="SINAPI",VLOOKUP(J42,SINAPI,2,0),IF(K42="SETOP",VLOOKUP(J42,SETOP,3,0),IF(K42="CPU",VLOOKUP(J42,COMPOSIÇÃO,2,0),IF(K42="COTAÇÃO",VLOOKUP(J42,COTAÇÃO,3,0),VLOOKUP(J42,DIVERSAS,2,0))))) -> ACO CA-50, 10,0 MM, VERGALHAO | J42: 34 | K42: SINAPI | L42: =IF(K42="SINAPI",VLOOKUP(J42,SINAPI,3,0),IF(K42="SETOP",VLOOKUP(J42,SETOP,4,0),IF(K42="CPU",VLOOKUP(J42,COMPOSIÇÃO,10,0),IF(K42="COTAÇÃO",VLOOKUP(J42,COTAÇÃO,12,0),VLOOKUP(J42,DIVERSAS,3,0))))) -> KG | M42: =E48 -> 70.122 | N42: =IF(K42="SINAPI",VLOOKUP(J42,SINAPI,4,0),IF(K42="SETOP",VLOOKUP(J42,SETOP,5,0),IF(K42="CPU",VLOOKUP(J42,COMPOSIÇÃO,13,0),IF(K42="COTAÇÃO",VLOOKUP(J42,COTAÇÃO,15,0),VLOOKUP(J42,DIVERSAS,4,0))))) -> 9.74 | O42: =ROUND(N42*(1+$D$14),2) -> 12.1 | P42: =ROUND(M42*N42,2) -> 682.99 | Q42: =ROUND(O42*M42,2) -> 848.48
A43: 2000 | C43: Extensão de tela | E43: =E41 -> 130 | F43: M | G43: ="ITEM "&B37 -> ITEM 1.8
A44: 2000 | C44: Espassamento dos vergalhões | E44: 1.5
A45: 2000 | C45: Sub total (total de vergalhões) | E45: =ROUNDUP(E43/E44,0) -> 87 | F45: U
A46: 2000 | C46: Altura de cada vergalhão | E46: 1.3 | F46: M
A47: 2000 | C47: Peso do aço | E47: 0.62 | F47: KG/M
A48: 2000 | C48: TOTAL | E48: =(E45*E46)*E47 -> 70.122 | F48: KG
A49: =LEFT(B49) -> 1 | B49: 1.10 | C49: =IF(K49="SINAPI",VLOOKUP(J49,SINAPI,2,0),IF(K49="SETOP",VLOOKUP(J49,SETOP,3,0),IF(K49="CPU",VLOOKUP(J49,COMPOSIÇÃO,2,0),IF(K49="COTAÇÃO",VLOOKUP(J49,COTAÇÃO,3,0),VLOOKUP(J49,DIVERSAS,2,0))))) -> PROTETOR/PONTEIRA PLASTICA PARA PONTA DE VERGALHAO DE ATE 1", TIPO PROTETOR DE ESPERA | J49: 39015 | K49: SINAPI | L49: =IF(K49="SINAPI",VLOOKUP(J49,SINAPI,3,0),IF(K49="SETOP",VLOOKUP(J49,SETOP,4,0),IF(K49="CPU",VLOOKUP(J49,COMPOSIÇÃO,10,0),IF(K49="COTAÇÃO",VLOOKUP(J49,COTAÇÃO,12,0),VLOOKUP(J49,DIVERSAS,3,0))))) -> UN | M49: =E50 -> 87 | N49: =IF(K49="SINAPI",VLOOKUP(J49,SINAPI,4,0),IF(K49="SETOP",VLOOKUP(J49,SETOP,5,0),IF(K49="CPU",VLOOKUP(J49,COMPOSIÇÃO,13,0),IF(K49="COTAÇÃO",VLOOKUP(J49,COTAÇÃO,15,0),VLOOKUP(J49,DIVERSAS,4,0))))) -> 0.8 | O49: =ROUND(N49*(1+$D$14),2) -> 0.99 | P49: =ROUND(M49*N49,2) -> 69.6 | Q49: =ROUND(O49*M49,2) -> 86.13
A50: 2000 | C50: Quantidade de vergalhões | E50: =E45 -> 87 | F50: =L49 -> UN
A51: =LEFT(B51) -> 1 | B51: 1.11 | C51: =IF(K51="SINAPI",VLOOKUP(J51,SINAPI,2,0),IF(K51="SETOP",VLOOKUP(J51,SETOP,3,0),IF(K51="CPU",VLOOKUP(J51,COMPOSIÇÃO,2,0),IF(K51="COTAÇÃO",VLOOKUP(J51,COTAÇÃO,3,0),VLOOKUP(J51,DIVERSAS,2,0))))) -> INSTALAÇÃO DAS SINALIZAÇÕES DE SEGURANÇA | J51: DAC-1.1 | K51: CPU | L51: =IF(K51="SINAPI",VLOOKUP(J51,SINAPI,3,0),IF(K51="SETOP",VLOOKUP(J51,SETOP,4,0),IF(K51="CPU",VLOOKUP(J51,COMPOSIÇÃO,10,0),IF(K51="COTAÇÃO",VLOOKUP(J51,COTAÇÃO,12,0),VLOOKUP(J51,DIVERSAS,3,0))))) -> M | M51: =E52 -> 130 | N51: =IF(K51="SINAPI",VLOOKUP(J51,SINAPI,4,0),IF(K51="SETOP",VLOOKUP(J51,SETOP,5,0),IF(K51="CPU",VLOOKUP(J51,COMPOSIÇÃO,13,0),IF(K51="COTAÇÃO",VLOOKUP(J51,COTAÇÃO,15,0),VLOOKUP(J51,DIVERSAS,4,0))))) -> 1.571 | O51: =ROUND(N51*(1+$D$14),2) -> 1.95 | P51: =ROUND(M51*N51,2) -> 204.23 | Q51: =ROUND(O51*M51,2) -> 253.5
A52: =2000 -> 2000 | C52: Extensão da rede | E52: =E38 -> 130 | F52: M
A53: =LEFT(B53) -> 1 | B53: 1.12 | C53: =IF(K53="SINAPI",VLOOKUP(J53,SINAPI,2,0),IF(K53="SETOP",VLOOKUP(J53,SETOP,3,0),IF(K53="CPU",VLOOKUP(J53,COMPOSIÇÃO,2,0),IF(K53="COTAÇÃO",VLOOKUP(J53,COTAÇÃO,3,0),VLOOKUP(J53,DIVERSAS,2,0))))) -> VIGIA NOTURNO COM ENCARGOS COMPLEMENTARES | J53: 88326 | K53: SINAPI | L53: =IF(K53="SINAPI",VLOOKUP(J53,SINAPI,3,0),IF(K53="SETOP",VLOOKUP(J53,SETOP,4,0),IF(K53="CPU",VLOOKUP(J53,COMPOSIÇÃO,10,0),IF(K53="COTAÇÃO",VLOOKUP(J53,COTAÇÃO,12,0),VLOOKUP(J53,DIVERSAS,3,0))))) -> H | M53: =E57 -> 840 | N53: =IF(K53="SINAPI",VLOOKUP(J53,SINAPI,4,0),IF(K53="SETOP",VLOOKUP(J53,SETOP,5,0),IF(K53="CPU",VLOOKUP(J53,COMPOSIÇÃO,13,0),IF(K53="COTAÇÃO",VLOOKUP(J53,COTAÇÃO,15,0),VLOOKUP(J53,DIVERSAS,4,0))))) -> 20.6 | O53: =ROUND(N53*(1+$D$14),2) -> 25.59 | P53: =ROUND(M53*N53,2) -> 17304 | Q53: =ROUND(O53*M53,2) -> 21495.6
A54: =2000 -> 2000 | C54: Horas por dia | D54: HORAS | E54: 14
A55: =2000 -> 2000 | C55: Quantidade de dias no mês | E55: 30
A56: =2000 -> 2000 | C56: Quantidade de meses | E56: =E23 -> 2
A57: 2000 | C57: Total | E57: =E54*E55*E56 -> 840 | F57: =L53 -> H
A58: 1000 | B58: 2 | C58: SERVIÇOS PRELIMINARES | P58: =SUMIF(A:A,B58,P:P) -> 8967.22 | Q58: =SUMIF(A:A,B58,Q:Q) -> 11139.94
A59: =LEFT(B59) -> 2 | B59: 2.1 | C59: =IF(K59="SINAPI",VLOOKUP(J59,SINAPI,2,0),IF(K59="SETOP",VLOOKUP(J59,SETOP,3,0),IF(K59="CPU",VLOOKUP(J59,COMPOSIÇÃO,2,0),IF(K59="COTAÇÃO",VLOOKUP(J59,COTAÇÃO,3,0),VLOOKUP(J59,DIVERSAS,2,0))))) -> LOCAÇÃO TOPOGRÁFICA ACIMA DE 50 PONTOS | J59: ED-50276 | K59: SETOP | L59: =IF(K59="SINAPI",VLOOKUP(J59,SINAPI,3,0),IF(K59="SETOP",VLOOKUP(J59,SETOP,4,0),IF(K59="CPU",VLOOKUP(J59,COMPOSIÇÃO,10,0),IF(K59="COTAÇÃO",VLOOKUP(J59,COTAÇÃO,12,0),VLOOKUP(J59,DIVERSAS,3,0))))) -> U | M59: =E63 -> 22 | N59: =IF(K59="SINAPI",VLOOKUP(J59,SINAPI,4,0),IF(K59="SETOP",VLOOKUP(J59,SETOP,5,0),IF(K59="CPU",VLOOKUP(J59,COMPOSIÇÃO,13,0),IF(K59="COTAÇÃO",VLOOKUP(J59,COTAÇÃO,15,0),VLOOKUP(J59,DIVERSAS,4,0))))) -> 74 | O59: =ROUND(N59*(1+$D$14),2) -> 91.93 | P59: =ROUND(M59*N59,2) -> 1628 | Q59: =ROUND(O59*M59,2) -> 2022.46
A60: 2000 | C60: Quantidade de PV's | E60: 7 | F60: U
A61: 2000 | C61: Quantidade de muro de ala | E61: 1 | F61: U
A62: 2000 | C62: Quantidade de bocas de lobo | E62: 14 | F62: U
A63: 2000 | C63: TOTAL | E63: =SUM(E60:E62) -> 22 | F63: =L59 -> U
A64: =LEFT(B64) -> 2 | B64: 2.2 | C64: =IF(K64="SINAPI",VLOOKUP(J64,SINAPI,2,0),IF(K64="SETOP",VLOOKUP(J64,SETOP,3,0),IF(K64="CPU",VLOOKUP(J64,COMPOSIÇÃO,2,0),IF(K64="COTAÇÃO",VLOOKUP(J64,COTAÇÃO,3,0),VLOOKUP(J64,DIVERSAS,2,0))))) -> SERVIÇOS PRELIMINARES PARA LOCAÇÃO PELO MÉTODO DAS CRUZETAS | J64: DAC-2.1 | K64: CPU | L64: =IF(K64="SINAPI",VLOOKUP(J64,SINAPI,3,0),IF(K64="SETOP",VLOOKUP(J64,SETOP,4,0),IF(K64="CPU",VLOOKUP(J64,COMPOSIÇÃO,10,0),IF(K64="COTAÇÃO",VLOOKUP(J64,COTAÇÃO,12,0),VLOOKUP(J64,DIVERSAS,3,0))))) -> U | M64: =E67 -> 8 | N64: =IF(K64="SINAPI",VLOOKUP(J64,SINAPI,4,0),IF(K64="SETOP",VLOOKUP(J64,SETOP,5,0),IF(K64="CPU",VLOOKUP(J64,COMPOSIÇÃO,13,0),IF(K64="COTAÇÃO",VLOOKUP(J64,COTAÇÃO,15,0),VLOOKUP(J64,DIVERSAS,4,0))))) -> 376.09 | O64: =ROUND(N64*(1+$D$14),2) -> 467.22 | P64: =ROUND(M64*N64,2) -> 3008.72 | Q64: =ROUND(O64*M64,2) -> 3737.76
A65: 2000 | C65: Quantidade de PV's | E65: =E60 -> 7 | F65: U
A66: 2000 | C66: Quantidade de muro de ala | E66: =E61 -> 1 | F66: U
A67: 2000 | C67: TOTAL | E67: =SUM(E65:E66) -> 8 | F67: =L64 -> U
A68: =LEFT(B68) -> 2 | B68: 2.3 | C68: =IF(K68="SINAPI",VLOOKUP(J68,SINAPI,2,0),IF(K68="SETOP",VLOOKUP(J68,SETOP,3,0),IF(K68="CPU",VLOOKUP(J68,COMPOSIÇÃO,2,0),IF(K68="COTAÇÃO",VLOOKUP(J68,COTAÇÃO,3,0),VLOOKUP(J68,DIVERSAS,2,0))))) -> EXECUÇÃO DA LOCAÇÃO PELO MÉTODO DA CRUZETA | J68: DAC-2.2 | K68: CPU | L68: =IF(K68="SINAPI",VLOOKUP(J68,SINAPI,3,0),IF(K68="SETOP",VLOOKUP(J68,SETOP,4,0),IF(K68="CPU",VLOOKUP(J68,COMPOSIÇÃO,10,0),IF(K68="COTAÇÃO",VLOOKUP(J68,COTAÇÃO,12,0),VLOOKUP(J68,DIVERSAS,3,0))))) -> M | M68: =E69 -> 130 | N68: =IF(K68="SINAPI",VLOOKUP(J68,SINAPI,4,0),IF(K68="SETOP",VLOOKUP(J68,SETOP,5,0),IF(K68="CPU",VLOOKUP(J68,COMPOSIÇÃO,13,0),IF(K68="COTAÇÃO",VLOOKUP(J68,COTAÇÃO,15,0),VLOOKUP(J68,DIVERSAS,4,0))))) -> 9.45 | O68: =ROUND(N68*(1+$D$14),2) -> 11.74 | P68: =ROUND(M68*N68,2) -> 1228.5 | Q68: =ROUND(O68*M68,2) -> 1526.2
A69: 2000 | C69: Extensão da rede | E69: =E38 -> 130 | F69: =L68 -> M
A70: =LEFT(B70,SEARCH(".",B70)-1) -> 2 | B70: 2.4 | C70: =IF(K70="SINAPI",VLOOKUP(J70,SINAPI,2,0),IF(K70="SETOP",VLOOKUP(J70,SETOP,3,0),IF(K70="CPU",VLOOKUP(J70,COMPOSIÇÃO,2,0),IF(K70="COTAÇÃO",VLOOKUP(J70,COTAÇÃO,3,0),VLOOKUP(J70,DIVERSAS,2,0))))) -> TOPOGRAFO COM ENCARGOS COMPLEMENTARES | J70: 90781 | K70: SINAPI | L70: =IF(K70="SINAPI",VLOOKUP(J70,SINAPI,3,0),IF(K70="SETOP",VLOOKUP(J70,SETOP,4,0),IF(K70="CPU",VLOOKUP(J70,COMPOSIÇÃO,10,0),IF(K70="COTAÇÃO",VLOOKUP(J70,COTAÇÃO,12,0),VLOOKUP(J70,DIVERSAS,3,0))))) -> H | M70: =E74 -> 88 | N70: =IF(K70="SINAPI",VLOOKUP(J70,SINAPI,4,0),IF(K70="SETOP",VLOOKUP(J70,SETOP,5,0),IF(K70="CPU",VLOOKUP(J70,COMPOSIÇÃO,13,0),IF(K70="COTAÇÃO",VLOOKUP(J70,COTAÇÃO,15,0),VLOOKUP(J70,DIVERSAS,4,0))))) -> 35.25 | O70: =ROUND(N70*(1+$D$14),2) -> 43.79 | P70: =ROUND(M70*N70,2) -> 3102 | Q70: =ROUND(O70*M70,2) -> 3853.52
A71: =2000 -> 2000 | C71: Horas por dia | D71: HORAS | E71: 2
A72: 2000 | C72: Quantidade de dias no mês | E72: 22
A73: =2000 -> 2000 | C73: Quantidade de meses | E73: 2
A74: 2000 | C74: Total | E74: =E71*E72*E73 -> 88 | F74: =L70 -> H
A75: 1000 | B75: 3 | C75: MOVIMENTAÇÃO DE TERRA | P75: =SUMIF(A:A,B75,P:P) -> 74255.92 | Q75: =SUMIF(A:A,B75,Q:Q) -> 92237.03
B76: 3.1 | C76: REMOÇÃO DO PAVIMENTO
A77: =LEFT(B77) -> 3 | B77: 3.1.1 | C77: =IF(K77="SINAPI",VLOOKUP(J77,SINAPI,2,0),IF(K77="SETOP",VLOOKUP(J77,SETOP,3,0),IF(K77="CPU",VLOOKUP(J77,COMPOSIÇÃO,2,0),IF(K77="COTAÇÃO",VLOOKUP(J77,COTAÇÃO,3,0),VLOOKUP(J77,DIVERSAS,2,0))))) -> LIMPEZA MECANIZADA DE CAMADA VEGETAL, VEGETAÇÃO E PEQUENAS ÁRVORES (DIÂMETRO DE TRONCO MENOR QUE 0,20 M), COM TRATOR DE ESTEIRAS.AF_05/2018 | J77: 98525 | K77: SINAPI | L77: =IF(K77="SINAPI",VLOOKUP(J77,SINAPI,3,0),IF(K77="SETOP",VLOOKUP(J77,SETOP,4,0),IF(K77="CPU",VLOOKUP(J77,COMPOSIÇÃO,10,0),IF(K77="COTAÇÃO",VLOOKUP(J77,COTAÇÃO,12,0),VLOOKUP(J77,DIVERSAS,3,0))))) -> M2 | M77: =E78 -> 2309.86 | N77: =IF(K77="SINAPI",VLOOKUP(J77,SINAPI,4,0),IF(K77="SETOP",VLOOKUP(J77,SETOP,5,0),IF(K77="CPU",VLOOKUP(J77,COMPOSIÇÃO,13,0),IF(K77="COTAÇÃO",VLOOKUP(J77,COTAÇÃO,15,0),VLOOKUP(J77,DIVERSAS,4,0))))) -> 0.3 | O77: =ROUND(N77*(1+$D$14),2) -> 0.37 | P77: =ROUND(M77*N77,2) -> 692.96 | Q77: =ROUND(O77*M77,2) -> 854.65
A78: 2000 | C78: Área de limpeza vegetal | E78: 2309.86 | F78: M2
A79: =LEFT(B79) -> 3 | B79: 3.1.2 | C79: =IF(K79="SINAPI",VLOOKUP(J79,SINAPI,2,0),IF(K79="SETOP",VLOOKUP(J79,SETOP,3,0),IF(K79="CPU",VLOOKUP(J79,COMPOSIÇÃO,2,0),IF(K79="COTAÇÃO",VLOOKUP(J79,COTAÇÃO,3,0),VLOOKUP(J79,DIVERSAS,2,0))))) -> REMOÇÃO E CARGA DE TODO PAVIMENTO EXISTENTE | J79: RO-41211 | K79: SETOP | L79: =IF(K79="SINAPI",VLOOKUP(J79,SINAPI,3,0),IF(K79="SETOP",VLOOKUP(J79,SETOP,4,0),IF(K79="CPU",VLOOKUP(J79,COMPOSIÇÃO,10,0),IF(K79="COTAÇÃO",VLOOKUP(J79,COTAÇÃO,12,0),VLOOKUP(J79,DIVERSAS,3,0))))) -> M3 | M79: =E84 -> 15.002 | N79: =IF(K79="SINAPI",VLOOKUP(J79,SINAPI,4,0),IF(K79="SETOP",VLOOKUP(J79,SETOP,5,0),IF(K79="CPU",VLOOKUP(J79,COMPOSIÇÃO,13,0),IF(K79="COTAÇÃO",VLOOKUP(J79,COTAÇÃO,15,0),VLOOKUP(J79,DIVERSAS,4,0))))) -> 6.44 | O79: =ROUND(N79*(1+$D$14),2) -> 8 | P79: =ROUND(M79*N79,2) -> 96.61 | Q79: =ROUND(O79*M79,2) -> 120.02
A80: 2000 | C80: Pavimento em asfalto | E80: 346.25 | F80: M2 | G80: Projeto de demolição
A81: =2000 -> 2000 | C81: Área de demolição do asfalto para execução do sarjetão | E81: =13.05+15.75 -> 28.8 | F81: M2 | G81: Projeto de demolição
A82: =2000 -> 2000 | C82: Subtotal(área de pavimento) | E82: =E80+E81 -> 375.05 | F82: M2
A83: 2000 | C83: Altura | E83: 0.04 | F83: M
A84: 2000 | C84: TOTAL | E84: =E82*E83 -> 15.002 | F84: M3
A85: =LEFT(B85) -> 3 | B85: 3.1.3 | C85: =IF(K85="SINAPI",VLOOKUP(J85,SINAPI,2,0),IF(K85="SETOP",VLOOKUP(J85,SETOP,3,0),IF(K85="CPU",VLOOKUP(J85,COMPOSIÇÃO,2,0),IF(K85="COTAÇÃO",VLOOKUP(J85,COTAÇÃO,3,0),VLOOKUP(J85,DIVERSAS,2,0))))) -> REMOÇÃO DE BLOCOS SEXTAVADOS (BLOQUETES) | J85: RO-42387 | K85: SETOP | L85: =IF(K85="SINAPI",VLOOKUP(J85,SINAPI,3,0),IF(K85="SETOP",VLOOKUP(J85,SETOP,4,0),IF(K85="CPU",VLOOKUP(J85,COMPOSIÇÃO,10,0),IF(K85="COTAÇÃO",VLOOKUP(J85,COTAÇÃO,12,0),VLOOKUP(J85,DIVERSAS,3,0))))) -> M2 | M85: =E86 -> 19.2 | N85: =IF(K85="SINAPI",VLOOKUP(J85,SINAPI,4,0),IF(K85="SETOP",VLOOKUP(J85,SETOP,5,0),IF(K85="CPU",VLOOKUP(J85,COMPOSIÇÃO,13,0),IF(K85="COTAÇÃO",VLOOKUP(J85,COTAÇÃO,15,0),VLOOKUP(J85,DIVERSAS,4,0))))) -> 9.55 | O85: =ROUND(N85*(1+$D$14),2) -> 11.86 | P85: =ROUND(M85*N85,2) -> 183.36 | Q85: =ROUND(O85*M85,2) -> 227.71
A86: =2000 -> 2000 | C86: Área de bloquete a ser demolido para execução do sarjetão | E86: 19.2 | F86: M2 | G86: Projeto de demolição
A87: =LEFT(B87) -> 3 | B87: 3.1.4 | C87: =IF(K87="SINAPI",VLOOKUP(J87,SINAPI,2,0),IF(K87="SETOP",VLOOKUP(J87,SETOP,3,0),IF(K87="CPU",VLOOKUP(J87,COMPOSIÇÃO,2,0),IF(K87="COTAÇÃO",VLOOKUP(J87,COTAÇÃO,3,0),VLOOKUP(J87,DIVERSAS,2,0))))) -> REMOÇÃO E CARGA DA CAMADA DE MATERIAL GRANULAR DO PAVIMENTO (BASE E/OU SUB-BASE) | J87: RO-41773 | K87: SETOP | L87: =IF(K87="SINAPI",VLOOKUP(J87,SINAPI,3,0),IF(K87="SETOP",VLOOKUP(J87,SETOP,4,0),IF(K87="CPU",VLOOKUP(J87,COMPOSIÇÃO,10,0),IF(K87="COTAÇÃO",VLOOKUP(J87,COTAÇÃO,12,0),VLOOKUP(J87,DIVERSAS,3,0))))) -> M3 | M87: =E97 -> 78.09 | N87: =IF(K87="SINAPI",VLOOKUP(J87,SINAPI,4,0),IF(K87="SETOP",VLOOKUP(J87,SETOP,5,0),IF(K87="CPU",VLOOKUP(J87,COMPOSIÇÃO,13,0),IF(K87="COTAÇÃO",VLOOKUP(J87,COTAÇÃO,15,0),VLOOKUP(J87,DIVERSAS,4,0))))) -> 6.05 | O87: =ROUND(N87*(1+$D$14),2) -> 7.52 | P87: =ROUND(M87*N87,2) -> 472.44 | Q87: =ROUND(O87*M87,2) -> 587.24
A88: 2000 | C88: Pavimento em asfalto | E88: =E80 -> 346.25 | F88: M2 | G88: Projeto de demolição
A89: 2000 | C89: Altura | E89: 0.2 | F89: M
A90: 2000 | C90: Sub total (volume do pavimento em asfalto) | E90: =E88*E89 -> 69.25 | F90: M3
A91: 2000 | C91: Área de demolição do asfalto para execução do sarjetão | E91: =E81 -> 28.8 | F91: M2 | G91: Projeto de demolição
A92: 2000 | C92: Altura | E92: 0.2 | F92: M
A93: 2000 | C93: Sub total (volume do pavimento em asfalto) | E93: =E91*E92 -> 5.76 | F93: M3
A94: 2000 | C94: Área de bloquete a ser demolido para execução do sarjetão | E94: =E86 -> 19.2 | F94: M2 | G94: Projeto de demolição
A95: 2000 | C95: Altura | E95: 0.16 | F95: M
A96: 2000 | C96: Sub total (volume do pavimento embloquete) | E96: =E94*E95 -> 3.072 | F96: M3
A97: 2000 | C97: TOTAL | E97: =ROUNDUP(E90+E93+E96,2) -> 78.09 | F97: =L87 -> M3
A98: =LEFT(B98) -> 3 | B98: 3.1.5 | C98: =IF(K98="SINAPI",VLOOKUP(J98,SINAPI,2,0),IF(K98="SETOP",VLOOKUP(J98,SETOP,3,0),IF(K98="CPU",VLOOKUP(J98,COMPOSIÇÃO,2,0),IF(K98="COTAÇÃO",VLOOKUP(J98,COTAÇÃO,3,0),VLOOKUP(J98,DIVERSAS,2,0))))) -> ESCAVAÇÃO, CARGA, DESCARGA, ESPALHAMENTO E TRANSPORTE DE MATERIAL DE 1ª CATEGORIA, COM CAMINHÃO. DISTÂNCIA MÉDIA DE TRANSPORTE <= 200 M | J98: RO-40148 | K98: SETOP | L98: =IF(K98="SINAPI",VLOOKUP(J98,SINAPI,3,0),IF(K98="SETOP",VLOOKUP(J98,SETOP,4,0),IF(K98="CPU",VLOOKUP(J98,COMPOSIÇÃO,10,0),IF(K98="COTAÇÃO",VLOOKUP(J98,COTAÇÃO,12,0),VLOOKUP(J98,DIVERSAS,3,0))))) -> M3 | M98: =E101 -> 234.68 | N98: =IF(K98="SINAPI",VLOOKUP(J98,SINAPI,4,0),IF(K98="SETOP",VLOOKUP(J98,SETOP,5,0),IF(K98="CPU",VLOOKUP(J98,COMPOSIÇÃO,13,0),IF(K98="COTAÇÃO",VLOOKUP(J98,COTAÇÃO,15,0),VLOOKUP(J98,DIVERSAS,4,0))))) -> 3.22 | O98: =ROUND(N98*(1+$D$14),2) -> 4 | P98: =ROUND(M98*N98,2) -> 755.67 | Q98: =ROUND(O98*M98,2) -> 938.72
A99: 2000 | D99: Área que receberá rachão | E99: 469.36 | F99: M2
A100: 2000 | D100: Espessura | E100: 0.5 | F100: M
A101: 2000 | C101: TOTAL | E101: =E99*E100 -> 234.68 | F101: M3
A102: =LEFT(B102) -> 3 | B102: 3.1.6 | C102: =IF(K102="SINAPI",VLOOKUP(J102,SINAPI,2,0),IF(K102="SETOP",VLOOKUP(J102,SETOP,3,0),IF(K102="CPU",VLOOKUP(J102,COMPOSIÇÃO,2,0),IF(K102="COTAÇÃO",VLOOKUP(J102,COTAÇÃO,3,0),VLOOKUP(J102,DIVERSAS,2,0))))) -> DEMOLIÇÃO DE SARJETA OU SARJETÃO DE CONCRETO | J102: ED-48507 | K102: SETOP | L102: =IF(K102="SINAPI",VLOOKUP(J102,SINAPI,3,0),IF(K102="SETOP",VLOOKUP(J102,SETOP,4,0),IF(K102="CPU",VLOOKUP(J102,COMPOSIÇÃO,10,0),IF(K102="COTAÇÃO",VLOOKUP(J102,COTAÇÃO,12,0),VLOOKUP(J102,DIVERSAS,3,0))))) -> M2 | M102: =E105 -> 22.85 | N102: =IF(K102="SINAPI",VLOOKUP(J102,SINAPI,4,0),IF(K102="SETOP",VLOOKUP(J102,SETOP,5,0),IF(K102="CPU",VLOOKUP(J102,COMPOSIÇÃO,13,0),IF(K102="COTAÇÃO",VLOOKUP(J102,COTAÇÃO,15,0),VLOOKUP(J102,DIVERSAS,4,0))))) -> 12.85 | O102: =ROUND(N102*(1+$D$14),2) -> 15.96 | P102: =ROUND(M102*N102,2) -> 293.62 | Q102: =ROUND(O102*M102,2) -> 364.69
A103: =2000 -> 2000 | C103: Comprimento total da sarjeta | E103: 45.7 | F103: M
A104: =2000 -> 2000 | C104: Largura | E104: 0.5 | F104: M
A105: =2000 -> 2000 | C105: TOTAL | E105: =E103*E104 -> 22.85 | F105: =L102 -> M2
A106: =LEFT(B106) -> 3 | B106: 3.1.7 | C106: =IF(K106="SINAPI",VLOOKUP(J106,SINAPI,2,0),IF(K106="SETOP",VLOOKUP(J106,SETOP,3,0),IF(K106="CPU",VLOOKUP(J106,COMPOSIÇÃO,2,0),IF(K106="COTAÇÃO",VLOOKUP(J106,COTAÇÃO,3,0),VLOOKUP(J106,DIVERSAS,2,0))))) -> CORTE RASO E RECORTE DE ÁRVORE COM DIÂMETRO DE TRONCO MAIOR OU IGUAL A 0,20 M E MENOR QUE 0,40 M.AF_05/2018 | J106: 98529 | K106: SINAPI | L106: =IF(K106="SINAPI",VLOOKUP(J106,SINAPI,3,0),IF(K106="SETOP",VLOOKUP(J106,SETOP,4,0),IF(K106="CPU",VLOOKUP(J106,COMPOSIÇÃO,10,0),IF(K106="COTAÇÃO",VLOOKUP(J106,COTAÇÃO,12,0),VLOOKUP(J106,DIVERSAS,3,0))))) -> UN | M106: =E109 -> 142 | N106: =IF(K106="SINAPI",VLOOKUP(J106,SINAPI,4,0),IF(K106="SETOP",VLOOKUP(J106,SETOP,5,0),IF(K106="CPU",VLOOKUP(J106,COMPOSIÇÃO,13,0),IF(K106="COTAÇÃO",VLOOKUP(J106,COTAÇÃO,15,0),VLOOKUP(J106,DIVERSAS,4,0))))) -> 57.17 | O106: =ROUND(N106*(1+$D$14),2) -> 71.02 | P106: =ROUND(M106*N106,2) -> 8118.14 | Q106: =ROUND(O106*M106,2) -> 10084.84
A107: 2000 | D107: Área da caçimba | E107: 564.1 | F107: M2
A108: 2000 | D108: 1 árvore a cada | E108: 4 | F108: M2
A109: 2000 | C109: Quantidade estimada de arvores | E109: =ROUNDUP(E107/E108,0) -> 142 | F109: U
A110: =LEFT(B110) -> 3 | B110: 3.1.8 | C110: =IF(K110="SINAPI",VLOOKUP(J110,SINAPI,2,0),IF(K110="SETOP",VLOOKUP(J110,SETOP,3,0),IF(K110="CPU",VLOOKUP(J110,COMPOSIÇÃO,2,0),IF(K110="COTAÇÃO",VLOOKUP(J110,COTAÇÃO,3,0),VLOOKUP(J110,DIVERSAS,2,0))))) -> CARGA, MANOBRA E DESCARGA DE SOLOS E MATERIAIS GRANULARES EM CAMINHÃO BASCULANTE 10 M³ - CARGA COM ESCAVADEIRA HIDRÁULICA (CAÇAMBA DE 1,20 M³ / 155 HP) E DESCARGA LIVRE (UNIDADE: M3). AF_07/2020 | J110: 100978 | K110: SINAPI | L110: =IF(K110="SINAPI",VLOOKUP(J110,SINAPI,3,0),IF(K110="SETOP",VLOOKUP(J110,SETOP,4,0),IF(K110="CPU",VLOOKUP(J110,COMPOSIÇÃO,10,0),IF(K110="COTAÇÃO",VLOOKUP(J110,COTAÇÃO,12,0),VLOOKUP(J110,DIVERSAS,3,0))))) -> M3 | M110: =E128 -> 918.9128 | N110: =IF(K110="SINAPI",VLOOKUP(J110,SINAPI,4,0),IF(K110="SETOP",VLOOKUP(J110,SETOP,5,0),IF(K110="CPU",VLOOKUP(J110,COMPOSIÇÃO,13,0),IF(K110="COTAÇÃO",VLOOKUP(J110,COTAÇÃO,15,0),VLOOKUP(J110,DIVERSAS,4,0))))) -> 4.58 | O110: =ROUND(N110*(1+$D$14),2) -> 5.69 | P110: =ROUND(M110*N110,2) -> 4208.62 | Q110: =ROUND(O110*M110,2) -> 5228.61
A111: 2000 | D111: Quantidade de arvores | E111: =E109 -> 142 | F111: U | G111: ="ITEM "&B106 -> ITEM 3.1.7
A112: 2000 | D112: volume estimado | E112: 1 | F112: M3
A113: 2000 | D113: subtotal(volume de árvoes) | E113: =E111*E112 -> 142 | F113: M3
A114: 2000 | D114: área de limpeza da camada vegetal | E114: =E78 -> 2309.86 | F114: M2 | G114: ="ITEM "&B77 -> ITEM 3.1.1
A115: 2000 | D115: Altura estimada | E115: 0.1 | F115: M
A116: 2000 | D116: subtotal(volume de camada vegetal) | E116: =E114*E115 -> 230.986 | F116: M3
A117: 2000 | D117: Área do pavimento em bloquete | E117: =E86 -> 19.2 | F117: M2 | G117: ="ITEM "&B85 -> ITEM 3.1.3
A118: 2000 | D118: Altura estimada | E118: 0.08 | F118: M
A119: 2000 | D119: subtotal(volume de bloquete) | E119: =E117*E118 -> 1.536 | F119: M3
A120: =2000 -> 2000 | C120: Área de sarjeta | E120: =E105 -> 22.85 | F120: M2 | G120: ="ITEM "&B102 -> ITEM 3.1.6
A121: =2000 -> 2000 | C121: Altura | E121: 0.2 | F121: M
A122: =2000 -> 2000 | D122: sub total(volume de sarjeta) | E122: =E121*E120 -> 4.57 | F122: M3
A123: 2000 | D123: Volume do pavimento em asfalto | E123: =E84 -> 15.002 | F123: M3 | G123: ="ITEM "&B79 -> ITEM 3.1.2
A124: 2000 | D124: Volume escavado para rachão | E124: =E101 -> 234.68 | F124: M3 | G124: ="ITEM "&B98 -> ITEM 3.1.5
A125: 2000 | D125: Volume da camada granular | E125: =(E96+E93+E90) -> 78.082 | F125: M3 | G125: ="ITEM "&B87 -> ITEM 3.1.4
A126: 2000 | D126: Volume total de material demolido | E126: =E123+E125+E122+E119+E116+E113+E124 -> 706.856 | F126: M3
A127: =2000 -> 2000 | C127: Empolamento 30% | E127: 1.3
A128: =2000 -> 2000 | C128: TOTAL | E128: =E126*E127 -> 918.9128 | F128: =L110 -> M3
A129: =LEFT(B129) -> 3 | B129: 3.1.9 | C129: =IF(K129="SINAPI",VLOOKUP(J129,SINAPI,2,0),IF(K129="SETOP",VLOOKUP(J129,SETOP,3,0),IF(K129="CPU",VLOOKUP(J129,COMPOSIÇÃO,2,0),IF(K129="COTAÇÃO",VLOOKUP(J129,COTAÇÃO,3,0),VLOOKUP(J129,DIVERSAS,2,0))))) -> TRANSPORTE COM CAMINHÃO BASCULANTE DE 10 M³, EM VIA URBANA PAVIMENTADA, DMT ATÉ 30 KM (UNIDADE: M3XKM). AF_07/2020 | J129: 95875 | K129: SINAPI | L129: =IF(K129="SINAPI",VLOOKUP(J129,SINAPI,3,0),IF(K129="SETOP",VLOOKUP(J129,SETOP,4,0),IF(K129="CPU",VLOOKUP(J129,COMPOSIÇÃO,10,0),IF(K129="COTAÇÃO",VLOOKUP(J129,COTAÇÃO,12,0),VLOOKUP(J129,DIVERSAS,3,0))))) -> M3XKM | M129: =E132 -> 5237.80296 | N129: =IF(K129="SINAPI",VLOOKUP(J129,SINAPI,4,0),IF(K129="SETOP",VLOOKUP(J129,SETOP,5,0),IF(K129="CPU",VLOOKUP(J129,COMPOSIÇÃO,13,0),IF(K129="COTAÇÃO",VLOOKUP(J129,COTAÇÃO,15,0),VLOOKUP(J129,DIVERSAS,4,0))))) -> 1.61 | O129: =ROUND(N129*(1+$D$14),2) -> 2 | P129: =ROUND(M129*N129,2) -> 8432.86 | Q129: =ROUND(O129*M129,2) -> 10475.61
A130: 2000 | C130: Volume total de material demolido | E130: =E128 -> 918.9128 | F130: M3
A131: 2000 | C131: DTM-Bota fora | E131: 5.7 | F131: KM
A132: 2000 | C132: TOTAL | E132: =E130*E131 -> 5237.80296 | F132: =L129 -> M3XKM
A133: =LEFT(B133) -> 3 | B133: 3.1.10 | C133: =IF(K133="SINAPI",VLOOKUP(J133,SINAPI,2,0),IF(K133="SETOP",VLOOKUP(J133,SETOP,3,0),IF(K133="CPU",VLOOKUP(J133,COMPOSIÇÃO,2,0),IF(K133="COTAÇÃO",VLOOKUP(J133,COTAÇÃO,3,0),VLOOKUP(J133,DIVERSAS,2,0))))) -> ESPALHAMENTO DE MATERIAL EM BOTA-FORA | J133: RO-42263 | K133: SETOP | L133: =IF(K133="SINAPI",VLOOKUP(J133,SINAPI,3,0),IF(K133="SETOP",VLOOKUP(J133,SETOP,4,0),IF(K133="CPU",VLOOKUP(J133,COMPOSIÇÃO,10,0),IF(K133="COTAÇÃO",VLOOKUP(J133,COTAÇÃO,12,0),VLOOKUP(J133,DIVERSAS,3,0))))) -> M3 | M133: =E134 -> 918.9128 | N133: =IF(K133="SINAPI",VLOOKUP(J133,SINAPI,4,0),IF(K133="SETOP",VLOOKUP(J133,SETOP,5,0),IF(K133="CPU",VLOOKUP(J133,COMPOSIÇÃO,13,0),IF(K133="COTAÇÃO",VLOOKUP(J133,COTAÇÃO,15,0),VLOOKUP(J133,DIVERSAS,4,0))))) -> 0.17 | O133: =ROUND(N133*(1+$D$14),2) -> 0.21 | P133: =ROUND(M133*N133,2) -> 156.22 | Q133: =ROUND(O133*M133,2) -> 192.97
A134: 2000 | C134: Volume do material | E134: =E128 -> 918.9128 | F134: M3 | G134: ="ITEM "&B110 -> ITEM 3.1.8
B135: 3.2 | C135: ESGOTAMENTO DE VALA
A136: =LEFT(B136) -> 3 | B136: 3.2.1 | C136: =IF(K136="SINAPI",VLOOKUP(J136,SINAPI,2,0),IF(K136="SETOP",VLOOKUP(J136,SETOP,3,0),IF(K136="CPU",VLOOKUP(J136,COMPOSIÇÃO,2,0),IF(K136="COTAÇÃO",VLOOKUP(J136,COTAÇÃO,3,0),VLOOKUP(J136,DIVERSAS,2,0))))) -> LOCACAO DE BOMBA SUBMERSIVEL PARA DRENAGEM E ESGOTAMENTO, MOTOR ELETRICO TRIFASICO, POTENCIA DE 1 CV, DIAMETRO DE RECALQUE DE 2". FAIXA DE OPERACAO: Q=25 M3/H (+ OU - 1 M3/H) E AMT=2 M; Q=12 M3/H (+ OU - 2 M3/H) E AMT = 12 M (+ OU - 2 M) | J136: 4084 | K136: SINAPI | L136: =IF(K136="SINAPI",VLOOKUP(J136,SINAPI,3,0),IF(K136="SETOP",VLOOKUP(J136,SETOP,4,0),IF(K136="CPU",VLOOKUP(J136,COMPOSIÇÃO,10,0),IF(K136="COTAÇÃO",VLOOKUP(J136,COTAÇÃO,12,0),VLOOKUP(J136,DIVERSAS,3,0))))) -> H | M136: =E141 -> 78 | N136: =IF(K136="SINAPI",VLOOKUP(J136,SINAPI,4,0),IF(K136="SETOP",VLOOKUP(J136,SETOP,5,0),IF(K136="CPU",VLOOKUP(J136,COMPOSIÇÃO,13,0),IF(K136="COTAÇÃO",VLOOKUP(J136,COTAÇÃO,15,0),VLOOKUP(J136,DIVERSAS,4,0))))) -> 1.17 | O136: =ROUND(N136*(1+$D$14),2) -> 1.45 | P136: =ROUND(M136*N136,2) -> 91.26 | Q136: =ROUND(O136*M136,2) -> 113.1
A137: 2000 | C137: Extensão da rede | E137: =E38 -> 130 | F137: M
A138: 2000 | C138: Porcentagem considerada | E138: 30 | F138: % | G138: Para dias chuvosos
A139: 2000 | C139: Comprimento da rede que usará esgotamento | E139: =E137*(E138/100) -> 39 | F139: M
A140: 2000 | C140: Tempo | E140: 2 | F140: H/M
A141: 2000 | C141: TOTAL | E141: =E139*E140 -> 78 | F141: =L136 -> H
A142: =LEFT(B142) -> 3 | B142: 3.2.2 | C142: =IF(K142="SINAPI",VLOOKUP(J142,SINAPI,2,0),IF(K142="SETOP",VLOOKUP(J142,SETOP,3,0),IF(K142="CPU",VLOOKUP(J142,COMPOSIÇÃO,2,0),IF(K142="COTAÇÃO",VLOOKUP(J142,COTAÇÃO,3,0),VLOOKUP(J142,DIVERSAS,2,0))))) -> GERADOR PARA BOMBA DE ESGOTAMENTO | J142: DAC-3.1 | K142: CPU | L142: =IF(K142="SINAPI",VLOOKUP(J142,SINAPI,3,0),IF(K142="SETOP",VLOOKUP(J142,SETOP,4,0),IF(K142="CPU",VLOOKUP(J142,COMPOSIÇÃO,10,0),IF(K142="COTAÇÃO",VLOOKUP(J142,COTAÇÃO,12,0),VLOOKUP(J142,DIVERSAS,3,0))))) -> DIA | M142: =E145 -> 10 | N142: =IF(K142="SINAPI",VLOOKUP(J142,SINAPI,4,0),IF(K142="SETOP",VLOOKUP(J142,SETOP,5,0),IF(K142="CPU",VLOOKUP(J142,COMPOSIÇÃO,13,0),IF(K142="COTAÇÃO",VLOOKUP(J142,COTAÇÃO,15,0),VLOOKUP(J142,DIVERSAS,4,0))))) -> 204.64 | O142: =ROUND(N142*(1+$D$14),2) -> 254.22 | P142: =ROUND(M142*N142,2) -> 2046.4 | Q142: =ROUND(O142*M142,2) -> 2542.2
A143: 2000 | C143: Total de uso da bomba | E143: =E141 -> 78 | F143: H
A144: 2000 | C144: Tempo por dia | E144: 8 | F144: H
A145: 2000 | C145: TOTAL | E145: =ROUNDUP(E143/E144,0) -> 10 | F145: D
B146: 3.3 | C146: ESCAVAÇÃO MECÃNICA DE VALAS
A147: =LEFT(B147) -> 3 | B147: 3.3.1 | C147: =IF(K147="SINAPI",VLOOKUP(J147,SINAPI,2,0),IF(K147="SETOP",VLOOKUP(J147,SETOP,3,0),IF(K147="CPU",VLOOKUP(J147,COMPOSIÇÃO,2,0),IF(K147="COTAÇÃO",VLOOKUP(J147,COTAÇÃO,3,0),VLOOKUP(J147,DIVERSAS,2,0))))) -> ESCAVAÇÃO MECÂNICA DE VALAS COM DESCARGA LATERAL H <= 1,50 M | J147: ED-51111 | K147: SETOP | L147: =IF(K147="SINAPI",VLOOKUP(J147,SINAPI,3,0),IF(K147="SETOP",VLOOKUP(J147,SETOP,4,0),IF(K147="CPU",VLOOKUP(J147,COMPOSIÇÃO,10,0),IF(K147="COTAÇÃO",VLOOKUP(J147,COTAÇÃO,12,0),VLOOKUP(J147,DIVERSAS,3,0))))) -> M3 | M147: =E148 -> 489.4 | N147: =IF(K147="SINAPI",VLOOKUP(J147,SINAPI,4,0),IF(K147="SETOP",VLOOKUP(J147,SETOP,5,0),IF(K147="CPU",VLOOKUP(J147,COMPOSIÇÃO,13,0),IF(K147="COTAÇÃO",VLOOKUP(J147,COTAÇÃO,15,0),VLOOKUP(J147,DIVERSAS,4,0))))) -> 4.45 | O147: =ROUND(N147*(1+$D$14),2) -> 5.53 | P147: =ROUND(M147*N147,2) -> 2177.83 | Q147: =ROUND(O147*M147,2) -> 2706.38
A148: 2000 | C148: Profundidade de vala até 1,50m | E148: 489.4 | F148: M3
A149: =LEFT(B149) -> 3 | B149: 3.3.2 | C149: =IF(K149="SINAPI",VLOOKUP(J149,SINAPI,2,0),IF(K149="SETOP",VLOOKUP(J149,SETOP,3,0),IF(K149="CPU",VLOOKUP(J149,COMPOSIÇÃO,2,0),IF(K149="COTAÇÃO",VLOOKUP(J149,COTAÇÃO,3,0),VLOOKUP(J149,DIVERSAS,2,0))))) -> ESCAVAÇÃO MECÂNICA DE VALAS COM DESCARGA LATERAL 1,50 M < H <= 3,00 M | J149: ED-51112 | K149: SETOP | L149: =IF(K149="SINAPI",VLOOKUP(J149,SINAPI,3,0),IF(K149="SETOP",VLOOKUP(J149,SETOP,4,0),IF(K149="CPU",VLOOKUP(J149,COMPOSIÇÃO,10,0),IF(K149="COTAÇÃO",VLOOKUP(J149,COTAÇÃO,12,0),VLOOKUP(J149,DIVERSAS,3,0))))) -> M3 | M149: =E150 -> 180.23 | N149: =IF(K149="SINAPI",VLOOKUP(J149,SINAPI,4,0),IF(K149="SETOP",VLOOKUP(J149,SETOP,5,0),IF(K149="CPU",VLOOKUP(J149,COMPOSIÇÃO,13,0),IF(K149="COTAÇÃO",VLOOKUP(J149,COTAÇÃO,15,0),VLOOKUP(J149,DIVERSAS,4,0))))) -> 5.33 | O149: =ROUND(N149*(1+$D$14),2) -> 6.62 | P149: =ROUND(M149*N149,2) -> 960.63 | Q149: =ROUND(O149*M149,2) -> 1193.12
A150: 2000 | C150: Profundidade de vala de 1,50 até 3,00m | E150: 180.23 | F150: =L149 -> M3
A151: =LEFT(B151) -> 3 | B151: 3.3.3 | C151: =IF(K151="SINAPI",VLOOKUP(J151,SINAPI,2,0),IF(K151="SETOP",VLOOKUP(J151,SETOP,3,0),IF(K151="CPU",VLOOKUP(J151,COMPOSIÇÃO,2,0),IF(K151="COTAÇÃO",VLOOKUP(J151,COTAÇÃO,3,0),VLOOKUP(J151,DIVERSAS,2,0))))) -> ESCAVAÇÃO MECÂNICA DE VALAS COM DESCARGA LATERAL 3,00 M < H <= 5,00 M | J151: ED-51113 | K151: SETOP | L151: =IF(K151="SINAPI",VLOOKUP(J151,SINAPI,3,0),IF(K151="SETOP",VLOOKUP(J151,SETOP,4,0),IF(K151="CPU",VLOOKUP(J151,COMPOSIÇÃO,10,0),IF(K151="COTAÇÃO",VLOOKUP(J151,COTAÇÃO,12,0),VLOOKUP(J151,DIVERSAS,3,0))))) -> M3 | M151: =E152 -> 0.28 | N151: =IF(K151="SINAPI",VLOOKUP(J151,SINAPI,4,0),IF(K151="SETOP",VLOOKUP(J151,SETOP,5,0),IF(K151="CPU",VLOOKUP(J151,COMPOSIÇÃO,13,0),IF(K151="COTAÇÃO",VLOOKUP(J151,COTAÇÃO,15,0),VLOOKUP(J151,DIVERSAS,4,0))))) -> 6.67 | O151: =ROUND(N151*(1+$D$14),2) -> 8.29 | P151: =ROUND(M151*N151,2) -> 1.87 | Q151: =ROUND(O151*M151,2) -> 2.32
A152: 2000 | C152: Profundidade de vala de 3,00 até 5,00m | E152: 0.28 | F152: =L151 -> M3
B153: 3.4 | C153: ATERRO/REATERRO DE VALAS SEM COMPACTAÇÃO
A154: =LEFT(B154) -> 3 | B154: 3.4.1 | C154: =IF(K154="SINAPI",VLOOKUP(J154,SINAPI,2,0),IF(K154="SETOP",VLOOKUP(J154,SETOP,3,0),IF(K154="CPU",VLOOKUP(J154,COMPOSIÇÃO,2,0),IF(K154="COTAÇÃO",VLOOKUP(J154,COTAÇÃO,3,0),VLOOKUP(J154,DIVERSAS,2,0))))) -> REATERRO MECANIZADO DE VALA COM RETROESCAVADEIRA (CAPACIDADE DA CAÇAMBA DA RETRO: 0,26 M³ / POTÊNCIA: 88 HP), LARGURA DE 0,8 A 1,5 M, PROFUNDIDADE ATÉ 1,5 M, COM SOLO DE 1ª CATEGORIA EM LOCAIS COM ALTO NÍVEL DE INTERFERÊNCIA. AF_04/2016 | J154: 93375 | K154: SINAPI | L154: =IF(K154="SINAPI",VLOOKUP(J154,SINAPI,3,0),IF(K154="SETOP",VLOOKUP(J154,SETOP,4,0),IF(K154="CPU",VLOOKUP(J154,COMPOSIÇÃO,10,0),IF(K154="COTAÇÃO",VLOOKUP(J154,COTAÇÃO,12,0),VLOOKUP(J154,DIVERSAS,3,0))))) -> M3 | M154: =E155 -> 420.65 | N154: =IF(K154="SINAPI",VLOOKUP(J154,SINAPI,4,0),IF(K154="SETOP",VLOOKUP(J154,SETOP,5,0),IF(K154="CPU",VLOOKUP(J154,COMPOSIÇÃO,13,0),IF(K154="COTAÇÃO",VLOOKUP(J154,COTAÇÃO,15,0),VLOOKUP(J154,DIVERSAS,4,0))))) -> 16.63 | O154: =ROUND(N154*(1+$D$14),2) -> 20.66 | P154: =ROUND(M154*N154,2) -> 6995.41 | Q154: =ROUND(O154*M154,2) -> 8690.63
A155: 2000 | C155: Profundidade de vala até 1,50m | E155: 420.65 | F155: =L154 -> M3
A156: =LEFT(B156) -> 3 | B156: 3.4.2 | C156: =IF(K156="SINAPI",VLOOKUP(J156,SINAPI,2,0),IF(K156="SETOP",VLOOKUP(J156,SETOP,3,0),IF(K156="CPU",VLOOKUP(J156,COMPOSIÇÃO,2,0),IF(K156="COTAÇÃO",VLOOKUP(J156,COTAÇÃO,3,0),VLOOKUP(J156,DIVERSAS,2,0))))) -> REATERRO MECANIZADO DE VALA COM RETROESCAVADEIRA (CAPACIDADE DA CAÇAMBA DA RETRO: 0,26 M³ / POTÊNCIA: 88 HP), LARGURA DE 0,8 A 1,5 M, PROFUNDIDADE DE 1,5 A 3,0 M, COM SOLO (SEM SUBSTITUIÇÃO) DE 1ª CATEGORIA EM LOCAIS COM ALTO NÍVEL DE INTERFERÊNCIA. AF_04/2016 | J156: 93377 | K156: SINAPI | L156: =IF(K156="SINAPI",VLOOKUP(J156,SINAPI,3,0),IF(K156="SETOP",VLOOKUP(J156,SETOP,4,0),IF(K156="CPU",VLOOKUP(J156,COMPOSIÇÃO,10,0),IF(K156="COTAÇÃO",VLOOKUP(J156,COTAÇÃO,12,0),VLOOKUP(J156,DIVERSAS,3,0))))) -> M3 | M156: =E157 -> 42.62 | N156: =IF(K156="SINAPI",VLOOKUP(J156,SINAPI,4,0),IF(K156="SETOP",VLOOKUP(J156,SETOP,5,0),IF(K156="CPU",VLOOKUP(J156,COMPOSIÇÃO,13,0),IF(K156="COTAÇÃO",VLOOKUP(J156,COTAÇÃO,15,0),VLOOKUP(J156,DIVERSAS,4,0))))) -> 8.84 | O156: =ROUND(N156*(1+$D$14),2) -> 10.98 | P156: =ROUND(M156*N156,2) -> 376.76 | Q156: =ROUND(O156*M156,2) -> 467.97
A157: 2000 | C157: Profundidade de vala de 1,50 até 3,00m | E157: 42.62 | F157: =L156 -> M3
A158: =LEFT(B158) -> 3 | B158: 3.4.3 | C158: =IF(K158="SINAPI",VLOOKUP(J158,SINAPI,2,0),IF(K158="SETOP",VLOOKUP(J158,SETOP,3,0),IF(K158="CPU",VLOOKUP(J158,COMPOSIÇÃO,2,0),IF(K158="COTAÇÃO",VLOOKUP(J158,COTAÇÃO,3,0),VLOOKUP(J158,DIVERSAS,2,0))))) -> REATERRO MECANIZADO DE VALA COM ESCAVADEIRA HIDRÁULICA (CAPACIDADE DA CAÇAMBA: 0,8 M³ / POTÊNCIA: 111 HP), LARGURA DE 1,5 A 2,5 M, PROFUNDIDADE ATÉ 1,5 M, COM SOLO DE 1ª CATEGORIA EM LOCAIS COM ALTO NÍVEL DE INTERFERÊNCIA. AF_04/2016 | J158: 93360 | K158: SINAPI | L158: =IF(K158="SINAPI",VLOOKUP(J158,SINAPI,3,0),IF(K158="SETOP",VLOOKUP(J158,SETOP,4,0),IF(K158="CPU",VLOOKUP(J158,COMPOSIÇÃO,10,0),IF(K158="COTAÇÃO",VLOOKUP(J158,COTAÇÃO,12,0),VLOOKUP(J158,DIVERSAS,3,0))))) -> M3 | M158: =E159 -> 1.24 | N158: =IF(K158="SINAPI",VLOOKUP(J158,SINAPI,4,0),IF(K158="SETOP",VLOOKUP(J158,SETOP,5,0),IF(K158="CPU",VLOOKUP(J158,COMPOSIÇÃO,13,0),IF(K158="COTAÇÃO",VLOOKUP(J158,COTAÇÃO,15,0),VLOOKUP(J158,DIVERSAS,4,0))))) -> 17.13 | O158: =ROUND(N158*(1+$D$14),2) -> 21.28 | P158: =ROUND(M158*N158,2) -> 21.24 | Q158: =ROUND(O158*M158,2) -> 26.39
A159: 2000 | C159: Profundidade de vala até 1,50m | E159: 1.24 | F159: =L158 -> M3
B160: 3.5 | C160: COMPACTAÇÃO E APILOAMENTO
A161: =LEFT(B161) -> 3 | B161: 3.5.1 | C161: =IF(K161="SINAPI",VLOOKUP(J161,SINAPI,2,0),IF(K161="SETOP",VLOOKUP(J161,SETOP,3,0),IF(K161="CPU",VLOOKUP(J161,COMPOSIÇÃO,2,0),IF(K161="COTAÇÃO",VLOOKUP(J161,COTAÇÃO,3,0),VLOOKUP(J161,DIVERSAS,2,0))))) -> COMPACTAÇÃO DE ATERRO A 95% PROCTOR NORMAL | J161: RO-40249 | K161: SETOP | L161: =IF(K161="SINAPI",VLOOKUP(J161,SINAPI,3,0),IF(K161="SETOP",VLOOKUP(J161,SETOP,4,0),IF(K161="CPU",VLOOKUP(J161,COMPOSIÇÃO,10,0),IF(K161="COTAÇÃO",VLOOKUP(J161,COTAÇÃO,12,0),VLOOKUP(J161,DIVERSAS,3,0))))) -> M3 | M161: =E165 -> 464.51 | N161: =IF(K161="SINAPI",VLOOKUP(J161,SINAPI,4,0),IF(K161="SETOP",VLOOKUP(J161,SETOP,5,0),IF(K161="CPU",VLOOKUP(J161,COMPOSIÇÃO,13,0),IF(K161="COTAÇÃO",VLOOKUP(J161,COTAÇÃO,15,0),VLOOKUP(J161,DIVERSAS,4,0))))) -> 2.6 | O161: =ROUND(N161*(1+$D$14),2) -> 3.23 | P161: =ROUND(M161*N161,2) -> 1207.73 | Q161: =ROUND(O161*M161,2) -> 1500.37
A162: 2000 | C162: ="ITEM "&B154 -> ITEM 3.4.1 | E162: =M154 -> 420.65 | F162: M3
A163: 2000 | C163: ="ITEM "&B156 -> ITEM 3.4.2 | E163: =M156 -> 42.62 | F163: M3
A164: 2000 | C164: ="ITEM "&B158 -> ITEM 3.4.3 | E164: =M158 -> 1.24 | F164: M3
A165: 2000 | C165: TOTAL | E165: =SUM(E162:E164) -> 464.51 | F165: M3
B166: 3.6 | C166: TROCA DO MATERIAL DE ATERRO
A167: =LEFT(B167) -> 3 | B167: 3.6.1 | C167: =IF(K167="SINAPI",VLOOKUP(J167,SINAPI,2,0),IF(K167="SETOP",VLOOKUP(J167,SETOP,3,0),IF(K167="CPU",VLOOKUP(J167,COMPOSIÇÃO,2,0),IF(K167="COTAÇÃO",VLOOKUP(J167,COTAÇÃO,3,0),VLOOKUP(J167,DIVERSAS,2,0))))) -> ARGILA OU BARRO PARA ATERRO/REATERRO (RETIRADO NA JAZIDA, SEM TRANSPORTE) | J167: 6077 | K167: SINAPI | L167: =IF(K167="SINAPI",VLOOKUP(J167,SINAPI,3,0),IF(K167="SETOP",VLOOKUP(J167,SETOP,4,0),IF(K167="CPU",VLOOKUP(J167,COMPOSIÇÃO,10,0),IF(K167="COTAÇÃO",VLOOKUP(J167,COTAÇÃO,12,0),VLOOKUP(J167,DIVERSAS,3,0))))) -> M3 | M167: =E170 -> 139.353 | N167: =IF(K167="SINAPI",VLOOKUP(J167,SINAPI,4,0),IF(K167="SETOP",VLOOKUP(J167,SETOP,5,0),IF(K167="CPU",VLOOKUP(J167,COMPOSIÇÃO,13,0),IF(K167="COTAÇÃO",VLOOKUP(J167,COTAÇÃO,15,0),VLOOKUP(J167,DIVERSAS,4,0))))) -> 17.06 | O167: =ROUND(N167*(1+$D$14),2) -> 21.19 | P167: =ROUND(M167*N167,2) -> 2377.36 | Q167: =ROUND(O167*M167,2) -> 2952.89
A168: 2000 | C168: Volume total de reaterro | E168: =E155+E157+E159 -> 464.51 | F168: M3 | G168: ="ITEM "&B153 -> ITEM 3.4
A169: 2000 | C169: Troca estimada do solo durante o aterro | E169: 30 | F169: %
A170: 2000 | C170: TOTAL | E170: =E168*(E169/100) -> 139.353 | F170: M3
A171: =LEFT(B171,SEARCH(".",B171)-1) -> 3 | B171: 3.6.2 | C171: =IF(K171="SINAPI",VLOOKUP(J171,SINAPI,2,0),IF(K171="SETOP",VLOOKUP(J171,SETOP,3,0),IF(K171="CPU",VLOOKUP(J171,COMPOSIÇÃO,2,0),IF(K171="COTAÇÃO",VLOOKUP(J171,COTAÇÃO,3,0),VLOOKUP(J171,DIVERSAS,2,0))))) -> ESCAVAÇÃO E CARGA DE MATERIAL DE JAZIDA (INCLUSIVE EXPURGO E CAPEAMENTO) | J171: RO-41087 | K171: SETOP | L171: =IF(K171="SINAPI",VLOOKUP(J171,SINAPI,3,0),IF(K171="SETOP",VLOOKUP(J171,SETOP,4,0),IF(K171="CPU",VLOOKUP(J171,COMPOSIÇÃO,10,0),IF(K171="COTAÇÃO",VLOOKUP(J171,COTAÇÃO,12,0),VLOOKUP(J171,DIVERSAS,3,0))))) -> M3 | M171: =E172 -> 181.1589 | N171: =IF(K171="SINAPI",VLOOKUP(J171,SINAPI,4,0),IF(K171="SETOP",VLOOKUP(J171,SETOP,5,0),IF(K171="CPU",VLOOKUP(J171,COMPOSIÇÃO,13,0),IF(K171="COTAÇÃO",VLOOKUP(J171,COTAÇÃO,15,0),VLOOKUP(J171,DIVERSAS,4,0))))) -> 5.53 | O171: =ROUND(N171*(1+$D$14),2) -> 6.87 | P171: =ROUND(M171*N171,2) -> 1001.81 | Q171: =ROUND(O171*M171,2) -> 1244.56
A172: =2000 -> 2000 | C172: Volume de material de Jazida com empolamento de 30% | E172: =E170*1.3 -> 181.1589 | F172: M3
A173: =LEFT(B173) -> 3 | B173: 3.6.3 | C173: =IF(K173="SINAPI",VLOOKUP(J173,SINAPI,2,0),IF(K173="SETOP",VLOOKUP(J173,SETOP,3,0),IF(K173="CPU",VLOOKUP(J173,COMPOSIÇÃO,2,0),IF(K173="COTAÇÃO",VLOOKUP(J173,COTAÇÃO,3,0),VLOOKUP(J173,DIVERSAS,2,0))))) -> CARGA, MANOBRA E DESCARGA DE SOLOS E MATERIAIS GRANULARES EM CAMINHÃO BASCULANTE 10 M³ - CARGA COM ESCAVADEIRA HIDRÁULICA (CAÇAMBA DE 1,20 M³ / 155 HP) E DESCARGA LIVRE (UNIDADE: M3). AF_07/2020 | J173: 100978 | K173: SINAPI | L173: =IF(K173="SINAPI",VLOOKUP(J173,SINAPI,3,0),IF(K173="SETOP",VLOOKUP(J173,SETOP,4,0),IF(K173="CPU",VLOOKUP(J173,COMPOSIÇÃO,10,0),IF(K173="COTAÇÃO",VLOOKUP(J173,COTAÇÃO,12,0),VLOOKUP(J173,DIVERSAS,3,0))))) -> M3 | M173: =E176 -> 181.1589 | N173: =IF(K173="SINAPI",VLOOKUP(J173,SINAPI,4,0),IF(K173="SETOP",VLOOKUP(J173,SETOP,5,0),IF(K173="CPU",VLOOKUP(J173,COMPOSIÇÃO,13,0),IF(K173="COTAÇÃO",VLOOKUP(J173,COTAÇÃO,15,0),VLOOKUP(J173,DIVERSAS,4,0))))) -> 4.58 | O173: =ROUND(N173*(1+$D$14),2) -> 5.69 | P173: =ROUND(M173*N173,2) -> 829.71 | Q173: =ROUND(O173*M173,2) -> 1030.79
A174: 2000 | C174: Volume de solo | E174: =E170 -> 139.353 | F174: M3 | G174: ="ITEM "&B167 -> ITEM 3.6.1
A175: 2000 | C175: Fator de empolamento | E175: 1.3
A176: 2000 | C176: TOTAL | E176: =E174*E175 -> 181.1589 | F176: M3
A177: =LEFT(B177) -> 3 | B177: 3.6.4 | C177: =IF(K177="SINAPI",VLOOKUP(J177,SINAPI,2,0),IF(K177="SETOP",VLOOKUP(J177,SETOP,3,0),IF(K177="CPU",VLOOKUP(J177,COMPOSIÇÃO,2,0),IF(K177="COTAÇÃO",VLOOKUP(J177,COTAÇÃO,3,0),VLOOKUP(J177,DIVERSAS,2,0))))) -> TRANSPORTE COM CAMINHÃO BASCULANTE DE 10 M³, EM VIA URBANA PAVIMENTADA, DMT ATÉ 30 KM (UNIDADE: M3XKM). AF_07/2020 | J177: 95875 | K177: SINAPI | L177: =IF(K177="SINAPI",VLOOKUP(J177,SINAPI,3,0),IF(K177="SETOP",VLOOKUP(J177,SETOP,4,0),IF(K177="CPU",VLOOKUP(J177,COMPOSIÇÃO,10,0),IF(K177="COTAÇÃO",VLOOKUP(J177,COTAÇÃO,12,0),VLOOKUP(J177,DIVERSAS,3,0))))) -> M3XKM | M177: =E180 -> 1648.54599 | N177: =IF(K177="SINAPI",VLOOKUP(J177,SINAPI,4,0),IF(K177="SETOP",VLOOKUP(J177,SETOP,5,0),IF(K177="CPU",VLOOKUP(J177,COMPOSIÇÃO,13,0),IF(K177="COTAÇÃO",VLOOKUP(J177,COTAÇÃO,15,0),VLOOKUP(J177,DIVERSAS,4,0))))) -> 1.61 | O177: =ROUND(N177*(1+$D$14),2) -> 2 | P177: =ROUND(M177*N177,2) -> 2654.16 | Q177: =ROUND(O177*M177,2) -> 3297.09
A178: 2000 | C178: Volume total | E178: =E176 -> 181.1589 | F178: M3 | G178: ="ITEM "&B167 -> ITEM 3.6.1
A179: 2000 | C179: DTM-Britasul | E179: 9.1 | F179: KM
A180: 2000 | C180: TOTAL | E180: =E178*E179 -> 1648.54599 | F180: =L177 -> M3XKM
B181: 3.7 | C181: CARGA, DESCARGA E/OU TRANSPORTE DE MATERIAS
A182: =LEFT(B182) -> 3 | B182: 3.7.1 | C182: =IF(K182="SINAPI",VLOOKUP(J182,SINAPI,2,0),IF(K182="SETOP",VLOOKUP(J182,SETOP,3,0),IF(K182="CPU",VLOOKUP(J182,COMPOSIÇÃO,2,0),IF(K182="COTAÇÃO",VLOOKUP(J182,COTAÇÃO,3,0),VLOOKUP(J182,DIVERSAS,2,0))))) -> CARGA, MANOBRA E DESCARGA DE SOLOS E MATERIAIS GRANULARES EM CAMINHÃO BASCULANTE 10 M³ - CARGA COM ESCAVADEIRA HIDRÁULICA (CAÇAMBA DE 1,20 M³ / 155 HP) E DESCARGA LIVRE (UNIDADE: M3). AF_07/2020 | J182: 100978 | K182: SINAPI | L182: =IF(K182="SINAPI",VLOOKUP(J182,SINAPI,3,0),IF(K182="SETOP",VLOOKUP(J182,SETOP,4,0),IF(K182="CPU",VLOOKUP(J182,COMPOSIÇÃO,10,0),IF(K182="COTAÇÃO",VLOOKUP(J182,COTAÇÃO,12,0),VLOOKUP(J182,DIVERSAS,3,0))))) -> M3 | M182: =E188 -> 448.1789 | N182: =IF(K182="SINAPI",VLOOKUP(J182,SINAPI,4,0),IF(K182="SETOP",VLOOKUP(J182,SETOP,5,0),IF(K182="CPU",VLOOKUP(J182,COMPOSIÇÃO,13,0),IF(K182="COTAÇÃO",VLOOKUP(J182,COTAÇÃO,15,0),VLOOKUP(J182,DIVERSAS,4,0))))) -> 4.58 | O182: =ROUND(N182*(1+$D$14),2) -> 5.69 | P182: =ROUND(M182*N182,2) -> 2052.66 | Q182: =ROUND(O182*M182,2) -> 2550.14
A183: 2000 | C183: Volume total de corte | E183: =M147+M149+M151 -> 669.91 | F183: M3 | G183: ="ITEM "&B146 -> ITEM 3.3
A184: 2000 | C184: Volume total de reaterro | E184: =M154+M156+M158 -> 464.51 | F184: M3 | G184: ="ITEM "&B153 -> ITEM 3.4
A185: 2000 | C185: Volume de solo a ser trocado | E185: =E170 -> 139.353 | F185: M3 | G185: ="ITEM "&B167 -> ITEM 3.6.1
A186: 2000 | C186: Sub total (volume total de descarte) | E186: =E183-(E184-E185) -> 344.753 | F186: M3
A187: 2000 | C187: Fator de empolamento | E187: 1.3
A188: 2000 | C188: TOTAL | E188: =E186*E187 -> 448.1789 | F188: M3
A189: =LEFT(B189) -> 3 | B189: 3.7.2 | C189: =IF(K189="SINAPI",VLOOKUP(J189,SINAPI,2,0),IF(K189="SETOP",VLOOKUP(J189,SETOP,3,0),IF(K189="CPU",VLOOKUP(J189,COMPOSIÇÃO,2,0),IF(K189="COTAÇÃO",VLOOKUP(J189,COTAÇÃO,3,0),VLOOKUP(J189,DIVERSAS,2,0))))) -> TRANSPORTE COM CAMINHÃO BASCULANTE DE 10 M³, EM VIA URBANA PAVIMENTADA, DMT ATÉ 30 KM (UNIDADE: M3XKM). AF_07/2020 | J189: 95875 | K189: SINAPI | L189: =IF(K189="SINAPI",VLOOKUP(J189,SINAPI,3,0),IF(K189="SETOP",VLOOKUP(J189,SETOP,4,0),IF(K189="CPU",VLOOKUP(J189,COMPOSIÇÃO,10,0),IF(K189="COTAÇÃO",VLOOKUP(J189,COTAÇÃO,12,0),VLOOKUP(J189,DIVERSAS,3,0))))) -> M3XKM | M189: =E192 -> 2554.61973 | N189: =IF(K189="SINAPI",VLOOKUP(J189,SINAPI,4,0),IF(K189="SETOP",VLOOKUP(J189,SETOP,5,0),IF(K189="CPU",VLOOKUP(J189,COMPOSIÇÃO,13,0),IF(K189="COTAÇÃO",VLOOKUP(J189,COTAÇÃO,15,0),VLOOKUP(J189,DIVERSAS,4,0))))) -> 1.61 | O189: =ROUND(N189*(1+$D$14),2) -> 2 | P189: =ROUND(M189*N189,2) -> 4112.94 | Q189: =ROUND(O189*M189,2) -> 5109.24
A190: 2000 | C190: Volume total | E190: =E188 -> 448.1789 | F190: M3 | G190: ="ITEM "&B182 -> ITEM 3.7.1
A191: 2000 | C191: DTM-Bota fora | E191: 5.7 | F191: KM
A192: 2000 | C192: TOTAL | E192: =E190*E191 -> 2554.61973 | F192: =L189 -> M3XKM
A193: =LEFT(B193) -> 3 | B193: 3.7.3 | C193: =IF(K193="SINAPI",VLOOKUP(J193,SINAPI,2,0),IF(K193="SETOP",VLOOKUP(J193,SETOP,3,0),IF(K193="CPU",VLOOKUP(J193,COMPOSIÇÃO,2,0),IF(K193="COTAÇÃO",VLOOKUP(J193,COTAÇÃO,3,0),VLOOKUP(J193,DIVERSAS,2,0))))) -> ESPALHAMENTO DE MATERIAL EM BOTA-FORA | J193: RO-42263 | K193: SETOP | L193: =IF(K193="SINAPI",VLOOKUP(J193,SINAPI,3,0),IF(K193="SETOP",VLOOKUP(J193,SETOP,4,0),IF(K193="CPU",VLOOKUP(J193,COMPOSIÇÃO,10,0),IF(K193="COTAÇÃO",VLOOKUP(J193,COTAÇÃO,12,0),VLOOKUP(J193,DIVERSAS,3,0))))) -> M3 | M193: =E194 -> 448.1789 | N193: =IF(K193="SINAPI",VLOOKUP(J193,SINAPI,4,0),IF(K193="SETOP",VLOOKUP(J193,SETOP,5,0),IF(K193="CPU",VLOOKUP(J193,COMPOSIÇÃO,13,0),IF(K193="COTAÇÃO",VLOOKUP(J193,COTAÇÃO,15,0),VLOOKUP(J193,DIVERSAS,4,0))))) -> 0.17 | O193: =ROUND(N193*(1+$D$14),2) -> 0.21 | P193: =ROUND(M193*N193,2) -> 76.19 | Q193: =ROUND(O193*M193,2) -> 94.12
A194: =2000 -> 2000 | C194: Volume do material | E194: =E188 -> 448.1789 | F194: M3 | G194: ="ITEM "&B182 -> ITEM 3.7.1
B195: 3.8 | C195: TERRAPLANAGEM
A196: =LEFT(B196) -> 3 | B196: 3.8.1 | C196: =IF(K196="SINAPI",VLOOKUP(J196,SINAPI,2,0),IF(K196="SETOP",VLOOKUP(J196,SETOP,3,0),IF(K196="CPU",VLOOKUP(J196,COMPOSIÇÃO,2,0),IF(K196="COTAÇÃO",VLOOKUP(J196,COTAÇÃO,3,0),VLOOKUP(J196,DIVERSAS,2,0))))) -> ESCAVAÇÃO, CARGA, DESCARGA, ESPALHAMENTO E TRANSPORTE DE MATERIAL DE 1ª CATEGORIA, COM CAMINHÃO. DISTÂNCIA MÉDIA DE TRANSPORTE DE 201 A 400 M | J196: RO-40149 | K196: SETOP | L196: =IF(K196="SINAPI",VLOOKUP(J196,SINAPI,3,0),IF(K196="SETOP",VLOOKUP(J196,SETOP,4,0),IF(K196="CPU",VLOOKUP(J196,COMPOSIÇÃO,10,0),IF(K196="COTAÇÃO",VLOOKUP(J196,COTAÇÃO,12,0),VLOOKUP(J196,DIVERSAS,3,0))))) -> M3 | M196: =E199 -> 680.043 | N196: =IF(K196="SINAPI",VLOOKUP(J196,SINAPI,4,0),IF(K196="SETOP",VLOOKUP(J196,SETOP,5,0),IF(K196="CPU",VLOOKUP(J196,COMPOSIÇÃO,13,0),IF(K196="COTAÇÃO",VLOOKUP(J196,COTAÇÃO,15,0),VLOOKUP(J196,DIVERSAS,4,0))))) -> 3.74 | O196: =ROUND(N196*(1+$D$14),2) -> 4.65 | P196: =ROUND(M196*N196,2) -> 2543.36 | Q196: =ROUND(O196*M196,2) -> 3162.2
A197: 2000 | C197: Volume total de corte | E197: 523.11 | F197: M3 | G197: Projeto de terraplenagem
A198: 2000 | C198: Fator de empolamento | E198: 1.3
A199: 2000 | C199: TOTAL | E199: =E197*E198 -> 680.043 | F199: M3
A200: =LEFT(B200) -> 3 | B200: 3.8.2 | C200: =IF(K200="SINAPI",VLOOKUP(J200,SINAPI,2,0),IF(K200="SETOP",VLOOKUP(J200,SETOP,3,0),IF(K200="CPU",VLOOKUP(J200,COMPOSIÇÃO,2,0),IF(K200="COTAÇÃO",VLOOKUP(J200,COTAÇÃO,3,0),VLOOKUP(J200,DIVERSAS,2,0))))) -> ARGILA OU BARRO PARA ATERRO/REATERRO (RETIRADO NA JAZIDA, SEM TRANSPORTE) | J200: 6077 | K200: SINAPI | L200: =IF(K200="SINAPI",VLOOKUP(J200,SINAPI,3,0),IF(K200="SETOP",VLOOKUP(J200,SETOP,4,0),IF(K200="CPU",VLOOKUP(J200,COMPOSIÇÃO,10,0),IF(K200="COTAÇÃO",VLOOKUP(J200,COTAÇÃO,12,0),VLOOKUP(J200,DIVERSAS,3,0))))) -> M3 | M200: =E201 -> 301.29 | N200: =IF(K200="SINAPI",VLOOKUP(J200,SINAPI,4,0),IF(K200="SETOP",VLOOKUP(J200,SETOP,5,0),IF(K200="CPU",VLOOKUP(J200,COMPOSIÇÃO,13,0),IF(K200="COTAÇÃO",VLOOKUP(J200,COTAÇÃO,15,0),VLOOKUP(J200,DIVERSAS,4,0))))) -> 17.06 | O200: =ROUND(N200*(1+$D$14),2) -> 21.19 | P200: =ROUND(M200*N200,2) -> 5140.01 | Q200: =ROUND(O200*M200,2) -> 6384.34
A201: 2000 | C201: Volume de solo para aterro | E201: 301.29 | F201: M3 | G201: Projeto de terraplenagem
A202: =LEFT(B202,SEARCH(".",B202)-1) -> 3 | B202: 3.8.3 | C202: =IF(K202="SINAPI",VLOOKUP(J202,SINAPI,2,0),IF(K202="SETOP",VLOOKUP(J202,SETOP,3,0),IF(K202="CPU",VLOOKUP(J202,COMPOSIÇÃO,2,0),IF(K202="COTAÇÃO",VLOOKUP(J202,COTAÇÃO,3,0),VLOOKUP(J202,DIVERSAS,2,0))))) -> ESCAVAÇÃO E CARGA DE MATERIAL DE JAZIDA (INCLUSIVE EXPURGO E CAPEAMENTO) | J202: RO-41087 | K202: SETOP | L202: =IF(K202="SINAPI",VLOOKUP(J202,SINAPI,3,0),IF(K202="SETOP",VLOOKUP(J202,SETOP,4,0),IF(K202="CPU",VLOOKUP(J202,COMPOSIÇÃO,10,0),IF(K202="COTAÇÃO",VLOOKUP(J202,COTAÇÃO,12,0),VLOOKUP(J202,DIVERSAS,3,0))))) -> M3 | M202: =E203 -> 391.677 | N202: =IF(K202="SINAPI",VLOOKUP(J202,SINAPI,4,0),IF(K202="SETOP",VLOOKUP(J202,SETOP,5,0),IF(K202="CPU",VLOOKUP(J202,COMPOSIÇÃO,13,0),IF(K202="COTAÇÃO",VLOOKUP(J202,COTAÇÃO,15,0),VLOOKUP(J202,DIVERSAS,4,0))))) -> 5.53 | O202: =ROUND(N202*(1+$D$14),2) -> 6.87 | P202: =ROUND(M202*N202,2) -> 2165.97 | Q202: =ROUND(O202*M202,2) -> 2690.82
A203: =2000 -> 2000 | C203: Volume de materail de Jazida com empolamento de 30% | E203: =E201*1.3 -> 391.677 | F203: M3
A204: =LEFT(B204) -> 3 | B204: 3.8.4 | C204: =IF(K204="SINAPI",VLOOKUP(J204,SINAPI,2,0),IF(K204="SETOP",VLOOKUP(J204,SETOP,3,0),IF(K204="CPU",VLOOKUP(J204,COMPOSIÇÃO,2,0),IF(K204="COTAÇÃO",VLOOKUP(J204,COTAÇÃO,3,0),VLOOKUP(J204,DIVERSAS,2,0))))) -> CARGA, MANOBRA E DESCARGA DE SOLOS E MATERIAIS GRANULARES EM CAMINHÃO BASCULANTE 10 M³ - CARGA COM ESCAVADEIRA HIDRÁULICA (CAÇAMBA DE 1,20 M³ / 155 HP) E DESCARGA LIVRE (UNIDADE: M3). AF_07/2020 | J204: 100978 | K204: SINAPI | L204: =IF(K204="SINAPI",VLOOKUP(J204,SINAPI,3,0),IF(K204="SETOP",VLOOKUP(J204,SETOP,4,0),IF(K204="CPU",VLOOKUP(J204,COMPOSIÇÃO,10,0),IF(K204="COTAÇÃO",VLOOKUP(J204,COTAÇÃO,12,0),VLOOKUP(J204,DIVERSAS,3,0))))) -> M3 | M204: =E207 -> 391.677 | N204: =IF(K204="SINAPI",VLOOKUP(J204,SINAPI,4,0),IF(K204="SETOP",VLOOKUP(J204,SETOP,5,0),IF(K204="CPU",VLOOKUP(J204,COMPOSIÇÃO,13,0),IF(K204="COTAÇÃO",VLOOKUP(J204,COTAÇÃO,15,0),VLOOKUP(J204,DIVERSAS,4,0))))) -> 4.58 | O204: =ROUND(N204*(1+$D$14),2) -> 5.69 | P204: =ROUND(M204*N204,2) -> 1793.88 | Q204: =ROUND(O204*M204,2) -> 2228.64
A205: 2000 | C205: Volume de solo | E205: =E201 -> 301.29 | F205: M3 | G205: ="ITEM "&B189 -> ITEM 3.7.2
A206: 2000 | C206: Fator de empolamento | E206: 1.3
... 167 more rows

Sheet CRO
B2: ="CRONOGRAMA FÍSICO-FINANCEIRO DE OBRA- " &B4 -> CRONOGRAMA FÍSICO-FINANCEIRO DE OBRA- AVENIDA SÃO FRANCISCO INTERLIGAÇÃO COM AVENIDA NOROESTE | I2: =ORC!Q8 -> R01
B3: Projeto: | H3: Cliente: | J3: Projetista:
B4: =ORC!B10 -> AVENIDA SÃO FRANCISCO INTERLIGAÇÃO COM AVENIDA NOROESTE
B6: Data: | D6: =DADOS!D2 -> 2021-04-29
B7: BDI: | D7: =ORC!D14 -> 0.2423
B9: ITEM | C9: SERVIÇOS | G9: UNIDADE | H9: 1ª ETAPA PERÍODO: 30 DIAS | I9: 2ª ETAPA PERÍODO: 30 DIAS | J9: TOTAL POR ETAPA (% / R$)
B10: 1 | C10: =VLOOKUP(B10,ORC,2,0) -> ADMINISTRAÇAÕ DE OBRA | G10: % | H10: 0.5 | I10: 0.5 | J10: =J11/$J$29 -> 0.043707192
G11: R$ | H11: =$J11*H10 -> 15989.675 | I11: =$J11*I10 -> 15989.675 | J11: =VLOOKUP($B10,ORC,16,0) -> 31979.35
B12: 2 | C12: =VLOOKUP(B12,ORC,2,0) -> SERVIÇOS PRELIMINARES | G12: % | H12: 0.5 | I12: 0.5 | J12: =J13/$J$29 -> 0.01522530935
G13: R$ | H13: =$J13*H12 -> 5569.97 | I13: =$J13*I12 -> 5569.97 | J13: =VLOOKUP($B12,ORC,16,0) -> 11139.94
B14: 3 | C14: =VLOOKUP(B14,ORC,2,0) -> MOVIMENTAÇÃO DE TERRA | G14: % | H14: 0.5 | I14: 0.5 | J14: =J15/$J$29 -> 0.1260632746
G15: R$ | H15: =$J15*H14 -> 46118.515 | I15: =$J15*I14 -> 46118.515 | J15: =VLOOKUP($B14,ORC,16,0) -> 92237.03
B16: 4 | C16: =VLOOKUP(B16,ORC,2,0) -> ESCORAMENTO DE VALAS | G16: % | H16: 0.5 | I16: 0.5 | J16: =J17/$J$29 -> 0.0608476205
G17: R$ | H17: =$J17*H16 -> 22260.265 | I17: =$J17*I16 -> 22260.265 | J17: =VLOOKUP($B16,ORC,16,0) -> 44520.53
B18: 5 | C18: =VLOOKUP(B18,ORC,2,0) -> PREPARAÇÃO DE FUNDO DE VALA | G18: % | H18: 0.5 | I18: 0.5 | J18: =J19/$J$29 -> 0.0211792574
G19: R$ | H19: =$J19*H18 -> 7748.14 | I19: =$J19*I18 -> 7748.14 | J19: =VLOOKUP($B18,ORC,16,0) -> 15496.28
B20: 6 | C20: =VLOOKUP(B20,ORC,2,0) -> ASSENTAMENTO DAS GALERIAS E DOS RAMAIS DE LIGAÇÃO | G20: % | H20: 0.5 | I20: 0.5 | J20: =J21/$J$29 -> 0.07760193362
G21: R$ | H21: =$J21*H20 -> 28389.6 | I21: =$J21*I20 -> 28389.6 | J21: =VLOOKUP($B20,ORC,16,0) -> 56779.2
B22: 7 | C22: =VLOOKUP(B22,ORC,2,0) -> ESTRUTURA E DISPOSITIVOS HIDRÁULICOS | G22: % | H22: 0.5 | I22: 0.5 | J22: =J23/$J$29 -> 0.3337825234
G23: R$ | H23: =$J23*H22 -> 122109.745 | I23: =$J23*I22 -> 122109.745 | J23: =VLOOKUP($B22,ORC,16,0) -> 244219.49
B24: 8 | C24: =VLOOKUP(B24,ORC,2,0) -> PAVIMENTAÇÃO | G24: % | H24: 0.5 | I24: 0.5 | J24: =J25/$J$29 -> 0.294521009
G25: R$ | H25: =$J25*H24 -> 107746.46 | I25: =$J25*I24 -> 107746.46 | J25: =VLOOKUP($B24,ORC,16,0) -> 215492.92
B26: 9 | C26: =VLOOKUP(B26,ORC,2,0) -> LIMPEZA DIÁRIA DA OBRA | G26: % | H26: 0.5 | I26: 0.5 | J26: =J27/$J$29 -> 0.02707188021
G27: R$ | H27: =$J27*H26 -> 9903.875 | I27: =$J27*I26 -> 9903.875 | J27: =VLOOKUP($B26,ORC,16,0) -> 19807.75
B28: TOTAL | J28: =J29/$J$29 -> 1
J29: =J11+J21+J23+J27+J13+J15+J17+J19+J25 -> 731672.49
E34: RESPONSÁVEL TÉCNICO: | H34: =ORC!H377 -> Flávia Cristina Barbosa
H35: =ORC!H378 -> CREA: MG 187.842/D

Sheet CPU
A2: ="COMPOSIÇÕES - " &A4 -> COMPOSIÇÕES - AVENIDA SÃO FRANCISCO INTERLIGAÇÃO COM AVENIDA NOROESTE | L2: Revisão: | M2: =ORC!Q8 -> R01
A3: Projeto: | E3: Cliente: | L3: Responsável:
A4: =ORC!B10 -> AVENIDA SÃO FRANCISCO INTERLIGAÇÃO COM AVENIDA NOROESTE
A7: Data: | C7: =ORC!D13 -> 2021-04-29 | L7: =ORC!O13 -> SINAPI | M7: =ORC!P13 -> 2021-03-01
A8: BDI | C8: =ORC!D14 -> 0.2423 | L8: =ORC!O14 -> SETOP | M8: =ORC!P14 -> 2021-01-01
A9: ="PROJETO EXECUTIVO - "&A4 -> PROJETO EXECUTIVO - AVENIDA SÃO FRANCISCO INTERLIGAÇÃO COM AVENIDA NOROESTE
A11: CÓDIGO | B11: DESCRIÇÃO | I11: REFERÊNCIA | J11: UNID. | K11: COEFICIENTE | L11: PREÇO UNIT. | M11: TOTAL
A12: 0 | B12: DIVERSOS
A13: DAC-0.1 | B13: CIMBRAMENTO-ESCORAMENTO DE FORMAS DE H=3,00 A 3,50M, COM MADEIRA 3A QUALIDADE, NÃO APARELHADA, APROVEITAMENTO TABUAS 3X E PRUMOS 4X | I13: CPU | J13: U | K13: 1 | M13: =SUM(M14:M18) -> 27.9879717
A14: 4448 | B14: =IF(I14="SINAPI",VLOOKUP(A14,SINAPI,2,0),IF(I14="SETOP",VLOOKUP(A14,SETOP,3,0),IF(I14="CPU",VLOOKUP(A14,COMPOSIÇÃO,2,0),VLOOKUP(A14,COTAÇÃO,3,0)))) -> VIGA *7,5 X 15 CM EM PINUS, MISTA OU EQUIVALENTE DA REGIAO - BRUTA | I14: SINAPI | J14: =IF(I14="SINAPI",VLOOKUP(A14,SINAPI,3,0),IF(I14="SETOP",VLOOKUP(A14,SETOP,4,0),IF(I14="CPU",VLOOKUP(A14,COMPOSIÇÃO,10,0),VLOOKUP(A14,COTAÇÃO,12,0)))) -> M | K14: 0.17875 | L14: =IF(I14="SINAPI",VLOOKUP(A14,SINAPI,4,0),IF(I14="SETOP",VLOOKUP(A14,SETOP,5,0),IF(I14="CPU",VLOOKUP(A14,COMPOSIÇÃO,13,0),VLOOKUP(A14,COTAÇÃO,15,0)))) -> 14.67 | M14: =K14*L14 -> 2.6222625
A15: 5075 | B15: PREGO DE ACO POLIDO COM CABECA 18 X 30 (2 3/4 X 10) | I15: SINAPI | J15: KG | K15: 0.078 | L15: 15.26 | M15: =K15*L15 -> 1.19028
A16: 6189 | B16: TABUA NAO APARELHADA *2,5 X 30* CM, EM MACARANDUBA, ANGELIM OU EQUIVALENTE DA REGIAO - BRUTA | I16: SINAPI | J16: M | K16: 0.377 | L16: 34.65 | M16: 13.06305
A17: 88262 | B17: =IF(I17="SINAPI",VLOOKUP(A17,SINAPI,2,0),IF(I17="SETOP",VLOOKUP(A17,SETOP,3,0),IF(I17="CPU",VLOOKUP(A17,COMPOSIÇÃO,2,0),VLOOKUP(A17,COTAÇÃO,3,0)))) -> CARPINTEIRO DE FORMAS COM ENCARGOS COMPLEMENTARES | I17: SINAPI | J17: =IF(I17="SINAPI",VLOOKUP(A17,SINAPI,3,0),IF(I17="SETOP",VLOOKUP(A17,SETOP,4,0),IF(I17="CPU",VLOOKUP(A17,COMPOSIÇÃO,10,0),VLOOKUP(A17,COTAÇÃO,12,0)))) -> H | K17: 0.377 | L17: =IF(I17="SINAPI",VLOOKUP(A17,SINAPI,4,0),IF(I17="SETOP",VLOOKUP(A17,SETOP,5,0),IF(I17="CPU",VLOOKUP(A17,COMPOSIÇÃO,13,0),VLOOKUP(A17,COTAÇÃO,15,0)))) -> 21.87 | M17: =K17*L17 -> 8.24499
A18: 88316 | B18: SERVENTE COM ENCARGOS COMPLEMENTARES | I18: SINAPI | J18: H | K18: 0.18252 | L18: 15.71 | M18: 2.8673892
A20: 1 | B20: =VLOOKUP(A20,ORC,2,3) -> ADMINISTRAÇAÕ DE OBRA
A21: DAC-1.1 | B21: INSTALAÇÃO DAS SINALIZAÇÕES DE SEGURANÇA | I21: CPU | J21: M | K21: 1 | M21: =SUM(M22:XFD22) -> 1.571
A22: 88316 | B22: =IF(I22="SINAPI",VLOOKUP(A22,SINAPI,2,0),IF(I22="SETOP",VLOOKUP(A22,SETOP,3,0),IF(I22="CPU",VLOOKUP(A22,COMPOSIÇÃO,2,0),VLOOKUP(A22,COTAÇÃO,3,0)))) -> SERVENTE COM ENCARGOS COMPLEMENTARES | I22: SINAPI | J22: =IF(I22="SINAPI",VLOOKUP(A22,SINAPI,3,0),IF(I22="SETOP",VLOOKUP(A22,SETOP,4,0),IF(I22="CPU",VLOOKUP(A22,COMPOSIÇÃO,10,0),VLOOKUP(A22,COTAÇÃO,12,0)))) -> H | K22: 0.1 | L22: =IF(I22="SINAPI",VLOOKUP(A22,SINAPI,4,0),IF(I22="SETOP",VLOOKUP(A22,SETOP,5,0),IF(I22="CPU",VLOOKUP(A22,COMPOSIÇÃO,13,0),VLOOKUP(A22,COTAÇÃO,15,0)))) -> 15.71 | M22: =K22*L22 -> 1.571
A23: 2 | B23: =VLOOKUP(A23,ORC,2,3) -> SERVIÇOS PRELIMINARES
A24: DAC-2.1 | B24: SERVIÇOS PRELIMINARES PARA LOCAÇÃO PELO MÉTODO DAS CRUZETAS | I24: CPU | J24: U | K24: 1 | M24: =SUM(M25:M29) -> 376.09
A25: 7592 | B25: =IF(I25="SINAPI",VLOOKUP(A25,SINAPI,2,0),IF(I25="SETOP",VLOOKUP(A25,SETOP,3,0),IF(I25="CPU",VLOOKUP(A25,COMPOSIÇÃO,2,0),VLOOKUP(A25,COTAÇÃO,3,0)))) -> TOPOGRAFO | I25: SINAPI | J25: =IF(I25="SINAPI",VLOOKUP(A25,SINAPI,3,0),IF(I25="SETOP",VLOOKUP(A25,SETOP,4,0),IF(I25="CPU",VLOOKUP(A25,COMPOSIÇÃO,10,0),VLOOKUP(A25,COTAÇÃO,12,0)))) -> H | K25: 1 | L25: =IF(I25="SINAPI",VLOOKUP(A25,SINAPI,4,0),IF(I25="SETOP",VLOOKUP(A25,SETOP,5,0),IF(I25="CPU",VLOOKUP(A25,COMPOSIÇÃO,13,0),VLOOKUP(A25,COTAÇÃO,15,0)))) -> 33.87 | M25: =K25*L25 -> 33.87
A26: 20206 | B26: SARRAFO APARELHADO *2 X 10* CM, EM MACARANDUBA, ANGELIM OU EQUIVALENTE DA REGIAO | I26: SINAPI | J26: M | K26: 12 | L26: 11.55 | M26: =K26*L26 -> 138.6
A27: 4491 | B27: PONTALETE *7,5 X 7,5* CM EM PINUS, MISTA OU EQUIVALENTE DA REGIAO - BRUTA | I27: SINAPI | J27: M | K27: 30 | L27: 5.54 | M27: 166.2
A28: 88262 | B28: =IF(I28="SINAPI",VLOOKUP(A28,SINAPI,2,0),IF(I28="SETOP",VLOOKUP(A28,SETOP,3,0),IF(I28="CPU",VLOOKUP(A28,COMPOSIÇÃO,2,0),VLOOKUP(A28,COTAÇÃO,3,0)))) -> CARPINTEIRO DE FORMAS COM ENCARGOS COMPLEMENTARES | I28: SINAPI | J28: =IF(I28="SINAPI",VLOOKUP(A28,SINAPI,3,0),IF(I28="SETOP",VLOOKUP(A28,SETOP,4,0),IF(I28="CPU",VLOOKUP(A28,COMPOSIÇÃO,10,0),VLOOKUP(A28,COTAÇÃO,12,0)))) -> H | K28: 1 | L28: =IF(I28="SINAPI",VLOOKUP(A28,SINAPI,4,0),IF(I28="SETOP",VLOOKUP(A28,SETOP,5,0),IF(I28="CPU",VLOOKUP(A28,COMPOSIÇÃO,13,0),VLOOKUP(A28,COTAÇÃO,15,0)))) -> 21.87 | M28: 21.87
A29: 5073 | B29: PREGO DE ACO POLIDO COM CABECA 17 X 24 (2 1/4 X 11) | I29: SINAPI | J29: KG | K29: 1 | L29: 15.55 | M29: 15.55
A31: DAC-2.2 | B31: EXECUÇÃO DA LOCAÇÃO PELO MÉTODO DA CRUZETA | I31: CPU | J31: M | K31: 1 | M31: =SUM(M32:M33) -> 9.45
A32: 88309 | B32: =IF(I32="SINAPI",VLOOKUP(A32,SINAPI,2,0),IF(I32="SETOP",VLOOKUP(A32,SETOP,3,0),IF(I32="CPU",VLOOKUP(A32,COMPOSIÇÃO,2,0),VLOOKUP(A32,COTAÇÃO,3,0)))) -> PEDREIRO COM ENCARGOS COMPLEMENTARES | I32: SINAPI | J32: =IF(I32="SINAPI",VLOOKUP(A32,SINAPI,3,0),IF(I32="SETOP",VLOOKUP(A32,SETOP,4,0),IF(I32="CPU",VLOOKUP(A32,COMPOSIÇÃO,10,0),VLOOKUP(A32,COTAÇÃO,12,0)))) -> H | K32: 0.25 | L32: =IF(I32="SINAPI",VLOOKUP(A32,SINAPI,4,0),IF(I32="SETOP",VLOOKUP(A32,SETOP,5,0),IF(I32="CPU",VLOOKUP(A32,COMPOSIÇÃO,13,0),VLOOKUP(A32,COTAÇÃO,15,0)))) -> 22.09 | M32: =K32*L32 -> 5.5225
A33: 88316 | B33: =IF(I33="SINAPI",VLOOKUP(A33,SINAPI,2,0),IF(I33="SETOP",VLOOKUP(A33,SETOP,3,0),IF(I33="CPU",VLOOKUP(A33,COMPOSIÇÃO,2,0),VLOOKUP(A33,COTAÇÃO,3,0)))) -> SERVENTE COM ENCARGOS COMPLEMENTARES | I33: SINAPI | J33: =IF(I33="SINAPI",VLOOKUP(A33,SINAPI,3,0),IF(I33="SETOP",VLOOKUP(A33,SETOP,4,0),IF(I33="CPU",VLOOKUP(A33,COMPOSIÇÃO,10,0),VLOOKUP(A33,COTAÇÃO,12,0)))) -> H | K33: 0.25 | L33: =IF(I33="SINAPI",VLOOKUP(A33,SINAPI,4,0),IF(I33="SETOP",VLOOKUP(A33,SETOP,5,0),IF(I33="CPU",VLOOKUP(A33,COMPOSIÇÃO,13,0),VLOOKUP(A33,COTAÇÃO,15,0)))) -> 15.71 | M33: =K33*L33 -> 3.9275
A35: 3 | B35: =VLOOKUP(A35,ORC,2,3) -> MOVIMENTAÇÃO DE TERRA
A36: DAC-3.1 | B36: GERADOR PARA BOMBA DE ESGOTAMENTO | I36: CPU | J36: DIA | K36: 1 | M36: =SUM(M37:M38) -> 204.64
A37: =COT!A10 -> COT-195 | B37: =IF(I37="SINAPI",VLOOKUP(A37,SINAPI,2,0),IF(I37="SETOP",VLOOKUP(A37,SETOP,3,0),IF(I37="CPU",VLOOKUP(A37,COMPOSIÇÃO,2,0),VLOOKUP(A37,COTAÇÃO,3,0)))) -> LOCAÇÃO DE GERADOR PARA BOMBA DE ESGOTAMENTO COM POTÊNCIA DE 1C-COM TRANSPORTE ATÉ O LOCAL DA OBRA (QUALQUER MUDANÇA DO GERADOR SERÁ POR CONTA DA EXECUTORA), NÃO INCLUI O COMBUSTIVEL | I37: COTAÇÃO | J37: =IF(I37="SINAPI",VLOOKUP(A37,SINAPI,3,0),IF(I37="SETOP",VLOOKUP(A37,SETOP,4,0),IF(I37="CPU",VLOOKUP(A37,COMPOSIÇÃO,10,0),VLOOKUP(A37,COTAÇÃO,12,0)))) -> D | K37: 1 | L37: =IF(I37="SINAPI",VLOOKUP(A37,SINAPI,4,0),IF(I37="SETOP",VLOOKUP(A37,SETOP,5,0),IF(I37="CPU",VLOOKUP(A37,COMPOSIÇÃO,13,0),VLOOKUP(A37,COTAÇÃO,15,0)))) -> 120 | M37: =K37*L37 -> 120
A38: =COT!A13 -> COT-623 | B38: =IF(I38="SINAPI",VLOOKUP(A38,SINAPI,2,0),IF(I38="SETOP",VLOOKUP(A38,SETOP,3,0),IF(I38="CPU",VLOOKUP(A38,COMPOSIÇÃO,2,0),VLOOKUP(A38,COTAÇÃO,3,0)))) -> COMBUSTIVEL PARA GERADOR | I38: COTAÇÃO | J38: =IF(I38="SINAPI",VLOOKUP(A38,SINAPI,3,0),IF(I38="SETOP",VLOOKUP(A38,SETOP,4,0),IF(I38="CPU",VLOOKUP(A38,COMPOSIÇÃO,10,0),VLOOKUP(A38,COTAÇÃO,12,0)))) -> U | K38: 16 | L38: =IF(I38="SINAPI",VLOOKUP(A38,SINAPI,4,0),IF(I38="SETOP",VLOOKUP(A38,SETOP,5,0),IF(I38="CPU",VLOOKUP(A38,COMPOSIÇÃO,13,0),VLOOKUP(A38,COTAÇÃO,15,0)))) -> 5.29 | M38: =K38*L38 -> 84.64
K39: *CONSIDEROU-SE 8 HORAS POR DIA E 2 LITROS POR HORA
A41: 7 | B41: =VLOOKUP(A41,ORC,2,3) -> ESTRUTURA E DISPOSITIVOS HIDRÁULICOS
A42: DAC-7.1 | B42: POÇO DE VISITA - α (Ø 600 ÁTE 1000), INCLUINDO CIMBRAMENTO, CHAMINÉ E FORNECIMENTO DE TODOS OS MATERIAIS-PADRÃO DER-SP | I42: CPU | J42: U | K42: 1 | M42: =SUM(M43:M48) -> 11386.06165
A43: ED-49787 | B43: =IF(I43="SINAPI",VLOOKUP(A43,SINAPI,2,0),IF(I43="SETOP",VLOOKUP(A43,SETOP,3,0),IF(I43="CPU",VLOOKUP(A43,COMPOSIÇÃO,2,0),VLOOKUP(A43,COTAÇÃO,3,0)))) -> FORNECIMENTO DE CONCRETO ESTRUTURAL, PREPARADO EM OBRA COM BETONEIRA, COM FCK 25 MPA, INCLUSIVE LANÇAMENTO, ADENSAMENTO E ACABAMENTO (FUNDAÇÃO) | I43: SETOP | J43: =IF(I43="SINAPI",VLOOKUP(A43,SINAPI,3,0),IF(I43="SETOP",VLOOKUP(A43,SETOP,4,0),IF(I43="CPU",VLOOKUP(A43,COMPOSIÇÃO,10,0),VLOOKUP(A43,COTAÇÃO,12,0)))) -> M3 | K43: 5.27 | L43: =IF(I43="SINAPI",VLOOKUP(A43,SINAPI,4,0),IF(I43="SETOP",VLOOKUP(A43,SETOP,5,0),IF(I43="CPU",VLOOKUP(A43,COMPOSIÇÃO,13,0),VLOOKUP(A43,COTAÇÃO,15,0)))) -> 491.75 | M43: =K43*L43 -> 2591.5225
A44: ED-49810 | B44: FORMA E DESFORMA DE TÁBUA E SARRAFO, REAPROVEITAMENTO (3X) (FUNDAÇÃO) | I44: SETOP | J44: M2 | K44: 44.57 | L44: 40.56 | M44: =K44*L44 -> 1807.7592
A45: ED-49782 | B45: FORNECIMENTO DE CONCRETO NÃO ESTRUTURAL, PREPARADO EM OBRA COM BETONEIRA, COM FCK 10 MPA, INCLUSIVE LANÇAMENTO, ADENSAMENTO E ACABAMENTO (FUNDAÇÃO) | I45: SETOP | J45: M3 | K45: 0.2 | L45: 435.78 | M45: 87.156
A46: ED-49786 | B46: FORNECIMENTO DE CONCRETO ESTRUTURAL, PREPARADO EM OBRA COM BETONEIRA, COM FCK 20 MPA, INCLUSIVE LANÇAMENTO, ADENSAMENTO E ACABAMENTO (FUNDAÇÃO) | I46: SETOP | J46: M3 | K46: 0.47 | L46: 477.06 | M46: 224.2182
A47: DAC-0.1 | B47: CIMBRAMENTO-ESCORAMENTO DE FORMAS DE H=3,00 A 3,50M, COM MADEIRA 3A QUALIDADE, NÃO APARELHADA, APROVEITAMENTO TABUAS 3X E PRUMOS 4X | I47: CPU | J47: U | K47: 3.18 | L47: 27.9879717 | M47: =K47*L47 -> 89.00175001
A48: ED-48298 | B48: CORTE, DOBRA E MONTAGEM DE AÇO CA-50/60 | I48: SETOP | J48: KG | K48: 535.48 | L48: 12.3 | M48: 6586.404
A50: DAC-7.2 | B50: POÇO DE VISITA - β (Ø 600 ÁTE 1000), INCLUINDO CIMBRAMENTO, CHAMINÉ, DISSIPADOR E FORNECIMENTO DE TODOS OS MATERIAIS-PADRÃO DER-SP | I50: CPU | J50: U | K50: 1 | M50: =SUM(M51:M56) -> 19353.51129
A51: ED-49787 | B51: =IF(I51="SINAPI",VLOOKUP(A51,SINAPI,2,0),IF(I51="SETOP",VLOOKUP(A51,SETOP,3,0),IF(I51="CPU",VLOOKUP(A51,COMPOSIÇÃO,2,0),VLOOKUP(A51,COTAÇÃO,3,0)))) -> FORNECIMENTO DE CONCRETO ESTRUTURAL, PREPARADO EM OBRA COM BETONEIRA, COM FCK 25 MPA, INCLUSIVE LANÇAMENTO, ADENSAMENTO E ACABAMENTO (FUNDAÇÃO) | I51: SETOP | J51: =IF(I51="SINAPI",VLOOKUP(A51,SINAPI,3,0),IF(I51="SETOP",VLOOKUP(A51,SETOP,4,0),IF(I51="CPU",VLOOKUP(A51,COMPOSIÇÃO,10,0),VLOOKUP(A51,COTAÇÃO,12,0)))) -> M3 | K51: 7.09 | L51: =IF(I51="SINAPI",VLOOKUP(A51,SINAPI,4,0),IF(I51="SETOP",VLOOKUP(A51,SETOP,5,0),IF(I51="CPU",VLOOKUP(A51,COMPOSIÇÃO,13,0),VLOOKUP(A51,COTAÇÃO,15,0)))) -> 491.75 | M51: 3486.5075
A52: ED-8571 | B52: FORMA E DESFORMA DE COMPENSADO PLASTIFICADO, ESP. 12MM, REAPROVEITAMENTO (3X) (FUNDAÇÃO) | I52: SETOP | J52: M2 | K52: 59.54 | L52: 41.86 | M52: 2492.3444
A53: ED-49782 | B53: FORNECIMENTO DE CONCRETO NÃO ESTRUTURAL, PREPARADO EM OBRA COM BETONEIRA, COM FCK 10 MPA, INCLUSIVE LANÇAMENTO, ADENSAMENTO E ACABAMENTO (FUNDAÇÃO) | I53: SETOP | J53: M3 | K53: 0.2 | L53: 435.78 | M53: 87.156
A54: ED-49786 | B54: FORNECIMENTO DE CONCRETO ESTRUTURAL, PREPARADO EM OBRA COM BETONEIRA, COM FCK 20 MPA, INCLUSIVE LANÇAMENTO, ADENSAMENTO E ACABAMENTO (FUNDAÇÃO) | I54: SETOP | J54: M3 | K54: 5.68 | L54: 477.06 | M54: 2709.7008
A55: DAC-0.1 | B55: CIMBRAMENTO-ESCORAMENTO DE FORMAS DE H=3,00 A 3,50M, COM MADEIRA 3A QUALIDADE, NÃO APARELHADA, APROVEITAMENTO TABUAS 3X E PRUMOS 4X | I55: CPU | J55: U | K55: 0.45 | L55: 27.9879717 | M55: 12.59458726
A56: ED-48298 | B56: CORTE, DOBRA E MONTAGEM DE AÇO CA-50/60 | I56: SETOP | J56: KG | K56: 858.96 | L56: 12.3 | M56: 10565.208
A58: DAC-7.3 | B58: BOCA DE LOBO DUPLA TIPO A-FERRO FUNDIDO. INCLUSO QUADRO, GRELHA ,CANTONEIRA, ESCAVAÇÃO, REATERRO E BOTA-FORA | I58: CPU | J58: U | K58: 1 | M58: =SUM(M59:M68) -> 2037.1247
A59: MATED-12826 | B59: CONJUNTO QUADRO E GRELHA DE FERRO FUNDIDO P=199 KG PARA BOCA DE LOBO | I59: SETOP | J59: U | K59: 1 | L59: 995 | M59: 995
A60: MATED-12823 | B60: CANTONEIRA PARA BOCA DE LOBO EM FºFº | I60: SETOP | J60: U | K60: 1 | L60: 344 | M60: =K60*L60 -> 344
A61: ED-48228 | B61: =IF(I61="SINAPI",VLOOKUP(A61,SINAPI,2,0),IF(I61="SETOP",VLOOKUP(A61,SETOP,3,0),IF(I61="CPU",VLOOKUP(A61,COMPOSIÇÃO,2,0),VLOOKUP(A61,COTAÇÃO,3,0)))) -> ALVENARIA DE VEDAÇÃO COM TIJOLO MACIÇO REQUEIMADO, ESP. 20CM, PARA REVESTIMENTO, INCLUSIVE ARGAMASSA PARA ASSENTAMENTO | I61: SETOP | J61: =IF(I61="SINAPI",VLOOKUP(A61,SINAPI,3,0),IF(I61="SETOP",VLOOKUP(A61,SETOP,4,0),IF(I61="CPU",VLOOKUP(A61,COMPOSIÇÃO,10,0),VLOOKUP(A61,COTAÇÃO,12,0)))) -> M2 | K61: 3.72 | L61: =IF(I61="SINAPI",VLOOKUP(A61,SINAPI,4,0),IF(I61="SETOP",VLOOKUP(A61,SETOP,5,0),IF(I61="CPU",VLOOKUP(A61,COMPOSIÇÃO,13,0),VLOOKUP(A61,COTAÇÃO,15,0)))) -> 90.2 | M61: 335.544
A62: RO-41762 | B62: ARGAMASSA DE CIMENTO E AREIA TRAÇO 1:3 (EXECUÇÃO, INCLUINDO FORNECIMENTO E TRANSPORTE DE TODOS OS MATERIAIS) | I62: SETOP | J62: M3 | K62: 0.06 | L62: 433.53 | M62: 26.0118
A63: ED-49618 | B63: FORNECIMENTO DE CONCRETO ESTRUTURAL, PREPARADO EM OBRA, COM FCK 20 MPA, INCLUSIVE LANÇAMENTO, ADENSAMENTO E ACABAMENTO | I63: SETOP | J63: M3 | K63: 0.21 | L63: 493.55 | M63: 103.6455
A64: ED-51107 | B64: ESCAVAÇÃO MANUAL DE VALAS H <= 1,50 M | I64: SETOP | J64: M3 | K64: 1.68 | L64: 47.94 | M64: 80.5392
A65: ED-49810 | B65: FORMA E DESFORMA DE TÁBUA E SARRAFO, REAPROVEITAMENTO (3X) (FUNDAÇÃO) | I65: SETOP | J65: M2 | K65: 0.22 | L65: 40.56 | M65: 8.9232
A66: ED-50381 | B66: PEDREIRO COM ENCARGOS COMPLEMENTARES | I66: SETOP | J66: HORA | K66: 2.5 | L66: 19.63 | M66: 49.075
A67: ED-50367 | B67: SERVENTE COM ENCARGOS COMPLEMENTARES | I67: SETOP | J67: HORA | K67: 2.5 | L67: 14.1 | M67: 35.25
A68: ED-51130 | B68: TRANSPORTE DE MATERIAL DE QUALQUER NATUREZA EM CAMINHÃO DMT > 5 KM (DENTRO DO PERÍMETRO URBANO) | I68: SETOP | J68: M3XKM | K68: =K64*11 -> 18.48 | L68: 3.2 | M68: 59.136
A70: DAC-7.4 | B70: BOCA DE LOBO TRIPLA TIPO A-FERRO FUNDIDO. INCLUSO QUADRO, GRELHA ,CANTONEIRA, ESCAVAÇÃO, REATERRO E BOTA-FORA | I70: CPU | J70: U | K70: 1 | M70: =SUM(M71:M80) -> 3512.7163
A71: MATED-12826 | B71: CONJUNTO QUADRO E GRELHA DE FERRO FUNDIDO P=199 KG PARA BOCA DE LOBO | I71: SETOP | J71: U | K71: 2 | L71: 995 | M71: =K71*L71 -> 1990
A72: MATED-12823 | B72: CANTONEIRA PARA BOCA DE LOBO EM FºFº | I72: SETOP | J72: U | K72: 1 | L72: 344 | M72: 344
A73: ED-48228 | B73: =IF(I73="SINAPI",VLOOKUP(A73,SINAPI,2,0),IF(I73="SETOP",VLOOKUP(A73,SETOP,3,0),IF(I73="CPU",VLOOKUP(A73,COMPOSIÇÃO,2,0),VLOOKUP(A73,COTAÇÃO,3,0)))) -> ALVENARIA DE VEDAÇÃO COM TIJOLO MACIÇO REQUEIMADO, ESP. 20CM, PARA REVESTIMENTO, INCLUSIVE ARGAMASSA PARA ASSENTAMENTO | I73: SETOP | J73: =IF(I73="SINAPI",VLOOKUP(A73,SINAPI,3,0),IF(I73="SETOP",VLOOKUP(A73,SETOP,4,0),IF(I73="CPU",VLOOKUP(A73,COMPOSIÇÃO,10,0),VLOOKUP(A73,COTAÇÃO,12,0)))) -> M2 | K73: 6.12 | L73: =IF(I73="SINAPI",VLOOKUP(A73,SINAPI,4,0),IF(I73="SETOP",VLOOKUP(A73,SETOP,5,0),IF(I73="CPU",VLOOKUP(A73,COMPOSIÇÃO,13,0),VLOOKUP(A73,COTAÇÃO,15,0)))) -> 90.2 | M73: 552.024
A74: RO-41762 | B74: ARGAMASSA DE CIMENTO E AREIA TRAÇO 1:3 (EXECUÇÃO, INCLUINDO FORNECIMENTO E TRANSPORTE DE TODOS OS MATERIAIS) | I74: SETOP | J74: M3 | K74: 0.11 | L74: 433.53 | M74: 47.6883
A75: ED-49618 | B75: FORNECIMENTO DE CONCRETO ESTRUTURAL, PREPARADO EM OBRA, COM FCK 20 MPA, INCLUSIVE LANÇAMENTO, ADENSAMENTO E ACABAMENTO | I75: SETOP | J75: M3 | K75: 0.4 | L75: 493.55 | M75: 197.42
A76: ED-51107 | B76: ESCAVAÇÃO MANUAL DE VALAS H <= 1,50 M | I76: SETOP | J76: M3 | K76: 3.19 | L76: 47.94 | M76: 152.9286
A77: ED-49810 | B77: FORMA E DESFORMA DE TÁBUA E SARRAFO, REAPROVEITAMENTO (3X) (FUNDAÇÃO) | I77: SETOP | J77: M2 | K77: 0.79 | L77: 40.56 | M77: 32.0424
A78: ED-50381 | B78: PEDREIRO COM ENCARGOS COMPLEMENTARES | I78: SETOP | J78: HORA | K78: 2.5 | L78: 19.63 | M78: 49.075
A79: ED-50367 | B79: SERVENTE COM ENCARGOS COMPLEMENTARES | I79: SETOP | J79: HORA | K79: 2.5 | L79: 14.1 | M79: 35.25
A80: ED-51130 | B80: TRANSPORTE DE MATERIAL DE QUALQUER NATUREZA EM CAMINHÃO DMT > 5 KM (DENTRO DO PERÍMETRO URBANO) | I80: SETOP | J80: M3XKM | K80: =K76*11 -> 35.09 | L80: 3.2 | M80: 112.288
A82: DAC-7.5 | B82: DISSIPADOR DE ENERGIA PARA GALERIA DE DN 800, ENROCAMENTO DE PEDRA ARGAMASSADA | I82: CPU | J82: U | K82: 1 | M82: =SUM(M83:M88) -> 1297.456429
A83: RO-41762 | B83: =IF(I83="SINAPI",VLOOKUP(A83,SINAPI,2,0),IF(I83="SETOP",VLOOKUP(A83,SETOP,3,0),IF(I83="CPU",VLOOKUP(A83,COMPOSIÇÃO,2,0),VLOOKUP(A83,COTAÇÃO,3,0)))) -> ARGAMASSA DE CIMENTO E AREIA TRAÇO 1:3 (EXECUÇÃO, INCLUINDO FORNECIMENTO E TRANSPORTE DE TODOS OS MATERIAIS) | I83: SETOP | J83: =IF(I83="SINAPI",VLOOKUP(A83,SINAPI,3,0),IF(I83="SETOP",VLOOKUP(A83,SETOP,4,0),IF(I83="CPU",VLOOKUP(A83,COMPOSIÇÃO,10,0),VLOOKUP(A83,COTAÇÃO,12,0)))) -> M3 | K83: =((1.2+2.96)*(3*0.8)*0.3+(0.3*0.3*(1.2+2.96)))*0.3 -> 1.01088 | L83: =IF(I83="SINAPI",VLOOKUP(A83,SINAPI,4,0),IF(I83="SETOP",VLOOKUP(A83,SETOP,5,0),IF(I83="CPU",VLOOKUP(A83,COMPOSIÇÃO,13,0),VLOOKUP(A83,COTAÇÃO,15,0)))) -> 433.53 | M83: =K83*L83 -> 438.2468064
A84: ED-14560 | B84: LASTRO DE SEIXO, INCLUSIVE LANÇAMENTO E ESPALHAMENTO MANUAL | I84: SETOP | J84: M3 | K84: =((1.2+2.96)*(3*0.8)*0.3+(0.3*0.3*(1.2+2.96)))*0.7 -> 2.35872 | L84: 115.43 | M84: 272.2670496
A85: ED-49810 | B85: FORMA E DESFORMA DE TÁBUA E SARRAFO, REAPROVEITAMENTO (3X) (FUNDAÇÃO) | I85: SETOP | J85: M2 | K85: =(2*(1.2+2.96+3*0.8)*0.3)+(2*(1.2+2.96+0.3)*0.3) -> 6.612 | L85: 40.56 | M85: 268.18272
A86: ED-50381 | B86: PEDREIRO COM ENCARGOS COMPLEMENTARES | I86: SETOP | J86: HORA | K86: 8 | L86: 19.63 | M86: 157.04
A87: ED-50367 | B87: SERVENTE COM ENCARGOS COMPLEMENTARES | I87: SETOP | J87: HORA | K87: 8 | L87: 14.1 | M87: 112.8
A88: 95877 | B88: TRANSPORTE COM CAMINHÃO BASCULANTE DE 18 M³, EM VIA URBANA PAVIMENTADA, DMT ATÉ 30 KM (UNIDADE: M3XKM). AF_07/2020 | I88: SINAPI | J88: M3XKM | K88: =(K84)*17 -> 40.09824 | L88: 1.22 | M88: 48.9198528
A90: DAC-7.6 | B90: DESCIDA D'ÁGUA TIPO DEGRAU DN 800, INCLUSIVE APILOAMENTO E BOTA FORA | I90: CPU | J90: M | K90: 1 | M90: =SUM(M91:M97) -> 849.9129
A91: ED-49786 | B91: =IF(I91="SINAPI",VLOOKUP(A91,SINAPI,2,0),IF(I91="SETOP",VLOOKUP(A91,SETOP,3,0),IF(I91="CPU",VLOOKUP(A91,COMPOSIÇÃO,2,0),VLOOKUP(A91,COTAÇÃO,3,0)))) -> FORNECIMENTO DE CONCRETO ESTRUTURAL, PREPARADO EM OBRA COM BETONEIRA, COM FCK 20 MPA, INCLUSIVE LANÇAMENTO, ADENSAMENTO E ACABAMENTO (FUNDAÇÃO) | I91: SETOP | J91: =IF(I91="SINAPI",VLOOKUP(A91,SINAPI,3,0),IF(I91="SETOP",VLOOKUP(A91,SETOP,4,0),IF(I91="CPU",VLOOKUP(A91,COMPOSIÇÃO,10,0),VLOOKUP(A91,COTAÇÃO,12,0)))) -> M3 | K91: 0.94 | L91: =IF(I91="SINAPI",VLOOKUP(A91,SINAPI,4,0),IF(I91="SETOP",VLOOKUP(A91,SETOP,5,0),IF(I91="CPU",VLOOKUP(A91,COMPOSIÇÃO,13,0),VLOOKUP(A91,COTAÇÃO,15,0)))) -> 477.06 | M91: =K91*L91 -> 448.4364
A92: ED-8571 | B92: FORMA E DESFORMA DE COMPENSADO PLASTIFICADO, ESP. 12MM, REAPROVEITAMENTO (3X) (FUNDAÇÃO) | I92: SETOP | J92: M2 | K92: 4.65 | L92: 41.86 | M92: 194.649
A93: ED-49782 | B93: FORNECIMENTO DE CONCRETO NÃO ESTRUTURAL, PREPARADO EM OBRA COM BETONEIRA, COM FCK 10 MPA, INCLUSIVE LANÇAMENTO, ADENSAMENTO E ACABAMENTO (FUNDAÇÃO) | I93: SETOP | J93: M3 | K93: 0.19 | L93: 435.78 | M93: 82.7982
A94: ED-48298 | B94: CORTE, DOBRA E MONTAGEM DE AÇO CA-50/60 | I94: SETOP | J94: KG | K94: 1.3 | L94: 12.3 | M94: 15.99
A95: RO-40239 | B95: =IF(I95="SINAPI",VLOOKUP(A95,SINAPI,2,0),IF(I95="SETOP",VLOOKUP(A95,SETOP,3,0),IF(I95="CPU",VLOOKUP(A95,COMPOSIÇÃO,2,0),VLOOKUP(A95,COTAÇÃO,3,0)))) -> APILOAMENTO DE FUNDO DE VALAS | I95: SETOP | J95: =IF(I95="SINAPI",VLOOKUP(A95,SINAPI,3,0),IF(I95="SETOP",VLOOKUP(A95,SETOP,4,0),IF(I95="CPU",VLOOKUP(A95,COMPOSIÇÃO,10,0),VLOOKUP(A95,COTAÇÃO,12,0)))) -> M2 | K95: 1.17 | L95: =IF(I95="SINAPI",VLOOKUP(A95,SINAPI,4,0),IF(I95="SETOP",VLOOKUP(A95,SETOP,5,0),IF(I95="CPU",VLOOKUP(A95,COMPOSIÇÃO,13,0),VLOOKUP(A95,COTAÇÃO,15,0)))) -> 2.97 | M95: =K95*L95 -> 3.4749
A96: ED-51107 | B96: ESCAVAÇÃO MANUAL DE VALAS H <= 1,50 M | I96: SETOP | J96: M3 | K96: 1.58 | L96: 47.94 | M96: 75.7452
A97: ED-51130 | B97: TRANSPORTE DE MATERIAL DE QUALQUER NATUREZA EM CAMINHÃO DMT > 5 KM (DENTRO DO PERÍMETRO URBANO) | I97: SETOP | J97: M3XKM | K97: =K96*5.7 -> 9.006 | L97: 3.2 | M97: 28.8192
A99: DAC-7.7 | B99: INSTALAÇÃO DO MATERIAL DRENANTE, BRITA 2- FORNECIMENTO E EXECUÇÃO | I99: CPU | J99: M | K99: 1 | M99: =SUM(M100:M104) -> 35.3868755
A100: 88316 | B100: =IF(I100="SINAPI",VLOOKUP(A100,SINAPI,2,0),IF(I100="SETOP",VLOOKUP(A100,SETOP,3,0),IF(I100="CPU",VLOOKUP(A100,COMPOSIÇÃO,2,0),VLOOKUP(A100,COTAÇÃO,3,0)))) -> SERVENTE COM ENCARGOS COMPLEMENTARES | I100: SINAPI | J100: =IF(I100="SINAPI",VLOOKUP(A100,SINAPI,3,0),IF(I100="SETOP",VLOOKUP(A100,SETOP,4,0),IF(I100="CPU",VLOOKUP(A100,COMPOSIÇÃO,10,0),VLOOKUP(A100,COTAÇÃO,12,0)))) -> H | K100: 2 | L100: =IF(I100="SINAPI",VLOOKUP(A100,SINAPI,4,0),IF(I100="SETOP",VLOOKUP(A100,SETOP,5,0),IF(I100="CPU",VLOOKUP(A100,COMPOSIÇÃO,13,0),VLOOKUP(A100,COTAÇÃO,15,0)))) -> 15.71 | M100: =K100*L100 -> 31.42
A101: 4718 | B101: PEDRA BRITADA N. 2 (19 A 38 MM) POSTO PEDREIRA/FORNECEDOR, SEM FRETE | I101: SINAPI | J101: M3 | K101: 0.035 | L101: 81.15 | M101: 2.84025
A102: RO-41087 | B102: =IF(I102="SINAPI",VLOOKUP(A102,SINAPI,2,0),IF(I102="SETOP",VLOOKUP(A102,SETOP,3,0),IF(I102="CPU",VLOOKUP(A102,COMPOSIÇÃO,2,0),VLOOKUP(A102,COTAÇÃO,3,0)))) -> ESCAVAÇÃO E CARGA DE MATERIAL DE JAZIDA (INCLUSIVE EXPURGO E CAPEAMENTO) | I102: SETOP | J102: =IF(I102="SINAPI",VLOOKUP(A102,SINAPI,3,0),IF(I102="SETOP",VLOOKUP(A102,SETOP,4,0),IF(I102="CPU",VLOOKUP(A102,COMPOSIÇÃO,10,0),VLOOKUP(A102,COTAÇÃO,12,0)))) -> M3 | K102: =K101*1.3 -> 0.0455 | L102: =IF(I102="SINAPI",VLOOKUP(A102,SINAPI,4,0),IF(I102="SETOP",VLOOKUP(A102,SETOP,5,0),IF(I102="CPU",VLOOKUP(A102,COMPOSIÇÃO,13,0),VLOOKUP(A102,COTAÇÃO,15,0)))) -> 5.53 | M102: =K102*L102 -> 0.251615
A103: 100978 | B103: =IF(I103="SINAPI",VLOOKUP(A103,SINAPI,2,0),IF(I103="SETOP",VLOOKUP(A103,SETOP,3,0),IF(I103="CPU",VLOOKUP(A103,COMPOSIÇÃO,2,0),VLOOKUP(A103,COTAÇÃO,3,0)))) -> CARGA, MANOBRA E DESCARGA DE SOLOS E MATERIAIS GRANULARES EM CAMINHÃO BASCULANTE 10 M³ - CARGA COM ESCAVADEIRA HIDRÁULICA (CAÇAMBA DE 1,20 M³ / 155 HP) E DESCARGA LIVRE (UNIDADE: M3). AF_07/2020 | I103: SINAPI | J103: =IF(I103="SINAPI",VLOOKUP(A103,SINAPI,3,0),IF(I103="SETOP",VLOOKUP(A103,SETOP,4,0),IF(I103="CPU",VLOOKUP(A103,COMPOSIÇÃO,10,0),VLOOKUP(A103,COTAÇÃO,12,0)))) -> M3 | K103: =K102 -> 0.0455 | L103: =IF(I103="SINAPI",VLOOKUP(A103,SINAPI,4,0),IF(I103="SETOP",VLOOKUP(A103,SETOP,5,0),IF(I103="CPU",VLOOKUP(A103,COMPOSIÇÃO,13,0),VLOOKUP(A103,COTAÇÃO,15,0)))) -> 4.58 | M103: =K103*L103 -> 0.20839
A104: 95875 | B104: =IF(I104="SINAPI",VLOOKUP(A104,SINAPI,2,0),IF(I104="SETOP",VLOOKUP(A104,SETOP,3,0),IF(I104="CPU",VLOOKUP(A104,COMPOSIÇÃO,2,0),VLOOKUP(A104,COTAÇÃO,3,0)))) -> TRANSPORTE COM CAMINHÃO BASCULANTE DE 10 M³, EM VIA URBANA PAVIMENTADA, DMT ATÉ 30 KM (UNIDADE: M3XKM). AF_07/2020 | I104: SINAPI | J104: =IF(I104="SINAPI",VLOOKUP(A104,SINAPI,3,0),IF(I104="SETOP",VLOOKUP(A104,SETOP,4,0),IF(I104="CPU",VLOOKUP(A104,COMPOSIÇÃO,10,0),VLOOKUP(A104,COTAÇÃO,12,0)))) -> M3XKM | K104: =K103*9.1 -> 0.41405 | L104: =IF(I104="SINAPI",VLOOKUP(A104,SINAPI,4,0),IF(I104="SETOP",VLOOKUP(A104,SETOP,5,0),IF(I104="CPU",VLOOKUP(A104,COMPOSIÇÃO,13,0),VLOOKUP(A104,COTAÇÃO,15,0)))) -> 1.61 | M104: =K104*L104 -> 0.6666205
A106: 8 | B106: =VLOOKUP(A106,ORC,2,3) -> PAVIMENTAÇÃO
A107: DAC-8.1 | B107: EXECUÇÃO E COMPACTAÇÃO DE BASE E OU SUB BASE COM BICA CORRIDA- EXCLUSIVE CARGA E TRANSPORTE | I107: CPU | J107: M3 | K107: 1 | M107: =SUM(M108:M117) -> 103.670407
A108: 5684 | B108: =IF(I108="SINAPI",VLOOKUP(A108,SINAPI,2,0),IF(I108="SETOP",VLOOKUP(A108,SETOP,3,0),IF(I108="CPU",VLOOKUP(A108,COMPOSIÇÃO,2,0),VLOOKUP(A108,COTAÇÃO,3,0)))) -> ROLO COMPACTADOR VIBRATÓRIO DE UM CILINDRO AÇO LISO, POTÊNCIA 80 HP, PESO OPERACIONAL MÁXIMO 8,1 T, IMPACTO DINÂMICO 16,15 / 9,5 T, LARGURA DE TRABALHO 1,68 M - CHP DIURNO. AF_06/2014 | I108: SINAPI | J108: =IF(I108="SINAPI",VLOOKUP(A108,SINAPI,3,0),IF(I108="SETOP",VLOOKUP(A108,SETOP,4,0),IF(I108="CPU",VLOOKUP(A108,COMPOSIÇÃO,10,0),VLOOKUP(A108,COTAÇÃO,12,0)))) -> CHP | K108: 0.007 | L108: =IF(I108="SINAPI",VLOOKUP(A108,SINAPI,4,0),IF(I108="SETOP",VLOOKUP(A108,SETOP,5,0),IF(I108="CPU",VLOOKUP(A108,COMPOSIÇÃO,13,0),VLOOKUP(A108,COTAÇÃO,15,0)))) -> 107.46 | M108: =K108*L108 -> 0.75222
A109: 5685 | B109: ROLO COMPACTADOR VIBRATÓRIO DE UM CILINDRO AÇO LISO, POTÊNCIA 80 HP, PESO OPERACIONAL MÁXIMO 8,1 T, IMPACTO DINÂMICO 16,15 / 9,5 T, LARGURA DE TRABALHO 1,68 M - CHI DIURNO. AF_06/2014 | I109: SINAPI | J109: CHI | K109: 0.0084 | L109: 42.74 | M109: 0.359016
A110: 5901 | B110: CAMINHÃO PIPA 10.000 L TRUCADO, PESO BRUTO TOTAL 23.000 KG, CARGA ÚTIL MÁXIMA 15.935 KG, DISTÂNCIA ENTRE EIXOS 4,8 M, POTÊNCIA 230 CV, INCLUSIVE TANQUE DE AÇO PARA TRANSPORTE DE ÁGUA - CHP DIURNO. AF_06/2014 | I110: SINAPI | J110: CHP | K110: 0.0058 | L110: 208.28 | M110: 1.208024
A111: 5903 | B111: CAMINHÃO PIPA 10.000 L TRUCADO, PESO BRUTO TOTAL 23.000 KG, CARGA ÚTIL MÁXIMA 15.935 KG, DISTÂNCIA ENTRE EIXOS 4,8 M, POTÊNCIA 230 CV, INCLUSIVE TANQUE DE AÇO PARA TRANSPORTE DE ÁGUA - CHI DIURNO. AF_06/2014 | I111: SINAPI | J111: CHI | K111: 0.0103 | L111: 42.54 | M111: 0.438162
A112: 5932 | B112: MOTONIVELADORA POTÊNCIA BÁSICA LÍQUIDA (PRIMEIRA MARCHA) 125 HP, PESO BRUTO 13032 KG, LARGURA DA LÂMINA DE 3,7 M - CHP DIURNO. AF_06/2014 | I112: SINAPI | J112: CHP | K112: 0.0077 | L112: 169.88 | M112: 1.308076
A113: 5934 | B113: MOTONIVELADORA POTÊNCIA BÁSICA LÍQUIDA (PRIMEIRA MARCHA) 125 HP, PESO BRUTO 13032 KG, LARGURA DA LÂMINA DE 3,7 M - CHI DIURNO. AF_06/2014 | I113: SINAPI | J113: CHI | K113: 0.0084 | L113: 64.34 | M113: 0.540456
A114: 88316 | B114: SERVENTE COM ENCARGOS COMPLEMENTARES | I114: SINAPI | J114: H | K114: 0.0563 | L114: 15.71 | M114: 0.884473
A115: 4748 | B115: PEDRA BRITADA OU BICA CORRIDA, NAO CLASSIFICADA (POSTO PEDREIRA/FORNECEDOR, SEM FRETE) | I115: SINAPI | J115: M3 | K115: 1.3 | L115: 74.56 | M115: 96.928
A116: 96463 | B116: ROLO COMPACTADOR DE PNEUS, ESTATICO, PRESSAO VARIAVEL, POTENCIA 110 HP, PESO SEM/COM LASTRO 10,8/27 T, LARGURA DE ROLAGEM 2,30 M - CHP DIURNO. AF_06/2017 | I116: SINAPI | J116: CHP | K116: 0.0039 | L116: 142.4 | M116: 0.55536
A117: 96464 | B117: ROLO COMPACTADOR DE PNEUS, ESTATICO, PRESSAO VARIAVEL, POTENCIA 110 HP, PESO SEM/COM LASTRO 10,8/27 T, LARGURA DE ROLAGEM 2,30 M - CHI DIURNO. AF_06/2017 | I117: SINAPI | J117: CHI | K117: 0.0122 | L117: 57.1 | M117: 0.69662
A119: DAC-8.2 | B119: EMASSAMENTO DE MATERIAL GRANULAR - RACHÃO | I119: CPU | J119: M3 | K119: 1 | M119: =SUM(M120:M121) -> 130.319
A120: 4730 | B120: =IF(I120="SINAPI",VLOOKUP(A120,SINAPI,2,0),IF(I120="SETOP",VLOOKUP(A120,SETOP,3,0),IF(I120="CPU",VLOOKUP(A120,COMPOSIÇÃO,2,0),VLOOKUP(A120,COTAÇÃO,3,0)))) -> PEDRA DE MAO OU PEDRA RACHAO PARA ARRIMO/FUNDACAO (POSTO PEDREIRA/FORNECEDOR, SEM FRETE) | I120: SINAPI | J120: =IF(I120="SINAPI",VLOOKUP(A120,SINAPI,3,0),IF(I120="SETOP",VLOOKUP(A120,SETOP,4,0),IF(I120="CPU",VLOOKUP(A120,COMPOSIÇÃO,10,0),VLOOKUP(A120,COTAÇÃO,12,0)))) -> M3 | K120: 1.2 | L120: =IF(I120="SINAPI",VLOOKUP(A120,SINAPI,4,0),IF(I120="SETOP",VLOOKUP(A120,SETOP,5,0),IF(I120="CPU",VLOOKUP(A120,COMPOSIÇÃO,13,0),VLOOKUP(A120,COTAÇÃO,15,0)))) -> 75.87 | M120: =K120*L120 -> 91.044
A121: 88316 | B121: SERVENTE COM ENCARGOS COMPLEMENTARES | I121: SINAPI | J121: H | K121: 2.5 | L121: 15.71 | M121: =K121*L121 -> 39.275
A123: DAC-8.3 | B123: BASE DE SOLO-BRITA (40/60), MISTURA EM USINA, COMPACTAÇÃO 100% PROCTOR MODIFICADO, EXCLUSIVE ESCAVAÇÃO, CARGA E TRANSPORTE | I123: CPU | J123: M3 | K123: 1 | M123: =SUM(M124:M135) -> 81.59354028
A124: 4721 | B124: =IF(I124="SINAPI",VLOOKUP(A124,SINAPI,2,0),IF(I124="SETOP",VLOOKUP(A124,SETOP,3,0),IF(I124="CPU",VLOOKUP(A124,COMPOSIÇÃO,2,0),VLOOKUP(A124,COTAÇÃO,3,0)))) -> PEDRA BRITADA N. 1 (9,5 a 19 MM) POSTO PEDREIRA/FORNECEDOR, SEM FRETE | I124: SINAPI | J124: =IF(I124="SINAPI",VLOOKUP(A124,SINAPI,3,0),IF(I124="SETOP",VLOOKUP(A124,SETOP,4,0),IF(I124="CPU",VLOOKUP(A124,COMPOSIÇÃO,10,0),VLOOKUP(A124,COTAÇÃO,12,0)))) -> M3 | K124: 0.88 | L124: =IF(I124="SINAPI",VLOOKUP(A124,SINAPI,4,0),IF(I124="SETOP",VLOOKUP(A124,SETOP,5,0),IF(I124="CPU",VLOOKUP(A124,COMPOSIÇÃO,13,0),VLOOKUP(A124,COTAÇÃO,15,0)))) -> 80.72 | M124: =K124*L124 -> 71.0336
A125: 5684 | B125: ROLO COMPACTADOR VIBRATÓRIO DE UM CILINDRO AÇO LISO, POTÊNCIA 80 HP, PESO OPERACIONAL MÁXIMO 8,1 T, IMPACTO DINÂMICO 16,15 / 9,5 T, LARGURA DE TRABALHO 1,68 M - CHP DIURNO. AF_06/2014 | I125: SINAPI | J125: CHP | K125: 0.013314 | L125: 107.46 | M125: =K125*L125 -> 1.43072244
A126: 5932 | B126: MOTONIVELADORA POTÊNCIA BÁSICA LÍQUIDA (PRIMEIRA MARCHA) 125 HP, PESO BRUTO 13032 KG, LARGURA DA LÂMINA DE 3,7 M - CHP DIURNO. AF_06/2014 | I126: SINAPI | J126: CHP | K126: 0.002396 | L126: 169.88 | M126: 0.40703248
A127: 5934 | B127: MOTONIVELADORA POTÊNCIA BÁSICA LÍQUIDA (PRIMEIRA MARCHA) 125 HP, PESO BRUTO 13032 KG, LARGURA DA LÂMINA DE 3,7 M - CHI DIURNO. AF_06/2014 | I127: SINAPI | J127: CHI | K127: 0.010917 | L127: 64.34 | M127: 0.70239978
A128: 5944 | B128: PÁ CARREGADEIRA SOBRE RODAS, POTÊNCIA 197 HP, CAPACIDADE DA CAÇAMBA 2,5 A 3,5 M3, PESO OPERACIONAL 18338 KG - CHP DIURNO. AF_06/2014 | I128: SINAPI | J128: CHP | K128: 0.008787 | L128: 166.35 | M128: 1.46171745
A129: 5946 | B129: PÁ CARREGADEIRA SOBRE RODAS, POTÊNCIA 197 HP, CAPACIDADE DA CAÇAMBA 2,5 A 3,5 M3, PESO OPERACIONAL 18338 KG - CHI DIURNO. AF_06/2014 | I129: SINAPI | J129: CHI | K129: 0.004527 | L129: 69.55 | M129: 0.31485285
A130: 6879 | B130: ROLO COMPACTADOR DE PNEUS ESTÁTICO, PRESSÃO VARIÁVEL, POTÊNCIA 111 HP, PESO SEM/COM LASTRO 9,5 / 26 T, LARGURA DE TRABALHO 1,90 M - CHP DIURNO. AF_07/2014 | I130: SINAPI | J130: CHP | K130: 0.003195 | L130: 138.42 | M130: 0.4422519
A131: 6880 | B131: ROLO COMPACTADOR DE PNEUS ESTÁTICO, PRESSÃO VARIÁVEL, POTÊNCIA 111 HP, PESO SEM/COM LASTRO 9,5 / 26 T, LARGURA DE TRABALHO 1,90 M - CHI DIURNO. AF_07/2014 | I131: SINAPI | J131: CHI | K131: 0.010118 | L131: 55.01 | M131: 0.55659118
A132: 73417 | B132: GRUPO GERADOR ESTACIONÁRIO, MOTOR DIESEL POTÊNCIA 170 KVA - CHP DIURNO. AF_02/2016 | I132: SINAPI | J132: CHP | K132: 0.01105 | L132: 133.14 | M132: 1.471197
A133: 88316 | B133: SERVENTE COM ENCARGOS COMPLEMENTARES | I133: SINAPI | J133: H | K133: 0.0532255 | L133: 15.71 | M133: 0.836172605
A134: 95121 | B134: =IF(I134="SINAPI",VLOOKUP(A134,SINAPI,2,0),IF(I134="SETOP",VLOOKUP(A134,SETOP,3,0),IF(I134="CPU",VLOOKUP(A134,COMPOSIÇÃO,2,0),VLOOKUP(A134,COTAÇÃO,3,0)))) -> USINA MISTURADORA DE SOLOS, CAPACIDADE DE 200 A 500 TON/H, POTENCIA 75KW - CHP DIURNO. AF_07/2016 | I134: SINAPI | J134: =IF(I134="SINAPI",VLOOKUP(A134,SINAPI,3,0),IF(I134="SETOP",VLOOKUP(A134,SETOP,4,0),IF(I134="CPU",VLOOKUP(A134,COMPOSIÇÃO,10,0),VLOOKUP(A134,COTAÇÃO,12,0)))) -> CHP | K134: 0.01105 | L134: 239.23 | M134: 2.6434915
A135: 95122 | B135: USINA MISTURADORA DE SOLOS, CAPACIDADE DE 200 A 500 TON/H, POTENCIA 75KW - CHI DIURNO. AF_07/2016 | I135: SINAPI | J135: CHI | K135: 0.002263 | L135: 129.7 | M135: 0.2935111
D142: RESPONSÁVEL TÉCNICO: | G142: =ORC!H377 -> Flávia Cristina Barbosa
G143: =ORC!H378 -> CREA: MG 187.842/D

Sheet COT
A2: ="COTAÇÃO - " &A4 -> COTAÇÃO - AVENIDA SÃO FRANCISCO INTERLIGAÇÃO COM AVENIDA NOROESTE | N2: Revisão: | O2: =ORC!Q8 -> R01
A3: Projeto: | E3: Cliente: | N3: Responsável:
A4: =ORC!B10 -> AVENIDA SÃO FRANCISCO INTERLIGAÇÃO COM AVENIDA NOROESTE
A7: Data: | C7: =ORC!D13 -> 2021-04-29 | N7: =ORC!O13 -> SINAPI | O7: =ORC!P13 -> 2021-03-01
A8: BDI | C8: =ORC!D14 -> 0.2423 | N8: =ORC!O14 -> SETOP | O8: =ORC!P14 -> 2021-01-01
A9: ="PROJETO EXECUTIVO - "&A4 -> PROJETO EXECUTIVO - AVENIDA SÃO FRANCISCO INTERLIGAÇÃO COM AVENIDA NOROESTE
A10: COT-195 | C10: LOCAÇÃO DE GERADOR PARA BOMBA DE ESGOTAMENTO COM POTÊNCIA DE 1C-COM TRANSPORTE ATÉ O LOCAL DA OBRA (QUALQUER MUDANÇA DO GERADOR SERÁ POR CONTA DA EXECUTORA), NÃO INCLUI O COMBUSTIVEL | L10: D | O10: =MEDIAN(O12:O12) -> 120
B11: EMPRESA | C11: CIDADE | D11: LINK | J11: CNPJ | K11: CONTATO | L11: UNIDADE | M11: VALOR | N11: FRETE | O11: TOTAL
B12: A.F.D. SOUZA | J12: 12.079.479/0001-82 | K12: (35) 9 9968-0052 | L12: D | M12: 120 | N12: 0 | O12: =ROUND(M12+N12,2) -> 120
A13: COT-623 | C13: COMBUSTIVEL PARA GERADOR | L13: U | O13: =MEDIAN(O15:O15) -> 5.29
B14: EMPRESA | C14: CIDADE | D14: LINK | J14: CNPJ | K14: CONTATO | L14: L | M14: VALOR | N14: FRETE | O14: TOTAL
B15: Posto Dom Pedro- Urbano 2 | K15: 3425-6000 | L15: L | M15: 5.29 | O15: =ROUND(M15+N15,2) -> 5.29
D21: RESPONSÁVEL TÉCNICO: | G21: =ORC!H377 -> Flávia Cristina Barbosa
G22: =ORC!H378 -> CREA: MG 187.842/D

Sheet SETOP JANEIRO 2020
D1: SETOP JANEIRO DE 2020
B2: CÓDIGO | C2: SETOP | D2: DESCRIÇÃO DO SERVIÇO | E2: UNIDADE | F2: CUSTO UNITÁRIO
B3: RO-40091 | C3: - | D3: VEÍCULO TIPO GOL 1.6, QUATRO PORTAS, OU SIMILAR, COM MOTORISTA | E3: KM | F3: 2.08
B4: RO-40096 | C4: - | D4: VEÍCULO TIPO GOL 1.6, QUATRO PORTAS, OU SIMILAR, SEM MOTORISTA | E4: KM | F4: 1.15
B5: RO-40102 | C5: - | D5: VEÍCULO TIPO KOMBI OU SIMILAR COM MOTORISTA | E5: KM | F5: 2.15
B6: RO-40103 | C6: - | D6: VEÍCULO TIPO KOMBI OU SIMILAR, SEM MOTORISTA | E6: KM | F6: 1.22
B44: 101 - TERRAPLENAGEM
B45: RO-43333 | C45: OBR-VIA-005 | D45: DESMATAMENTO, DESTOCAMENTO E LIMPEZA DE ÁRVORES, ARBUSTOS E VEGETAÇÃO RASTEIRA. (EXECUÇÃO NA ESPESSURA DE ATÉ 30CM, INCLUINDO REMANEJAMENTO PARA FORA DA LINHA DE OFFSETS E ACERTO DO MATERIAL) | E45: M2 | F45: 0.28
B46: RO-40108 | C46: - | D46: CORTE DE ÁRVORE NATIVA COM MOTO-SERRA 0,15M =< Ø < 0,30M - ATÉ 1.000 UNIDADES | E46: U | F46: 25.85
B47: RO-43419 | C47: - | D47: CORTE DE ÁRVORE NATIVA COM MOTO-SERRA 0,15M =< Ø < 0,30M - ACIMA DE 1.000 UNIDADES | E47: U | F47: 19.36
B48: RO-42488 | C48: - | D48: CORTE DE ÁRVORE NATIVA COM MOTO-SERRA Ø >= 0,30M - ATÉ 1.000 UNIDADES | E48: U | F48: 36.91
B49: RO-43420 | C49: - | D49: CORTE DE ÁRVORE NATIVA COM MOTO-SERRA Ø >= 0,30M - ACIMA DE 1.000 UNIDADES | E49: U | F49: 27.65
B50: RO-40114 | C50: - | D50: RASPAGEM E LIMPEZA DE VEGETAÇÃO COM REGULARIZAÇÃO DO TERRENO | E50: M2 | F50: 0.09
B51: RO-40118 | C51: - | D51: REMOÇÃO, TRANSPORTE E ESPALHAMENTO DE SOLO MOLE. DISTÂNCIA MÉDIA DE TRANSPORTE <= 200 M | E51: M3 | F51: 9.21
B52: RO-40120 | C52: - | D52: REMOÇÃO, TRANSPORTE E ESPALHAMENTO DE SOLO MOLE. DISTÂNCIA MÉDIA DE TRANSPORTE DE 201 A 400 M | E52: M3 | F52: 9.76
B53: RO-40121 | C53: - | D53: REMOÇÃO, TRANSPORTE E ESPALHAMENTO DE SOLO MOLE. DISTÂNCIA MÉDIA DE TRANSPORTE DE 401 A 600 M | E53: M3 | F53: 10.31
B54: RO-40122 | C54: - | D54: REMOÇÃO, TRANSPORTE E ESPALHAMENTO DE SOLO MOLE. DISTÂNCIA MÉDIA DE TRANSPORTE DE 601 A 800 M | E54: M3 | F54: 11.1
B55: RO-40123 | C55: - | D55: REMOÇÃO, TRANSPORTE E ESPALHAMENTO DE SOLO MOLE. DISTÂNCIA MÉDIA DE TRANSPORTE DE 801 A 1.000 M | E55: M3 | F55: 11.56
B56: RO-40124 | C56: - | D56: REMOÇÃO, TRANSPORTE E ESPALHAMENTO DE SOLO MOLE. DISTÂNCIA MÉDIA DE TRANSPORTE DE 1.001 A 1.500 M | E56: M3 | F56: 11.89
B57: RO-40125 | C57: - | D57: REMOÇÃO, TRANSPORTE E ESPALHAMENTO DE SOLO MOLE. DISTÂNCIA MÉDIA DE TRANSPORTE DE 1.501 A 2.000 M | E57: M3 | F57: 13.39
B58: RO-40128 | C58: - | D58: REMOÇÃO, TRANSPORTE E ESPALHAMENTO DE SOLO MOLE. DISTÂNCIA MÉDIA DE TRANSPORTE DE 2.001 A 3.000 M | E58: M3 | F58: 15.02
B59: RO-43144 | C59: - | D59: REMOÇÃO, TRANSPORTE E ESPALHAMENTO DE SOLO MOLE. DISTÂNCIA MÉDIA DE TRANSPORTE DE 3.001 A 4.000 M | E59: M3 | F59: 15.87
B60: RO-40129 | C60: - | D60: ESCAVAÇÃO, CARGA, DESCARGA, ESPALHAMENTO E TRANSPORTE DE MATERIAL DE 1ª CATEGORIA, COM MOTOSCRAPER. DISTÂNCIA MÉDIA DE TRANSPORTE <= 200 M | E60: M3 | F60: 4.57
B61: RO-40130 | C61: - | D61: ESCAVAÇÃO, CARGA, DESCARGA, ESPALHAMENTO E TRANSPORTE DE MATERIAL DE 1ª CATEGORIA, COM MOTOSCRAPER. DISTÂNCIA MÉDIA DE TRANSPORTE DE 201 A 400 M | E61: M3 | F61: 5.03
B62: RO-40131 | C62: - | D62: ESCAVAÇÃO, CARGA, DESCARGA, ESPALHAMENTO E TRANSPORTE DE MATERIAL DE 1ª CATEGORIA, COM MOTOSCRAPER. DISTÂNCIA MÉDIA DE TRANSPORTE DE 401 A 600 M | E62: M3 | F62: 5.95
B63: RO-40134 | C63: - | D63: ESCAVAÇÃO, CARGA, DESCARGA, ESPALHAMENTO E TRANSPORTE DE MATERIAL DE 1ª CATEGORIA, COM MOTOSCRAPER. DISTÂNCIA MÉDIA DE TRANSPORTE DE 601 A 800 M | E63: M3 | F63: 6.28
B64: RO-40135 | C64: - | D64: ESCAVAÇÃO, CARGA, DESCARGA, ESPALHAMENTO E TRANSPORTE DE MATERIAL DE 1ª CATEGORIA, COM MOTOSCRAPER. DISTÂNCIA MÉDIA DE TRANSPORTE DE 801 A 1.000 M | E64: M3 | F64: 7.01
B65: RO-40137 | C65: - | D65: ESCAVAÇÃO, CARGA, DESCARGA, ESPALHAMENTO E TRANSPORTE DE MATERIAL DE 2ª CATEGORIA COM MOTOSCRAPER. DISTÂNCIA MÉDIA DE TRANSPORTE DE 0 A 200 M | E65: M3 | F65: 6.18
B66: RO-40138 | C66: - | D66: ESCAVAÇÃO, CARGA, DESCARGA, ESPALHAMENTO E TRANSPORTE DE MATERIAL DE 2ª CATEGORIA COM MOTOSCRAPER. DISTÂNCIA MÉDIA DE TRANSPORTE DE 201 A 400 M | E66: M3 | F66: 7.06
B67: RO-40140 | C67: - | D67: ESCAVAÇÃO, CARGA, DESCARGA, ESPALHAMENTO E TRANSPORTE DE MATERIAL DE 2ª CATEGORIA COM MOTOSCRAPER. DISTÂNCIA MÉDIA DE TRANSPORTE DE 401 A 600 M | E67: M3 | F67: 7.56
B68: RO-40143 | C68: - | D68: ESCAVAÇÃO, CARGA, DESCARGA, ESPALHAMENTO E TRANSPORTE DE MATERIAL DE 2ª CATEGORIA COM MOTOSCRAPER. DISTÂNCIA MÉDIA DE TRANSPORTE DE 601 A 800 M | E68: M3 | F68: 8.39
B69: RO-40144 | C69: - | D69: ESCAVAÇÃO, CARGA, DESCARGA, ESPALHAMENTO E TRANSPORTE DE MATERIAL DE 2ª CATEGORIA COM MOTOSCRAPER. DISTÂNCIA MÉDIA DE TRANSPORTE DE 801 A 1.000 M | E69: M3 | F69: 8.79
B70: RO-40148 | C70: - | D70: ESCAVAÇÃO, CARGA, DESCARGA, ESPALHAMENTO E TRANSPORTE DE MATERIAL DE 1ª CATEGORIA, COM CAMINHÃO. DISTÂNCIA MÉDIA DE TRANSPORTE <= 200 M | E70: M3 | F70: 3.22
B71: RO-40149 | C71: - | D71: ESCAVAÇÃO, CARGA, DESCARGA, ESPALHAMENTO E TRANSPORTE DE MATERIAL DE 1ª CATEGORIA, COM CAMINHÃO. DISTÂNCIA MÉDIA DE TRANSPORTE DE 201 A 400 M | E71: M3 | F71: 3.74
B72: RO-40150 | C72: - | D72: ESCAVAÇÃO, CARGA, DESCARGA, ESPALHAMENTO E TRANSPORTE DE MATERIAL DE 1ª CATEGORIA, COM CAMINHÃO. DISTÂNCIA MÉDIA DE TRANSPORTE DE 401 A 600 M | E72: M3 | F72: 3.99
B73: RO-40151 | C73: - | D73: ESCAVAÇÃO, CARGA, DESCARGA, ESPALHAMENTO E TRANSPORTE DE MATERIAL DE 1ª CATEGORIA, COM CAMINHÃO. DISTÂNCIA MÉDIA DE TRANSPORTE DE 601 A 800 M | E73: M3 | F73: 4.51
B74: RO-40152 | C74: - | D74: ESCAVAÇÃO, CARGA, DESCARGA, ESPALHAMENTO E TRANSPORTE DE MATERIAL DE 1ª CATEGORIA, COM CAMINHÃO. DISTÂNCIA MÉDIA DE TRANSPORTE DE 801 A 1.000 M | E74: M3 | F74: 4.67
B75: RO-40153 | C75: - | D75: ESCAVAÇÃO, CARGA, DESCARGA, ESPALHAMENTO E TRANSPORTE DE MATERIAL DE 1ª CATEGORIA, COM CAMINHÃO. DISTÂNCIA MÉDIA DE TRANSPORTE DE 1.001 A 1.200 M | E75: M3 | F75: 4.86
B76: RO-40154 | C76: - | D76: ESCAVAÇÃO, CARGA, DESCARGA, ESPALHAMENTO E TRANSPORTE DE MATERIAL DE 1ª CATEGORIA, COM CAMINHÃO. DISTÂNCIA MÉDIA DE TRANSPORTE DE 1.201 A 1.400 M | E76: M3 | F76: 5.04
B77: RO-40155 | C77: - | D77: ESCAVAÇÃO, CARGA, DESCARGA, ESPALHAMENTO E TRANSPORTE DE MATERIAL DE 1ª CATEGORIA, COM CAMINHÃO. DISTÂNCIA MÉDIA DE TRANSPORTE DE 1.401 A 1.600 M | E77: M3 | F77: 5.44
B78: RO-40156 | C78: - | D78: ESCAVAÇÃO, CARGA, DESCARGA, ESPALHAMENTO E TRANSPORTE DE MATERIAL DE 1ª CATEGORIA, COM CAMINHÃO. DISTÂNCIA MÉDIA DE TRANSPORTE DE 1.601 A 1.800 M | E78: M3 | F78: 5.59
B79: RO-40157 | C79: - | D79: ESCAVAÇÃO, CARGA, DESCARGA, ESPALHAMENTO E TRANSPORTE DE MATERIAL DE 1ª CATEGORIA, COM CAMINHÃO. DISTÂNCIA MÉDIA DE TRANSPORTE DE 1.801 A 2.000 M | E79: M3 | F79: 5.73
B80: RO-40158 | C80: - | D80: ESCAVAÇÃO, CARGA, DESCARGA, ESPALHAMENTO E TRANSPORTE DE MATERIAL DE 1ª CATEGORIA, COM CAMINHÃO. DISTÂNCIA MÉDIA DE TRANSPORTE DE 2.001 A 2.500 M | E80: M3 | F80: 6
B81: RO-40159 | C81: - | D81: ESCAVAÇÃO, CARGA, DESCARGA, ESPALHAMENTO E TRANSPORTE DE MATERIAL DE 1ª CATEGORIA, COM CAMINHÃO. DISTÂNCIA MÉDIA DE TRANSPORTE DE 2.501 A 3.000 M | E81: M3 | F81: 6.47
B82: RO-40160 | C82: - | D82: ESCAVAÇÃO, CARGA, DESCARGA, ESPALHAMENTO E TRANSPORTE DE MATERIAL DE 1ª CATEGORIA, COM CAMINHÃO. DISTÂNCIA MÉDIA DE TRANSPORTE DE 3.001 A 4.000 M | E82: M3 | F82: 7.19
B83: RO-40162 | C83: - | D83: ESCAVAÇÃO, CARGA, DESCARGA, ESPALHAMENTO E TRANSPORTE DE MATERIAL DE 2ª. CATEGORIA COM CAMINHÃO. DISTÂNCIA MÉDIA DE TRANSPORTE <= 200 M | E83: M3 | F83: 4.09
B84: RO-40163 | C84: - | D84: ESCAVAÇÃO, CARGA, DESCARGA, ESPALHAMENTO E TRANSPORTE DE MATERIAL DE 2ª. CATEGORIA COM CAMINHÃO. DISTÂNCIA MÉDIA DE TRANSPORTE DE 201 A 400 M | E84: M3 | F84: 4.38
B85: RO-40164 | C85: - | D85: ESCAVAÇÃO, CARGA, DESCARGA, ESPALHAMENTO E TRANSPORTE DE MATERIAL DE 2ª. CATEGORIA COM CAMINHÃO. DISTÂNCIA MÉDIA DE TRANSPORTE DE 401 A 600 M | E85: M3 | F85: 4.99
B86: RO-40165 | C86: - | D86: ESCAVAÇÃO, CARGA, DESCARGA, ESPALHAMENTO E TRANSPORTE DE MATERIAL DE 2ª. CATEGORIA COM CAMINHÃO. DISTÂNCIA MÉDIA DE TRANSPORTE DE 601 A 800 M | E86: M3 | F86: 5.28
B87: RO-40166 | C87: - | D87: ESCAVAÇÃO, CARGA, DESCARGA, ESPALHAMENTO E TRANSPORTE DE MATERIAL DE 2ª. CATEGORIA COM CAMINHÃO. DISTÂNCIA MÉDIA DE TRANSPORTE DE 801 A 1.000 M | E87: M3 | F87: 5.45
B88: RO-40167 | C88: - | D88: ESCAVAÇÃO, CARGA, DESCARGA, ESPALHAMENTO E TRANSPORTE DE MATERIAL DE 2ª. CATEGORIA COM CAMINHÃO. DISTÂNCIA MÉDIA DE TRANSPORTE DE 1.001 A 1.200 M | E88: M3 | F88: 5.65
B89: RO-40168 | C89: - | D89: ESCAVAÇÃO, CARGA, DESCARGA, ESPALHAMENTO E TRANSPORTE DE MATERIAL DE 2ª. CATEGORIA COM CAMINHÃO. DISTÂNCIA MÉDIA DE TRANSPORTE DE 1.201 A 1.400 M | E89: M3 | F89: 6.17
B90: RO-40169 | C90: - | D90: ESCAVAÇÃO, CARGA, DESCARGA, ESPALHAMENTO E TRANSPORTE DE MATERIAL DE 2ª. CATEGORIA COM CAMINHÃO. DISTÂNCIA MÉDIA DE TRANSPORTE DE 1.401 A 1.600 M | E90: M3 | F90: 6.34
B91: RO-40170 | C91: - | D91: ESCAVAÇÃO, CARGA, DESCARGA, ESPALHAMENTO E TRANSPORTE DE MATERIAL DE 2ª. CATEGORIA COM CAMINHÃO. DISTÂNCIA MÉDIA DE TRANSPORTE DE 1.601 A 1.800 M | E91: M3 | F91: 6.5
B92: RO-40171 | C92: - | D92: ESCAVAÇÃO, CARGA, DESCARGA, ESPALHAMENTO E TRANSPORTE DE MATERIAL DE 2ª. CATEGORIA COM CAMINHÃO. DISTÂNCIA MÉDIA DE TRANSPORTE DE 1.801 A 2.000 M | E92: M3 | F92: 6.64
B93: RO-40172 | C93: - | D93: ESCAVAÇÃO, CARGA, DESCARGA, ESPALHAMENTO E TRANSPORTE DE MATERIAL DE 2ª. CATEGORIA COM CAMINHÃO. DISTÂNCIA MÉDIA DE TRANSPORTE DE 2.001 A 2.500 M | E93: M3 | F93: 7.26
B94: RO-40173 | C94: - | D94: ESCAVAÇÃO, CARGA, DESCARGA, ESPALHAMENTO E TRANSPORTE DE MATERIAL DE 2ª. CATEGORIA COM CAMINHÃO. DISTÂNCIA MÉDIA DE TRANSPORTE DE 2.501 A 3.000 M | E94: M3 | F94: 7.51
B95: RO-40174 | C95: - | D95: ESCAVAÇÃO, CARGA, DESCARGA, ESPALHAMENTO E TRANSPORTE DE MATERIAL DE 2ª. CATEGORIA COM CAMINHÃO. DISTÂNCIA MÉDIA DE TRANSPORTE DE 3.001 A 4.000 M | E95: M3 | F95: 8.01
B96: RO-40182 | C96: - | D96: ESCAVAÇÃO, CARGA, DESCARGA, ESPALHAMENTO E TRANSPORTE DE MATERIAL DE 3ª CATEGORIA. DISTÂNCIA MÉDIA DE TRANSPORTE <= 200 M | E96: M3 | F96: 25.54
B97: RO-40183 | C97: - | D97: ESCAVAÇÃO, CARGA, DESCARGA, ESPALHAMENTO E TRANSPORTE DE MATERIAL DE 3ª CATEGORIA. DISTÂNCIA MÉDIA DE TRANSPORTE DE 201 A 400 M | E97: M3 | F97: 25.86
B98: RO-40184 | C98: - | D98: ESCAVAÇÃO, CARGA, DESCARGA, ESPALHAMENTO E TRANSPORTE DE MATERIAL DE 3ª CATEGORIA. DISTÂNCIA MÉDIA DE TRANSPORTE DE 401 A 600 M | E98: M3 | F98: 26.16
B99: RO-40185 | C99: - | D99: ESCAVAÇÃO, CARGA, DESCARGA, ESPALHAMENTO E TRANSPORTE DE MATERIAL DE 3ª CATEGORIA. DISTÂNCIA MÉDIA DE TRANSPORTE DE 601 A 800 M | E99: M3 | F99: 26.49
B100: RO-41776 | C100: - | D100: ESCAVAÇÃO, CARGA, DESCARGA, ESPALHAMENTO E TRANSPORTE DE MATERIAL DE 3ª CATEGORIA. DISTÂNCIA MÉDIA DE TRANSPORTE DE 801 A 1.000 M | E100: M3 | F100: 26.68
B101: RO-41777 | C101: - | D101: ESCAVAÇÃO, CARGA, DESCARGA, ESPALHAMENTO E TRANSPORTE DE MATERIAL DE 3ª CATEGORIA. DISTÂNCIA MÉDIA DE TRANSPORTE DE 1.001 A 1.200 M | E101: M3 | F101: 26.9
B102: RO-41778 | C102: - | D102: ESCAVAÇÃO, CARGA, DESCARGA, ESPALHAMENTO E TRANSPORTE DE MATERIAL DE 3ª CATEGORIA. DISTÂNCIA MÉDIA DE TRANSPORTE DE 1.201 A 1.400 M | E102: M3 | F102: 27.72
B103: RO-41834 | C103: - | D103: ESCAVAÇÃO, CARGA, DESCARGA, ESPALHAMENTO E TRANSPORTE DE MATERIAL DE 3ª CATEGORIA. DISTÂNCIA MÉDIA DE TRANSPORTE DE 1.401 A 1.600 M | E103: M3 | F103: 27.91
B104: RO-41835 | C104: - | D104: ESCAVAÇÃO, CARGA, DESCARGA, ESPALHAMENTO E TRANSPORTE DE MATERIAL DE 3ª CATEGORIA. DISTÂNCIA MÉDIA DE TRANSPORTE DE 1.601 A 1.800 M | E104: M3 | F104: 28.08
B105: RO-41836 | C105: - | D105: ESCAVAÇÃO, CARGA, DESCARGA, ESPALHAMENTO E TRANSPORTE DE MATERIAL DE 3ª CATEGORIA. DISTÂNCIA MÉDIA DE TRANSPORTE DE 1.801 A 2.000 M | E105: M3 | F105: 28.24
B106: RO-40186 | C106: - | D106: ESCAVAÇÃO, CARGA, DESCARGA, ESPALHAMENTO E TRANSPORTE DE MATERIAL DE 3ª CATEGORIA. DISTÂNCIA MÉDIA DE TRANSPORTE DE 2.001 A 2.500 M | E106: M3 | F106: 28.57
B107: RO-42329 | C107: - | D107: ESCAVAÇÃO, CARGA, DESCARGA, ESPALHAMENTO E TRANSPORTE DE MATERIAL DE 3ª. CATEGORIA . DISTÂNCIA MÉDIA DE TRANSPORTE DE 2.501 A 3.000 M | E107: M3 | F107: 28.84
B108: RO-42330 | C108: - | D108: ESCAVAÇÃO, CARGA, DESCARGA, ESPALHAMENTO E TRANSPORTE DE MATERIAL DE 3ª. CATEGORIA. DISTÂNCIA MÉDIA DE TRANSPORTE DE 3.001 A 4.000 M | E108: M3 | F108: 30
B109: RO-40192 | C109: OBR-VIA-015 | D109: ESCAVAÇÃO E CARGA COM TRATOR E CARREGADEIRA (MATERIAL DE 1ª CATEGORIA) | E109: M3 | F109: 2.69
B110: RO-40194 | C110: - | D110: ESCAVAÇÃO E TRANSPORTE COM TRATOR DE MATERIAL DE 1ª CATEGORIA.DISTÂNCIA MÉDIA DE TRANSPORTE <= 50 M | E110: M3 | F110: 1.86
B111: RO-40193 | C111: - | D111: ESCAVAÇÃO E TRANSPORTE COM TRATOR DE MATERIAL DE 2ª CATEGORIA.DISTÂNCIA MÉDIA DE TRANSPORTE <=50 M | E111: M3 | F111: 3.82
B112: RO-40198 | C112: OBR-VIA-025 | D112: CARGA, TRANSPORTE E DESCARGA DE MATERIAL DE 1ª CATEGORIA, COM CAMINHÃO. DISTÂNCIA MÉDIA DE TRANSPORTE <= 200 M | E112: M3 | F112: 2.83
B113: RO-40199 | C113: OBR-VIA-030 | D113: CARGA, TRANSPORTE E DESCARGA DE MATERIAL DE 1ª CATEGORIA, COM CAMINHÃO. DISTÂNCIA MÉDIA DE TRANSPORTE DE 201 A 400 M | E113: M3 | F113: 3.27
B114: RO-40200 | C114: OBR-VIA-035 | D114: CARGA ,TRANSPORTE E DESCARGA DE MATERIAL DE 1ª CATEGORIA, COM CAMINHÃO. DISTÂNCIA MÉDIA DE TRANSPORTE 401 A 600 M | E114: M3 | F114: 3.48
B115: RO-40201 | C115: OBR-VIA-040 | D115: CARGA, TRANSPORTE E DESCARGA DE MATERIAL DE 1ª CATEGORIA, COM CAMINHÃO. DISTÂNCIA MÉDIA DE TRANSPORTE DE 601 A 800 M | E115: M3 | F115: 3.72
B116: RO-40202 | C116: OBR-VIA-045 | D116: CARGA, TRANSPORTE E DESCARGA DE MATERIAL DE 1ª CATEGORIA, COM CAMINHÃO. DISTÂNCIA MÉDIA DE TRANSPORTE DE 801 A 1.000 M | E116: M3 | F116: 4.06
B117: RO-43394 | C117: OBR-VIA-050 | D117: CARGA, TRANSPORTE E DESCARGA DE MATERIAL DE 1ª CATEGORIA, COM CAMINHÃO.DISTÂNCIA MÉDIA DE TRANSPORTE 1.001 A 1.200 M | E117: M3 | F117: 4.22
B118: RO-42767 | C118: OBR-VIA-055 | D118: CARGA, TRANSPORTE E DESCARGA DE MATERIAL DE 1ª CATEGORIA, COM CAMINHÃO.DISTÂNCIA MÉDIA DE TRANSPORTE DE 1.201 A 1.400 M | E118: M3 | F118: 4.37
B119: RO-43901 | C119: OBR-VIA-060 | D119: CARGA, TRANSPORTE E DESCARGA DE MATERIAL DE 1ª CATEGORIA, COM CAMINHÃO.DISTÂNCIA MÉDIA DE TRANSPORTE DE 1.401 A 1.600 M | E119: M3 | F119: 4.5
B120: RO-43902 | C120: OBR-VIA-065 | D120: CARGA, TRANSPORTE E DESCARGA DE MATERIAL DE 1ª CATEGORIA, COM CAMINHÃO.DISTÂNCIA MÉDIA DE TRANSPORTE DE 1.601 A 1.800 M | E120: M3 | F120: 4.84
B121: RO-43398 | C121: OBR-VIA-066 | D121: CARGA, TRANSPORTE E DESCARGA DE MATERIAL DE 1ª CATEGORIA, COM CAMINHÃO.DISTÂNCIA MÉDIA DE TRANSPORTE DE 1.801 A 2.000 M | E121: M3 | F121: 4.96
B122: RO-43681 | C122: - | D122: CARGA, TRANSPORTE E DESCARGA DE MATERIAL DE 1ª CATEGORIA, COM CAMINHÃO. DISTÂNCIA MÉDIA DE TRANSPORTE DE 2.001 A 2.500 M | E122: M3 | F122: 5.19
B123: RO-43886 | C123: - | D123: CARGA, TRANSPORTE E DESCARGA DE MATERIAL DE 1ª CATEGORIA, COM CAMINHÃO.DISTÂNCIA MÉDIA DE TRANSPORTE DE 2.501 A 3.000 M | E123: M3 | F123: 5.59
B124: RO-40210 | C124: OBR-VIA-070 | D124: REVESTIMENTO PRIMÁRIO (EXECUÇÃO, INCLUINDO ESCAVAÇÃO, CARGA, DESCARGA, ESPALHAMENTO E COMPACTAÇÃO DO MATERIAL) | E124: M3 | F124: 9.01
B125: RO-40211 | C125: OBR-VIA-075 | D125: ESCAVAÇÃO MANUAL DE VALAS EM SOLO, COM ALTURA DE 0 A 1,50 M | E125: M3 | F125: 49.57
B126: RO-40213 | C126: OBR-VIA-080 | D126: ESCAVAÇÃO MANUAL DE VALAS EM SOLO, COM ALTURA DE 1,50 M A 3,00 M | E126: M3 | F126: 62.6
B127: RO-40216 | C127: - | D127: ESCAVAÇÃO MANUAL EM MATERIAL DE 1ª CATEGORIA COM ESGOTAMENTO DE ÀGUA | E127: M3 | F127: 59.18
B128: RO-40217 | C128: - | D128: ESCAVAÇÃO EM MATERIAL DE 3ª CATEGORIA COM ESGOTAMENTO DE ÀGUA | E128: M3 | F128: 88.84
B129: RO-40215 | C129: - | D129: ESCAVAÇÃO MECÂNICA DE VALAS EM MATERIAL DE 1ª E 2ª CATEGORIA (EXECUÇÃO, INCLUINDO REMOÇÃO PARA FORA DO LEITO ESTRADAL) | E129: M3 | F129: 6.84
B130: RO-40218 | C130: OBR-VIA-085 | D130: ESCAVAÇÃO MECÂNICA DE VALAS EM MATERIAL DE 1ª CATEGORIA (EXECUÇÃO, INCLUINDO REMOÇÃO PARA FORA DO LEITO ESTRADAL) | E130: M3 | F130: 5.95
B131: RO-40219 | C131: OBR-VIA-090 | D131: ESCAVAÇÃO MECÂNICA DE VALAS EM MATERIAL DE 2ª CATEGORIA (EXECUÇÃO, INCLUINDO REMOÇÃO PARA FORA DO LEITO ESTRADAL) | E131: M3 | F131: 7.57
B132: RO-40220 | C132: - | D132: ESCAVAÇÃO MECÂNICA DE VALAS EM ROCHA (EXECUÇÃO, INCLUINDO REMOÇÃO PARA FORA DO LEITO ESTRADAL) | E132: M3 | F132: 80.65
B133: RO-40230 | C133: OBR-VIA-095 | D133: MURO DE ARRIMO EM GABIÃO CAIXA, TELA GALVANIZADA (EXECUÇÃO, INCLUINDO FORNECIMENTO DE TODOS OS MATERIAIS) | E133: M3 | F133: 344.1
B134: RO-40221 | C134: OBR-VIA-100 | D134: MURO DE ARRIMO EM GABIÃO CAIXA, TELA REVESTIDA COM PVC (EXECUÇÃO, INCLUINDO FORNECIMENTO DE TODOS OS MATERIAIS) | E134: M3 | F134: 361.73
B135: RO-40222 | C135: - | D135: DEMOLIÇÃO DE MURO DE ARRIMO EM GABIÃO | E135: M3 | F135: 57.33
B136: RO-40231 | C136: OBR-VIA-105 | D136: GABIÃO TIPO COLCHÃO RENO ESPESSURA = 0,30 M, TELA REVESTIDA COM PVC (EXECUÇÃO, INCLUINDO FORNECIMENTO DE TODOS OS MATERIAIS) | E136: M2 | F136: 138.52
B137: RO-40229 | C137: - | D137: ENROCAMENTO DE PEDRA DE MÃO JOGADA (EXECUÇÃO INCLUINDO O FORNECIMENTO DE TODOS OS MATERIAIS) | E137: M3 | F137: 85.03
B138: RO-40233 | C138: - | D138: MURO DE ARRIMO EM RIP-RAP, COM ENCHIMENTO DE AREIA E CIMENTO. TRAÇO - 1:10 (EXECUÇÃO, INCLUINDO FORNECIMENTO E TRANSPORTE DE TODOS OS MATERIAIS) | E138: M3 | F138: 194.29
B139: RO-40232 | C139: - | D139: MURO DE ARRIMO EM RIP-RAP (VEGETATIVO) | E139: M3 | F139: 168.65
B140: RO-40234 | C140: - | D140: REATERRO E COMPACTAÇÃO MANUAL DE VALA | E140: M3 | F140: 28.4
B141: RO-40238 | C141: - | D141: COMPACTAÇÃO MANUAL DE ATERROS | E141: M3 | F141: 20.03
B142: RO-40239 | C142: - | D142: APILOAMENTO DE FUNDO DE VALAS | E142: M2 | F142: 2.97
B143: RO-40240 | C143: OBR-VIA-120 | D143: PATROLAMENTO (RECONFORMAÇÃO MECÂNICA DA PLATAFORMA) | E143: M2 | F143: 0.04
B144: RO-40242 | C144: - | D144: ESCALONAMENTO DE TALUDES DE ATERRO | E144: M3 | F144: 4.04
B145: RO-40241 | C145: - | D145: COMPACTAÇÃO DE BOTA-FORA A 80% PROCTOR NORMAL | E145: M3 | F145: 2.11
B146: RO-40249 | C146: - | D146: COMPACTAÇÃO DE ATERRO A 95% PROCTOR NORMAL | E146: M3 | F146: 2.6
B147: RO-40251 | C147: - | D147: COMPACTAÇÃO DE ATERRO A 100% PROCTOR NORMAL | E147: M3 | F147: 3.01
B148: RO-40253 | C148: - | D148: COMPACTAÇÃO DE ATERRO A 100% PROCTOR INTERNORMAL (150%PROCTOR NORMAL) | E148: M3 | F148: 3.11
B149: RO-40252 | C149: - | D149: COMPACTAÇÃO DE ATERRO A 100% DO PROCTOR INTERMEDIÁRIO | E149: M3 | F149: 3.2
B150: RO-40254 | C150: - | D150: COMPACTAÇÃO DE ATERRO A 100% PROCTOR NORMAL COM INTERFERÊNCIA DE FILTRO VERTICAL | E150: M3 | F150: 4.35
B151: RO-40255 | C151: - | D151: COMPACTAÇÃO DE ATERRO A 100% PROCTOR NORMAL, COM INTERFERÊNCIA DE SOLO ENVELOPADO | E151: M3 | F151: 3.6
B152: RO-42263 | C152: - | D152: ESPALHAMENTO DE MATERIAL EM BOTA-FORA | E152: M3 | F152: 0.17
B162: 102 - DRENAGEM
B163: RO-40269 | C163: - | D163: BUEIRO SIMPLES TUBULAR DE CONCRETO CLASSE CA-1. BSTC Ø 0,40 M - CORPO (EXECUÇÃO, INCLUINDO FORNECIMENTO E TRANSPORTE DE TODOS OS MATERIAIS E BERÇO, EXCLUSIVE ESCAVAÇÃO E COMPACTAÇÃO) | E163: M | F163: 178.17
B164: RO-40270 | C164: - | D164: BUEIRO SIMPLES TUBULAR DE CONCRETO, CLASSE CA-1. BSTC Ø 0,60 M - CORPO (EXECUÇÃO, INCLUINDO FORNECIMENTO E TRANSPORTE DE TODOS OS MATERIAIS E BERÇO, EXCLUSIVE ESCAVAÇÃO E COMPACTAÇÃO) | E164: M | F164: 284.31
B165: RO-40271 | C165: - | D165: BUEIRO SIMPLES TUBULAR DE CONCRETO, CLASSE CA-1. BSTC Ø 0,80 M - CORPO (EXECUÇÃO, INCLUINDO FORNECIMENTO E TRANSPORTE DE TODOS OS MATERIAIS E BERÇO, EXCLUSIVE ESCAVAÇÃO E COMPACTAÇÃO) | E165: M | F165: 473.62
B166: RO-40272 | C166: - | D166: BUEIRO SIMPLES TUBULAR DE CONCRETO, CLASSE CA-1. BSTC Ø 1,00 M - CORPO (EXECUÇÃO, INCLUINDO FORNECIMENTO E TRANSPORTE DE TODOS OS MATERIAIS E BERÇO, EXCLUSIVE ESCAVAÇÃO E COMPACTAÇÃO) | E166: M | F166: 653.41
B167: RO-40273 | C167: - | D167: BUEIRO SIMPLES TUBULAR DE CONCRETO, CLASSE CA-1. BSTC Ø 1,20 M - CORPO (EXECUÇÃO, INCLUINDO FORNECIMENTO E TRANSPORTE DE TODOS OS MATERIAIS E BERÇO, EXCLUSIVE ESCAVAÇÃO E COMPACTAÇÃO) | E167: M | F167: 888.61
B168: RO-40274 | C168: - | D168: BUEIRO SIMPLES TUBULAR DE CONCRETO, CLASSE CA-1. BSTC Ø 1,50 M - CORPO (EXECUÇÃO, INCLUINDO FORNECIMENTO E TRANSPORTE DE TODOS OS MATERIAIS E BERÇO, EXCLUSIVE ESCAVAÇÃO E COMPACTAÇÃO) | E168: M | F168: 1378.45
B169: RO-40275 | C169: - | D169: BUEIRO SIMPLES TUBULAR DE CONCRETO, CLASSE CA-2. BSTC Ø 0,40 M - CORPO (EXECUÇÃO, INCLUINDO FORNECIMENTO E TRANSPORTE DE TODOS OS MATERIAIS E BERÇO, EXCLUSIVE ESCAVAÇÃO E COMPACTAÇÃO) | E169: M | F169: 189.67
B170: RO-40276 | C170: - | D170: BUEIRO SIMPLES TUBULAR DE CONCRETO, CLASSE CA-2. BSTC Ø 0,60 M - CORPO (EXECUÇÃO, INCLUINDO FORNECIMENTO E TRANSPORTE DE TODOS OS MATERIAIS E BERÇO, EXCLUSIVE ESCAVAÇÃO E COMPACTAÇÃO) | E170: M | F170: 301.56
B171: RO-40277 | C171: - | D171: BUEIRO SIMPLES TUBULAR DE CONCRETO, CLASSE CA-2. BSTC Ø 0,80 M - CORPO (EXECUÇÃO, INCLUINDO FORNECIMENTO E TRANSPORTE DE TODOS OS MATERIAIS E BERÇO, EXCLUSIVE ESCAVAÇÃO E COMPACTAÇÃO) | E171: M | F171: 508.12
B172: RO-40278 | C172: - | D172: BUEIRO SIMPLES TUBULAR DE CONCRETO, CLASSE CA-2. BSTC Ø 1,00 M - CORPO (EXECUÇÃO, INCLUINDO FORNECIMENTO E TRANSPORTE DE TODOS OS MATERIAIS E BERÇO, EXCLUSIVE ESCAVAÇÃO E COMPACTAÇÃO) | E172: M | F172: 693.66
B173: RO-40279 | C173: - | D173: BUEIRO SIMPLES TUBULAR DE CONCRETO, CLASSE CA-2. BSTC Ø 1,20 M - CORPO (EXECUÇÃO, INCLUINDO FORNECIMENTO E TRANSPORTE DE TODOS OS MATERIAIS E BERÇO, EXCLUSIVE ESCAVAÇÃO E COMPACTAÇÃO) | E173: M | F173: 946.11
B174: RO-40280 | C174: - | D174: BUEIRO SIMPLES TUBULAR DE CONCRETO, CLASSE CA-2. BSTC Ø 1,50 M - CORPO (EXECUÇÃO, INCLUINDO FORNECIMENTO E TRANSPORTE DE TODOS OS MATERIAIS E BERÇO, EXCLUSIVE ESCAVAÇÃO E COMPACTAÇÃO) | E174: M | F174: 1498.05
B175: RO-40281 | C175: - | D175: BUEIRO SIMPLES TUBULAR DE CONCRETO, CLASSE CA-3. BSTC Ø 0,60 M - CORPO (EXECUÇÃO, INCLUINDO FORNECIMENTO E TRANSPORTE DE TODOS OS MATERIAIS E BERÇO, EXCLUSIVE ESCAVAÇÃO E COMPACTAÇÃO) | E175: M | F175: 328.01
B176: RO-40282 | C176: - | D176: BUEIRO SIMPLES TUBULAR DE CONCRETO, CLASSE CA-3. BSTC Ø 0,80 M - CORPO (EXECUÇÃO, INCLUINDO FORNECIMENTO E TRANSPORTE DE TODOS OS MATERIAIS E BERÇO, EXCLUSIVE ESCAVAÇÃO E COMPACTAÇÃO) | E176: M | F176: 548.37
B177: RO-40283 | C177: - | D177: BUEIRO SIMPLES TUBULAR DE CONCRETO, CLASSE CA-3. BSTC Ø 1,00 M - CORPO (EXECUÇÃO, INCLUINDO FORNECIMENTO E TRANSPORTE DE TODOS OS MATERIAIS E BERÇO, EXCLUSIVE ESCAVAÇÃO E COMPACTAÇÃO) | E177: M | F177: 756.91
B178: RO-40284 | C178: - | D178: BUEIRO SIMPLES TUBULAR DE CONCRETO, CLASSE CA-3. BSTC Ø 1,20 M - CORPO (EXECUÇÃO, INCLUINDO FORNECIMENTO E TRANSPORTE DE TODOS OS MATERIAIS E BERÇO, EXCLUSIVE ESCAVAÇÃO E COMPACTAÇÃO) | E178: M | F178: 1026.61
B179: RO-40285 | C179: - | D179: BUEIRO SIMPLES TUBULAR DE CONCRETO, CLASSE CA-3. BSTC Ø 1,50 M - CORPO (EXECUÇÃO, INCLUINDO FORNECIMENTO E TRANSPORTE DE TODOS OS MATERIAIS E BERÇO, EXCLUSIVE ESCAVAÇÃO E COMPACTAÇÃO) | E179: M | F179: 1642.95
B180: RO-40286 | C180: - | D180: BUEIRO SIMPLES TUBULAR DE CONCRETO, BSTC Ø 0,40 M - BOCA (EXECUÇÃO, INCLUINDO FORNECIMENTO E TRANSPORTE DE TODOS OS MATERIAIS, EXCLUSIVE ESCAVAÇÃO E COMPACTAÇÃO) | E180: U | F180: 304.16
B181: RO-40287 | C181: - | D181: BUEIRO SIMPLES TUBULAR DE CONCRETO, BSTC Ø 0,60 M - BOCA (EXECUÇÃO, INCLUINDO FORNECIMENTO E TRANSPORTE DE TODOS OS MATERIAIS, EXCLUSIVE ESCAVAÇÃO E COMPACTAÇÃO) | E181: U | F181: 834.34
B182: RO-40288 | C182: - | D182: BUEIRO SIMPLES TUBULAR DE CONCRETO, BSTC Ø 0,80 M - BOCA (EXECUÇÃO, INCLUINDO FORNECIMENTO E TRANSPORTE DE TODOS OS MATERIAIS, EXCLUSIVE ESCAVAÇÃO E COMPACTAÇÃO) | E182: U | F182: 1413.52
B183: RO-41754 | C183: - | D183: BUEIRO SIMPLES TUBULAR DE CONCRETO. BSTC Ø 1,00 M - BOCA (EXECUÇÃO, INCLUINDO FORNECIMENTO E TRANSPORTE DE TODOS OS MATERIAIS, EXCLUSIVE ESCAVAÇÃO E COMPACTAÇÃO) | E183: U | F183: 2206.77
B184: RO-41783 | C184: - | D184: BUEIRO SIMPLES TUBULAR DE CONCRETO. BSTC Ø 1,20 M - BOCA (EXECUÇÃO, INCLUINDO FORNECIMENTO E TRANSPORTE DE TODOS OS MATERIAIS, EXCLUSIVE ESCAVAÇÃO E COMPACTAÇÃO) | E184: U | F184: 3225.77
B185: RO-42197 | C185: - | D185: BUEIRO SIMPLES TUBULAR DE CONCRETO. BSTC Ø 1,50 M - BOCA (EXECUÇÃO, INCLUINDO FORNECIMENTO E TRANSPORTE DE TODOS OS MATERIAIS, EXCLUSIVE ESCAVAÇÃO E COMPACTAÇÃO) | E185: U | F185: 5926.54
B186: RO-40292 | C186: - | D186: BUEIRO DUPLO TUBULAR DE CONCRETO, CLASSE CA-1. BDTC Ø 0,60 M - CORPO (EXECUÇÃO, INCLUINDO FORNECIMENTO E TRANSPORTE DE TODOS OS MATERIAIS E BERÇO, EXCLUSIVE ESCAVAÇÃO E COMPACTAÇÃO) | E186: M | F186: 535.1
B187: RO-40293 | C187: - | D187: BUEIRO DUPLO TUBULAR DE CONCRETO, CLASSE CA-1. BDTC Ø 0,80 M - CORPO (EXECUÇÃO, INCLUINDO FORNECIMENTO E TRANSPORTE DE TODOS OS MATERIAIS E BERÇO, EXCLUSIVE ESCAVAÇÃO E COMPACTAÇÃO) | E187: M | F187: 903.54
B188: RO-40294 | C188: - | D188: BUEIRO DUPLO TUBULAR DE CONCRETO, CLASSE CA-1. BDTC Ø 1,00 M - CORPO (EXECUÇÃO, INCLUINDO FORNECIMENTO E TRANSPORTE DE TODOS OS MATERIAIS E BERÇO, EXCLUSIVE ESCAVAÇÃO E COMPACTAÇÃO) | E188: M | F188: 1250.94
B189: RO-40295 | C189: - | D189: BUEIRO DUPLO TUBULAR DE CONCRETO, CLASSE CA-1. BDTC Ø 1,20 M - CORPO (EXECUÇÃO, INCLUINDO FORNECIMENTO E TRANSPORTE DE TODOS OS MATERIAIS E BERÇO, EXCLUSIVE ESCAVAÇÃO E COMPACTAÇÃO) | E189: M | F189: 1710.15
B190: RO-40296 | C190: - | D190: BUEIRO DUPLO TUBULAR DE CONCRETO, CLASSE CA-1. BDTC Ø 1,50 M - CORPO (EXECUÇÃO, INCLUINDO FORNECIMENTO E TRANSPORTE DE TODOS OS MATERIAIS E BERÇO, EXCLUSIVE ESCAVAÇÃO E COMPACTAÇÃO) | E190: M | F190: 2672.55
B191: RO-40297 | C191: - | D191: BUEIRO DUPLO TUBULAR DE CONCRETO, CLASSE CA-2. BDTC Ø 0,60 M - CORPO (EXECUÇÃO, INCLUINDO FORNECIMENTO E TRANSPORTE DE TODOS OS MATERIAIS E BERÇO, EXCLUSIVE ESCAVAÇÃO E COMPACTAÇÃO) | E191: M | F191: 569.6
B192: RO-40298 | C192: - | D192: BUEIRO DUPLO TUBULAR DE CONCRETO, CLASSE CA-2. BDTC Ø 0,80 M - CORPO (EXECUÇÃO, INCLUINDO FORNECIMENTO E TRANSPORTE DE TODOS OS MATERIAIS E BERÇO, EXCLUSIVE ESCAVAÇÃO E COMPACTAÇÃO) | E192: M | F192: 972.54
B193: RO-40299 | C193: - | D193: BUEIRO DUPLO TUBULAR DE CONCRETO, CLASSE CA-2. BDTC Ø 1,00 M - CORPO (EXECUÇÃO, INCLUINDO FORNECIMENTO E TRANSPORTE DE TODOS OS MATERIAIS E BERÇO, EXCLUSIVE ESCAVAÇÃO E COMPACTAÇÃO) | E193: M | F193: 1331.44
B194: RO-40300 | C194: - | D194: BUEIRO DUPLO TUBULAR DE CONCRETO, CLASSE CA-2. BDTC Ø 1,20 M - CORPO (EXECUÇÃO, INCLUINDO FORNECIMENTO E TRANSPORTE DE TODOS OS MATERIAIS E BERÇO, EXCLUSIVE ESCAVAÇÃO E COMPACTAÇÃO) | E194: M | F194: 1825.15
B195: RO-40301 | C195: - | D195: BUEIRO DUPLO TUBULAR DE CONCRETO, CLASSE CA-2. BDTC Ø 1,50 M - CORPO (EXECUÇÃO, INCLUINDO FORNECIMENTO E TRANSPORTE DE TODOS OS MATERIAIS E BERÇO, EXCLUSIVE ESCAVAÇÃO E COMPACTAÇÃO) | E195: M | F195: 2911.75
B196: RO-40302 | C196: - | D196: BUEIRO DUPLO TUBULAR DE CONCRETO, CLASSE CA-3. BDTC Ø 0,60 M - CORPO (EXECUÇÃO, INCLUINDO FORNECIMENTO E TRANSPORTE DE TODOS OS MATERIAIS E BERÇO, EXCLUSIVE ESCAVAÇÃO E COMPACTAÇÃO) | E196: M | F196: 622.5
B197: RO-40303 | C197: - | D197: BUEIRO DUPLO TUBULAR DE CONCRETO, CLASSE CA-3. BDTC Ø 0,80 M - CORPO (EXECUÇÃO, INCLUINDO FORNECIMENTO E TRANSPORTE DE TODOS OS MATERIAIS E BERÇO, EXCLUSIVE ESCAVAÇÃO E COMPACTAÇÃO) | E197: M | F197: 1053.04
B198: RO-40304 | C198: - | D198: BUEIRO DUPLO TUBULAR DE CONCRETO, CLASSE CA-3. BDTC Ø 1,00 M - CORPO (EXECUÇÃO, INCLUINDO FORNECIMENTO E TRANSPORTE DE TODOS OS MATERIAIS E BERÇO, EXCLUSIVE ESCAVAÇÃO E COMPACTAÇÃO) | E198: M | F198: 1457.94
B199: RO-40305 | C199: - | D199: BUEIRO DUPLO TUBULAR DE CONCRETO, CLASSE CA-3. BDTC Ø 1,20 M - CORPO (EXECUÇÃO, INCLUINDO FORNECIMENTO E TRANSPORTE DE TODOS OS MATERIAIS E BERÇO, EXCLUSIVE ESCAVAÇÃO E COMPACTAÇÃO) | E199: M | F199: 1986.15
B200: RO-40306 | C200: - | D200: BUEIRO DUPLO TUBULAR DE CONCRETO, CLASSE CA-3. BDTC Ø 1,50 M - CORPO (EXECUÇÃO, INCLUINDO FORNECIMENTO E TRANSPORTE DE TODOS OS MATERIAIS E BERÇO, EXCLUSIVE ESCAVAÇÃO E COMPACTAÇÃO) | E200: M | F200: 3201.55
B201: RO-40307 | C201: - | D201: BUEIRO DUPLO TUBULAR DE CONCRETO, BDTC Ø 0,60 M - BOCA (EXECUÇÃO, INCLUINDO FORNECIMENTO E TRANSPORTE DE TODOS OS MATERIAIS, EXCLUSIVE ESCAVAÇÃO E COMPACTAÇÃO) | E201: U | F201: 1247.57
B202: RO-40308 | C202: - | D202: BUEIRO DUPLO TUBULAR DE CONCRETO, BDTC Ø 0,80 M - BOCA (EXECUÇÃO, INCLUINDO FORNECIMENTO E TRANSPORTE DE TODOS OS MATERIAIS, EXCLUSIVE ESCAVAÇÃO E COMPACTAÇÃO) | E202: U | F202: 2042.67
B203: RO-40309 | C203: - | D203: BUEIRO DUPLO TUBULAR DE CONCRETO, BDTC Ø 1,00 M - BOCA (EXECUÇÃO, INCLUINDO FORNECIMENTO E TRANSPORTE DE TODOS OS MATERIAIS, EXCLUSIVE ESCAVAÇÃO E COMPACTAÇÃO) | E203: U | F203: 3089.52
B204: RO-40310 | C204: - | D204: BUEIRO DUPLO TUBULAR DE CONCRETO, BDTC Ø 1,20 M - BOCA (EXECUÇÃO, INCLUINDO FORNECIMENTO E TRANSPORTE DE TODOS OS MATERIAIS, EXCLUSIVE ESCAVAÇÃO E COMPACTAÇÃO) | E204: U | F204: 4528.52
B205: RO-40311 | C205: - | D205: BUEIRO DUPLO TUBULAR DE CONCRETO, BDTC Ø 1,50 M - BOCA (EXECUÇÃO, INCLUINDO FORNECIMENTO E TRANSPORTE DE TODOS OS MATERIAIS, EXCLUSIVE ESCAVAÇÃO E COMPACTAÇÃO) | E205: U | F205: 8125.14
B206: RO-40316 | C206: - | D206: BUEIRO TRIPLO TUBULAR DE CONCRETO, CLASSE CA-1. BTTC Ø 0,60 M - CORPO (EXECUÇÃO, INCLUINDO FORNECIMENTO E TRANSPORTE DE TODOS OS MATERIAIS E BERÇO, EXCLUSIVE ESCAVAÇÃO E COMPACTAÇÃO) | E206: M | F206: 785.74
B207: RO-40317 | C207: - | D207: BUEIRO TRIPLO TUBULAR DE CONCRETO, CLASSE CA-1. BTTC Ø 0,80 M - CORPO (EXECUÇÃO, INCLUINDO FORNECIMENTO E TRANSPORTE DE TODOS OS MATERIAIS E BERÇO, EXCLUSIVE ESCAVAÇÃO E COMPACTAÇÃO) | E207: M | F207: 1333.47
B208: RO-40318 | C208: - | D208: BUEIRO TRIPLO TUBULAR DE CONCRETO, CLASSE CA-1. BTTC Ø 1,00 M - CORPO (EXECUÇÃO, INCLUINDO FORNECIMENTO E TRANSPORTE DE TODOS OS MATERIAIS E BERÇO, EXCLUSIVE ESCAVAÇÃO E COMPACTAÇÃO) | E208: M | F208: 1848.68
B209: RO-40319 | C209: - | D209: BUEIRO TRIPLO TUBULAR DE CONCRETO, CLASSE CA-1. BTTC Ø 1,20 M - CORPO (EXECUÇÃO, INCLUINDO FORNECIMENTO E TRANSPORTE DE TODOS OS MATERIAIS E BERÇO, EXCLUSIVE ESCAVAÇÃO E COMPACTAÇÃO) | E209: M | F209: 2531.42
B210: RO-40320 | C210: - | D210: BUEIRO TRIPLO TUBULAR DE CONCRETO, CLASSE CA-1. BTTC Ø 1,50 M - CORPO (EXECUÇÃO, INCLUINDO FORNECIMENTO E TRANSPORTE DE TODOS OS MATERIAIS E BERÇO, EXCLUSIVE ESCAVAÇÃO E COMPACTAÇÃO) | E210: M | F210: 3966.65
B211: RO-40321 | C211: - | D211: BUEIRO TRIPLO TUBULAR DE CONCRETO, CLASSE CA-2. BTTC Ø 0,60 M - CORPO (EXECUÇÃO, INCLUINDO FORNECIMENTO E TRANSPORTE DE TODOS OS MATERIAIS E BERÇO, EXCLUSIVE ESCAVAÇÃO E COMPACTAÇÃO) | E211: M | F211: 837.49
B212: RO-40322 | C212: - | D212: BUEIRO TRIPLO TUBULAR DE CONCRETO, CLASSE CA-2. BTTC Ø 0,80 M - CORPO (EXECUÇÃO, INCLUINDO FORNECIMENTO E TRANSPORTE DE TODOS OS MATERIAIS E BERÇO, EXCLUSIVE ESCAVAÇÃO E COMPACTAÇÃO) | E212: M | F212: 1436.97
B213: RO-40323 | C213: - | D213: BUEIRO TRIPLO TUBULAR DE CONCRETO, CLASSE CA-2. BTTC Ø 1,00 M - CORPO (EXECUÇÃO, INCLUINDO FORNECIMENTO E TRANSPORTE DE TODOS OS MATERIAIS E BERÇO, EXCLUSIVE ESCAVAÇÃO E COMPACTAÇÃO) | E213: M | F213: 1969.43
B214: RO-40324 | C214: - | D214: BUEIRO TRIPLO TUBULAR DE CONCRETO, CLASSE CA-2. BTTC Ø 1,20 M - CORPO (EXECUÇÃO, INCLUINDO FORNECIMENTO E TRANSPORTE DE TODOS OS MATERIAIS E BERÇO, EXCLUSIVE ESCAVAÇÃO E COMPACTAÇÃO) | E214: M | F214: 2704.17
B215: RO-40325 | C215: - | D215: BUEIRO TRIPLO TUBULAR DE CONCRETO, CLASSE CA-2. BTTC Ø 1,50 M - CORPO (EXECUÇÃO, INCLUINDO FORNECIMENTO E TRANSPORTE DE TODOS OS MATERIAIS E BERÇO, EXCLUSIVE ESCAVAÇÃO E COMPACTAÇÃO) | E215: M | F215: 4325.45
B216: RO-40327 | C216: - | D216: BUEIRO TRIPLO TUBULAR DE CONCRETO, CLASSE CA-3. BTTC Ø 0,80 M - CORPO (EXECUÇÃO, INCLUINDO FORNECIMENTO E TRANSPORTE DE TODOS OS MATERIAIS E BERÇO, EXCLUSIVE ESCAVAÇÃO E COMPACTAÇÃO) | E216: M | F216: 1557.72
B217: RO-40328 | C217: - | D217: BUEIRO TRIPLO TUBULAR DE CONCRETO, CLASSE CA-3. BTTC Ø 1,00 M - CORPO (EXECUÇÃO, INCLUINDO FORNECIMENTO E TRANSPORTE DE TODOS OS MATERIAIS E BERÇO, EXCLUSIVE ESCAVAÇÃO E COMPACTAÇÃO) | E217: M | F217: 2159.18
B218: RO-40329 | C218: - | D218: BUEIRO TRIPLO TUBULAR DE CONCRETO, CLASSE CA-3. BTTC Ø 1,20 M - CORPO (EXECUÇÃO, INCLUINDO FORNECIMENTO E TRANSPORTE DE TODOS OS MATERIAIS E BERÇO, EXCLUSIVE ESCAVAÇÃO E COMPACTAÇÃO) | E218: M | F218: 2945.67
B219: RO-40330 | C219: - | D219: BUEIRO TRIPLO TUBULAR DE CONCRETO, CLASSE CA-3. BTTC Ø 1,50 M - CORPO (EXECUÇÃO, INCLUINDO FORNECIMENTO E TRANSPORTE DE TODOS OS MATERIAIS E BERÇO, EXCLUSIVE ESCAVAÇÃO E COMPACTAÇÃO) | E219: M | F219: 4760.15
B220: RO-40331 | C220: - | D220: BUEIRO TRIPLO TUBULAR DE CONCRETO. BTTC Ø 0,60 M - BOCA (EXECUÇÃO, INCLUINDO FORNECIMENTO E TRANSPORTE DE TODOS OS MATERIAIS, EXCLUSIVE ESCAVAÇÃO E COMPACTAÇÃO) | E220: U | F220: 1626.69
B221: RO-40332 | C221: - | D221: BUEIRO TRIPLO TUBULAR DE CONCRETO. BTTC Ø 0,80 M - BOCA (EXECUÇÃO, INCLUINDO FORNECIMENTO E TRANSPORTE DE TODOS OS MATERIAIS, EXCLUSIVE ESCAVAÇÃO E COMPACTAÇÃO) | E221: U | F221: 2635.97
B222: RO-40333 | C222: - | D222: BUEIRO TRIPLO TUBULAR DE CONCRETO. BTTC Ø 1,00 M - BOCA (EXECUÇÃO, INCLUINDO FORNECIMENTO E TRANSPORTE DE TODOS OS MATERIAIS, EXCLUSIVE ESCAVAÇÃO E COMPACTAÇÃO) | E222: U | F222: 3972.27
B223: RO-40334 | C223: - | D223: BUEIRO TRIPLO TUBULAR DE CONCRETO. BTTC Ø 1,20 M - BOCA (EXECUÇÃO, INCLUINDO FORNECIMENTO E TRANSPORTE DE TODOS OS MATERIAIS, EXCLUSIVE ESCAVAÇÃO E COMPACTAÇÃO) | E223: U | F223: 5830.76
B224: RO-40335 | C224: - | D224: BUEIRO TRIPLO TUBULAR DE CONCRETO. BTTC Ø 1,50 M - BOCA (EXECUÇÃO, INCLUINDO FORNECIMENTO E TRANSPORTE DE TODOS OS MATERIAIS, EXCLUSIVE ESCAVAÇÃO E COMPACTAÇÃO) | E224: U | F224: 10360.27
B225: RO-40342 | C225: - | D225: GIGANTE DE SUSTENTAÇÃO PARA BUEIRO SIMPLES TUBULAR DE CONCRETO - BSTC Ø 0,60 M (EXECUÇÃO, INCLUINDO FORNECIMENTO E TRANSPORTE DE TODOS OS MATERIAIS,EXCLUSIVE ESCAVAÇÃO E COMPACTAÇÃO) | E225: U | F225: 444.71
B226: RO-40343 | C226: - | D226: GIGANTE DE SUSTENTAÇÃO PARA BUEIRO SIMPLES TUBULAR DE CONCRETO - BSTC Ø 0,80 M (EXECUÇÃO, INCLUINDO FORNECIMENTO E TRANSPORTE DE TODOS OS MATERIAIS,EXCLUSIVE ESCAVAÇÃO E COMPACTAÇÃO) | E226: U | F226: 477.58
B227: RO-40344 | C227: - | D227: GIGANTE DE SUSTENTAÇÃO PARA BUEIRO SIMPLES TUBULAR DE CONCRETO - BSTC Ø 1,00 M (EXECUÇÃO, INCLUINDO FORNECIMENTO E TRANSPORTE DE TODOS OS MATERIAIS,EXCLUSIVE ESCAVAÇÃO E COMPACTAÇÃO) | E227: U | F227: 576.63
B228: RO-40345 | C228: - | D228: GIGANTE DE SUSTENTAÇÃO PARA BUEIRO DUPLO TUBULAR DE CONCRETO - BDTC Ø 0,80 M (EXECUÇÃO, INCLUINDO FORNECIMENTO E TRANSPORTE DE TODOS OS MATERIAIS,EXCLUSIVE ESCAVAÇÃO E COMPACTAÇÃO) | E228: U | F228: 900.47
B229: RO-40346 | C229: - | D229: GIGANTE DE SUSTENTAÇÃO PARA BUEIRO TRIPLO TUBULAR DE CONCRETO - BTTC Ø 1,00 M (EXECUÇÃO, INCLUINDO FORNECIMENTO E TRANSPORTE DE TODOS OS MATERIAIS,EXCLUSIVE ESCAVAÇÃO E COMPACTAÇÃO) | E229: U | F229: 1235.9
B230: RO-41040 | C230: - | D230: REMOÇÃO DE BUEIRO SIMPLES TUBULAR DE CONCRETO. BSTC Ø 0,40 M - CORPO | E230: M | F230: 31.62
B231: RO-41046 | C231: - | D231: REMOÇÃO DE BUEIRO SIMPLES TUBULAR DE CONCRETO. BSTC Ø 0,40 M - BOCA | E231: U | F231: 88.87
B232: RO-41041 | C232: - | D232: REMOÇÃO DE BUEIRO SIMPLES TUBULAR DE CONCRETO. BSTC Ø 0,60 M - CORPO | E232: M | F232: 62.32
B233: RO-41047 | C233: - | D233: REMOÇÃO DE BUEIRO SIMPLES TUBULAR DE CONCRETO. BSTC Ø 0,60 M - BOCA | E233: U | F233: 185.28
B234: RO-41042 | C234: - | D234: REMOÇÃO DE BUEIRO SIMPLES TUBULAR DE CONCRETO. BSTC Ø 0,80 M - CORPO | E234: M | F234: 98.99
B235: RO-41048 | C235: - | D235: REMOÇÃO DE BUEIRO SIMPLES TUBULAR DE CONCRETO. BSTC Ø 0,80 M - BOCA | E235: U | F235: 307.11
B236: RO-41043 | C236: - | D236: REMOÇÃO DE BUEIRO SIMPLES TUBULAR DE CONCRETO. BSTC Ø 1,00 M - CORPO | E236: M | F236: 142.57
B237: RO-41049 | C237: - | D237: REMOÇÃO DE BUEIRO SIMPLES TUBULAR DE CONCRETO. BSTC Ø 1,00 M - BOCA | E237: U | F237: 473.84
B238: RO-41044 | C238: - | D238: REMOÇÃO DE BUEIRO SIMPLES TUBULAR DE CONCRETO. BSTC Ø 1,20 M - CORPO | E238: M | F238: 190.99
B239: RO-41050 | C239: - | D239: REMOÇÃO DE BUEIRO SIMPLES TUBULAR DE CONCRETO. BSTC Ø 1,20 M - BOCA | E239: U | F239: 700.4
B240: RO-41045 | C240: - | D240: REMOÇÃO DE BUEIRO SIMPLES TUBULAR DE CONCRETO. BSTC Ø 1,50 M - CORPO | E240: M | F240: 264.11
B241: RO-41051 | C241: - | D241: REMOÇÃO DE BUEIRO SIMPLES TUBULAR DE CONCRETO. BSTC Ø 1,50 M - BOCA | E241: U | F241: 1320.12
B242: RO-41052 | C242: - | D242: REMOÇÃO DE BUEIRO DUPLO TUBULAR DE CONCRETO. BDTC Ø 0,60 M - CORPO | E242: M | F242: 111.25
B243: RO-41057 | C243: - | D243: REMOÇÃO DE BUEIRO DUPLO TUBULAR DE CONCRETO. BDTC Ø 0,60 M - BOCA | E243: U | F243: 273.03
B244: RO-41053 | C244: - | D244: REMOÇÃO DE BUEIRO DUPLO TUBULAR DE CONCRETO. BDTC Ø 0,80 M - CORPO | E244: M | F244: 176.93
B245: RO-41058 | C245: - | D245: REMOÇÃO DE BUEIRO DUPLO TUBULAR DE CONCRETO. BDTC Ø 0,80 M - BOCA | E245: U | F245: 439.62
B246: RO-41054 | C246: - | D246: REMOÇÃO DE BUEIRO DUPLO TUBULAR DE CONCRETO. BDTC Ø 1,00 M - CORPO | E246: M | F246: 260.8
... 3722 more rows

Sheet SINAPI MARÇO-2021
B1: SINAPI FEVEREIRO DE 2021
A2: CÓDIGO | B2: DESCRIÇÃO | C2: UNIDADE | D2: PREÇO
A3: 1363 | B3: !EM PROCESSO DE DESATIVACAO! CHAPA DE MADEIRA COMPENSADA DE PINUS, VIROLA OU EQUIVALENTE, DE *2,2 X 1,6* M, E = 6 MM | C3: M2 | D3: 18.35
A4: 1344 | B4: !EM PROCESSO DE DESATIVACAO! CHAPA DE MADEIRA COMPENSADA PLASTIFICADA PARA FORMA DE CONCRETO, DE 2,20 x 1,10 M, E = 6 MM | C4: UN | D4: 43.38
A5: 1342 | B5: !EM PROCESSO DE DESATIVACAO! CHAPA DE MADEIRA COMPENSADA PLASTIFICADA PARA FORMA DE CONCRETO, DE 2,20 X 1,10 m, E = 14 MM | C5: UN | D5: 76.68
A6: 1349 | B6: !EM PROCESSO DE DESATIVACAO! CHAPA DE MADEIRA COMPENSADA PLASTIFICADA PARA FORMA DE CONCRETO, DE 2,20 X 1,10 M, E = 20 MM | C6: UN | D6: 109.36
A7: 1350 | B7: !EM PROCESSO DE DESATIVACAO! CHAPA DE MADEIRA COMPENSADA RESINADA PARA FORMA DE CONCRETO, DE *2,2 X 1,1* M, E = 10 MM | C7: UN | D7: 49.87
A8: 1359 | B8: !EM PROCESSO DE DESATIVACAO! CHAPA DE MADEIRA COMPENSADA RESINADA PARA FORMA DE CONCRETO, DE *2,2 X 1,1* M, E = 20 MM | C8: UN | D8: 98.14
A9: 1351 | B9: !EM PROCESSO DE DESATIVACAO! CHAPA DE MADEIRA COMPENSADA RESINADA PARA FORMA DE CONCRETO, DE *2,2 X 1,1* M, E = 6 MM | C9: UN | D9: 31.62
A10: 2404 | B10: !EM PROCESSO DE DESATIVACAO! DIVISORIA COLMEIA CEGA COM MONTANTE E RODAPE DE ALUMINIO ANODIZADO SIMPLES (SEM COLOCACAO) | C10: M2 | D10: 90.5
A11: 2418 | B11: !EM PROCESSO DE DESATIVACAO! DOBRADICA EM ACO/FERRO, 3" X 2 1/2", E= 1,2 A 1,8 MM, SEM ANEL, CROMADO OU ZINCADO, TAMPA BOLA, COM PARAFUSOS | C11: UN | D11: 5.63
A12: 6086 | B12: !EM PROCESSO DE DESATIVACAO! FUNDO SINTETICO NIVELADOR BRANCO FOSCO PARA MADEIRA | C12: GL | D12: 72.1
A13: 3378 | B13: !EM PROCESSO DE DESATIVACAO! HASTE DE ATERRAMENTO EM ACO COM 3,00 M DE COMPRIMENTO E DN = 3/4", REVESTIDA COM BAIXA CAMADA DE COBRE, SEM CONECTOR | C13: UN | D13: 58.57
A14: 3380 | B14: !EM PROCESSO DE DESATIVACAO! HASTE DE ATERRAMENTO EM ACO COM 3,00 M DE COMPRIMENTO E DN = 5/8", REVESTIDA COM BAIXA CAMADA DE COBRE, COM CONECTOR TIPO GRAMPO | C14: UN | D14: 41
A15: 3379 | B15: !EM PROCESSO DE DESATIVACAO! HASTE DE ATERRAMENTO EM ACO COM 3,00 M DE COMPRIMENTO E DN = 5/8", REVESTIDA COM BAIXA CAMADA DE COBRE, SEM CONECTOR | C15: UN | D15: 39.58
A16: 615 | B16: !EM PROCESSO DE DESATIVACAO! JANELA BASCULANTE, ACO, COM BATENTE/REQUADRO, 60 X 80 CM (SEM VIDROS) | C16: M2 | D16: 387.12
A17: 606 | B17: !EM PROCESSO DE DESATIVACAO! JANELA DE CORRER, ACO, BATENTE/REQUADRO DE 6 A 14 CM, QUADRICULADA, PINTURA ANTICORROSIVA, SEM VIDRO, BANDEIRA COM BASCULA, 4 FLS, 120 X 150 CM (A X L) | C17: M2 | D17: 608.12
A18: 11193 | B18: !EM PROCESSO DE DESATIVACAO! JANELA DE CORRER, ACO, BATENTE/REQUADRO DE 6 A 14 CM, VENEZIANA, PINT ANTICORROSIVA, PINT ACABAMENTO, COM VIDRO, 6 FLS, 120 X 150 CM (A X L) | C18: M2 | D18: 616.58
A19: 11197 | B19: !EM PROCESSO DE DESATIVACAO! JANELA DE CORRER, ACO, COM BATENTE/REQUADRO DE 6 A 14 CM, SEM DIVISAO, PINT ANTICORROSIVA, PINT ACABAMENTO, COM VIDRO, SEM BANDEIRA, 2 FLS, 120 X 150 CM (A X L) | C19: UN | D19: 844.41
A20: 13382 | B20: !EM PROCESSO DE DESATIVACAO! LUMINARIA FECHADA P/ ILUMINACAO PUBLICA, TIPO ABL 50/F OU EQUIV, P/ LAMPADA A VAPOR DE MERCURIO 400W | C20: UN | D20: 276.22
A21: 4047 | B21: !EM PROCESSO DE DESATIVACAO! MASSA CORRIDA PVA PARA PAREDES INTERNAS | C21: GL | D21: 14.59
A22: 7344 | B22: !EM PROCESSO DE DESATIVACAO! TINTA LATEX PVA PREMIUM, COR BRANCA | C22: GL | D22: 59.6
A23: 40514 | B23: !EM PROCESSO DE DESATIVACAO! VERNIZ POLIURETANO BRILHANTE PARA MADEIRA, SEM FILTRO SOLAR, USO INTERNO E EXTERNO | C23: L | D23: 27.7
A24: 11199 | B24: !EM PROCESSO DE DESATIVACAO!JANELA DE CORRER, ACO, BATENTE/REQUADRO DE 6 A 14 CM, COM DIVISAO HORIZ , PINT ANTICORROSIVA, SEM VIDRO, BANDEIRA COM BASCULA, 4 FLS, 120 X 150 CM (A X L) | C24: UN | D24: 872.6
A25: 4053 | B25: !EM PROCESSO DE DESATIVACAO!MASSA A OLEO PARA MADEIRA | C25: GL | D25: 55.58
A26: 4056 | B26: !EM PROCESSO DE DESATIVACAO!MASSA ACRILICA PARA PAREDES INTERIOR/EXTERIOR | C26: GL | D26: 29.22
A27: 21136 | B27: !EM PROCESSO DESATIVACAO! ELETRODUTO EM ACO GALVANIZADO ELETROLITICO, LEVE, DIAMETRO 1", PAREDE DE 0,90 MM | C27: M | D27: 13.14
A28: 21128 | B28: !EM PROCESSO DESATIVACAO! ELETRODUTO EM ACO GALVANIZADO ELETROLITICO, LEVE, DIAMETRO 3/4", PAREDE DE 0,90 MM | C28: M | D28: 10.17
A29: 21130 | B29: !EM PROCESSO DESATIVACAO! ELETRODUTO EM ACO GALVANIZADO ELETROLITICO, SEMI-PESADO, DIAMETRO 1 1/2", PAREDE DE 1,20 MM | C29: M | D29: 25.68
A30: 21135 | B30: !EM PROCESSO DESATIVACAO! ELETRODUTO EM ACO GALVANIZADO ELETROLITICO, SEMI-PESADO, DIAMETRO 1 1/4", PAREDE DE 1,20 MM | C30: M | D30: 25.28
A31: 38605 | B31: ABERTURA PARA ENCAIXE DE CUBA OU LAVATORIO EM BANCADA DE MARMORE/ GRANITO OU OUTRO TIPO DE PEDRA NATURAL | C31: UN | D31: 65.74
A32: 11270 | B32: ABRACADEIRA DE LATAO PARA FIXACAO DE CABO PARA-RAIO, DIMENSOES 32 X 24 X 24 MM | C32: UN | D32: 2.7
A33: 412 | B33: ABRACADEIRA DE NYLON PARA AMARRACAO DE CABOS, COMPRIMENTO DE *230* X *7,6* MM | C33: UN | D33: 0.82
A34: 414 | B34: ABRACADEIRA DE NYLON PARA AMARRACAO DE CABOS, COMPRIMENTO DE 100 X 2,5 MM | C34: UN | D34: 0.05
A35: 410 | B35: ABRACADEIRA DE NYLON PARA AMARRACAO DE CABOS, COMPRIMENTO DE 150 X *3,6* MM | C35: UN | D35: 0.12
A36: 411 | B36: ABRACADEIRA DE NYLON PARA AMARRACAO DE CABOS, COMPRIMENTO DE 200 X *4,6* MM | C36: UN | D36: 0.16
A37: 408 | B37: ABRACADEIRA DE NYLON PARA AMARRACAO DE CABOS, COMPRIMENTO DE 390 X *4,6* MM | C37: UN | D37: 0.79
A38: 39131 | B38: ABRACADEIRA EM ACO PARA AMARRACAO DE ELETRODUTOS, TIPO D, COM 1 1/2" E CUNHA DE FIXACAO | C38: UN | D38: 1.22
A39: 394 | B39: ABRACADEIRA EM ACO PARA AMARRACAO DE ELETRODUTOS, TIPO D, COM 1 1/2" E PARAFUSO DE FIXACAO | C39: UN | D39: 1.24
A40: 39130 | B40: ABRACADEIRA EM ACO PARA AMARRACAO DE ELETRODUTOS, TIPO D, COM 1 1/4" E CUNHA DE FIXACAO | C40: UN | D40: 1.11
A41: 395 | B41: ABRACADEIRA EM ACO PARA AMARRACAO DE ELETRODUTOS, TIPO D, COM 1 1/4" E PARAFUSO DE FIXACAO | C41: UN | D41: 1.19
A42: 39127 | B42: ABRACADEIRA EM ACO PARA AMARRACAO DE ELETRODUTOS, TIPO D, COM 1/2" E CUNHA DE FIXACAO | C42: UN | D42: 0.58
A43: 392 | B43: ABRACADEIRA EM ACO PARA AMARRACAO DE ELETRODUTOS, TIPO D, COM 1/2" E PARAFUSO DE FIXACAO | C43: UN | D43: 0.6
A44: 39129 | B44: ABRACADEIRA EM ACO PARA AMARRACAO DE ELETRODUTOS, TIPO D, COM 1" E CUNHA DE FIXACAO | C44: UN | D44: 0.68
A45: 393 | B45: ABRACADEIRA EM ACO PARA AMARRACAO DE ELETRODUTOS, TIPO D, COM 1" E PARAFUSO DE FIXACAO | C45: UN | D45: 0.72
A46: 39133 | B46: ABRACADEIRA EM ACO PARA AMARRACAO DE ELETRODUTOS, TIPO D, COM 2 1/2" E CUNHA DE FIXACAO | C46: UN | D46: 1.6
A47: 397 | B47: ABRACADEIRA EM ACO PARA AMARRACAO DE ELETRODUTOS, TIPO D, COM 2 1/2" E PARAFUSO DE FIXACAO | C47: UN | D47: 1.77
A48: 39132 | B48: ABRACADEIRA EM ACO PARA AMARRACAO DE ELETRODUTOS, TIPO D, COM 2" E CUNHA DE FIXACAO | C48: UN | D48: 1.28
A49: 396 | B49: ABRACADEIRA EM ACO PARA AMARRACAO DE ELETRODUTOS, TIPO D, COM 2" E PARAFUSO DE FIXACAO | C49: UN | D49: 1.37
A50: 39135 | B50: ABRACADEIRA EM ACO PARA AMARRACAO DE ELETRODUTOS, TIPO D, COM 3 1/2" E CUNHA DE FIXACAO | C50: UN | D50: 2.57
A51: 39128 | B51: ABRACADEIRA EM ACO PARA AMARRACAO DE ELETRODUTOS, TIPO D, COM 3/4" E CUNHA DE FIXACAO | C51: UN | D51: 0.64
A52: 400 | B52: ABRACADEIRA EM ACO PARA AMARRACAO DE ELETRODUTOS, TIPO D, COM 3/4" E PARAFUSO DE FIXACAO | C52: UN | D52: 0.62
A53: 39125 | B53: ABRACADEIRA EM ACO PARA AMARRACAO DE ELETRODUTOS, TIPO D, COM 3/8" E PARAFUSO DE FIXACAO | C53: UN | D53: 0.64
A54: 39134 | B54: ABRACADEIRA EM ACO PARA AMARRACAO DE ELETRODUTOS, TIPO D, COM 3" E CUNHA DE FIXACAO | C54: UN | D54: 2.14
A55: 398 | B55: ABRACADEIRA EM ACO PARA AMARRACAO DE ELETRODUTOS, TIPO D, COM 3" E PARAFUSO DE FIXACAO | C55: UN | D55: 1.97
A56: 39126 | B56: ABRACADEIRA EM ACO PARA AMARRACAO DE ELETRODUTOS, TIPO D, COM 4" E CUNHA DE FIXACAO | C56: UN | D56: 2.89
A57: 399 | B57: ABRACADEIRA EM ACO PARA AMARRACAO DE ELETRODUTOS, TIPO D, COM 4" E PARAFUSO DE FIXACAO | C57: UN | D57: 2.55
A58: 39158 | B58: ABRACADEIRA EM ACO PARA AMARRACAO DE ELETRODUTOS, TIPO ECONOMICA (GOTA), COM 8" | C58: UN | D58: 6.84
A59: 39141 | B59: ABRACADEIRA EM ACO PARA AMARRACAO DE ELETRODUTOS, TIPO U SIMPLES, COM 1 1/2" | C59: UN | D59: 0.49
A60: 39140 | B60: ABRACADEIRA EM ACO PARA AMARRACAO DE ELETRODUTOS, TIPO U SIMPLES, COM 1 1/4" | C60: UN | D60: 0.45
A61: 39137 | B61: ABRACADEIRA EM ACO PARA AMARRACAO DE ELETRODUTOS, TIPO U SIMPLES, COM 1/2" | C61: UN | D61: 0.26
A62: 39139 | B62: ABRACADEIRA EM ACO PARA AMARRACAO DE ELETRODUTOS, TIPO U SIMPLES, COM 1" | C62: UN | D62: 0.37
A63: 39143 | B63: ABRACADEIRA EM ACO PARA AMARRACAO DE ELETRODUTOS, TIPO U SIMPLES, COM 2 1/2" | C63: UN | D63: 1.02
A64: 39142 | B64: ABRACADEIRA EM ACO PARA AMARRACAO DE ELETRODUTOS, TIPO U SIMPLES, COM 2" | C64: UN | D64: 0.73
A65: 39138 | B65: ABRACADEIRA EM ACO PARA AMARRACAO DE ELETRODUTOS, TIPO U SIMPLES, COM 3/4" | C65: UN | D65: 0.27
A66: 39136 | B66: ABRACADEIRA EM ACO PARA AMARRACAO DE ELETRODUTOS, TIPO U SIMPLES, COM 3/8" | C66: UN | D66: 0.18
A67: 39144 | B67: ABRACADEIRA EM ACO PARA AMARRACAO DE ELETRODUTOS, TIPO U SIMPLES, COM 3" | C67: UN | D67: 1.19
A68: 39145 | B68: ABRACADEIRA EM ACO PARA AMARRACAO DE ELETRODUTOS, TIPO U SIMPLES, COM 4" | C68: UN | D68: 1.96
A69: 12615 | B69: ABRACADEIRA PVC, PARA CALHA PLUVIAL, DIAMETRO ENTRE 80 E 100 MM, PARA DRENAGEM PREDIAL | C69: UN | D69: 3.99
A70: 11927 | B70: ABRACADEIRA, GALVANIZADA/ZINCADA, ROSCA SEM FIM, PARAFUSO INOX, LARGURA FITA *12,6 A *14 MM, D = 2" A 2 1/2" | C70: UN | D70: 8.06
A71: 11928 | B71: ABRACADEIRA, GALVANIZADA/ZINCADA, ROSCA SEM FIM, PARAFUSO INOX, LARGURA FITA *12,6 A *14 MM, D = 3" A 3 3/4" | C71: UN | D71: 9.23
A72: 11929 | B72: ABRACADEIRA, GALVANIZADA/ZINCADA, ROSCA SEM FIM, PARAFUSO INOX, LARGURA FITA *12,6 A *14 MM, D = 4" A 4 3/4" | C72: UN | D72: 14.28
A73: 36801 | B73: ACABAMENTO CROMADO PARA REGISTRO PEQUENO, 1/2 " OU 3/4 " | C73: UN | D73: 22.43
A74: 36246 | B74: ACABAMENTO SIMPLES/CONVENCIONAL PARA FORRO PVC, TIPO "U" OU "C", COR BRANCA, COMPRIMENTO 6 M | C74: M | D74: 3.96
A75: 37600 | B75: ACESSORIO DE LIGACAO NAO ELETRICO PARA CARGAS EXPLOSIVAS, TUBO DE 6 M | C75: UN | D75: 62.83
A76: 37599 | B76: ACESSORIO INICIADOR NAO ELETRICO, TUBO DE 6 M, TEMPO DE RETARDO DE *160* MS | C76: UN | D76: 58.48
A77: 1 | B77: ACETILENO (RECARGA PARA CILINDRO DE CONJUNTO OXICORTE GRANDE) | C77: KG | D77: 64.75
A78: 3 | B78: ACIDO MURIATICO, DILUICAO 10% A 12% PARA USO EM LIMPEZA | C78: L | D78: 6.16
A79: 43054 | B79: ACO CA-25, 10,0 MM, OU 12,5 MM, OU 16,0 MM, OU 20,0 MM, OU 25,0 MM, VERGALHAO | C79: KG | D79: 10.47
A80: 42402 | B80: ACO CA-25, 16,0 MM, BARRA DE TRANSFERENCIA | C80: KG | D80: 10
A81: 42403 | B81: ACO CA-25, 20,0 MM, BARRA DE TRANSFERENCIA | C81: KG | D81: 12.83
A82: 42404 | B82: ACO CA-25, 25,0 MM, BARRA DE TRANSFERENCIA | C82: KG | D82: 12.76
A83: 42405 | B83: ACO CA-25, 32,0 MM, BARRA DE TRANSFERENCIA | C83: KG | D83: 13.59
A84: 34341 | B84: ACO CA-25, 32,0 MM, VERGALHAO | C84: KG | D84: 11.8
A85: 43053 | B85: ACO CA-25, 6,3 MM OU 8,0 MM, VERGALHAO | C85: KG | D85: 9.35
A86: 43058 | B86: ACO CA-50, 10,0 MM, OU 12,5 MM, OU 16,0 MM, OU 20,0 MM, DOBRADO E CORTADO | C86: KG | D86: 9.7
A87: 34 | B87: ACO CA-50, 10,0 MM, VERGALHAO | C87: KG | D87: 9.74
A88: 43055 | B88: ACO CA-50, 12,5 MM OU 16,0 MM, VERGALHAO | C88: KG | D88: 8.44
A89: 43056 | B89: ACO CA-50, 20,0 MM OU 25,0 MM, VERGALHAO | C89: KG | D89: 9.73
A90: 43057 | B90: ACO CA-50, 32,0 MM, VERGALHAO | C90: KG | D90: 10.69
A91: 34449 | B91: ACO CA-50, 6,3 MM, DOBRADO E CORTADO | C91: KG | D91: 11.43
A92: 32 | B92: ACO CA-50, 6,3 MM, VERGALHAO | C92: KG | D92: 10.28
A93: 33 | B93: ACO CA-50, 8,0 MM, VERGALHAO | C93: KG | D93: 10.34
A94: 43061 | B94: ACO CA-60, 4,2 MM OU 5,0 MM, DOBRADO E CORTADO | C94: KG | D94: 9.66
A95: 43059 | B95: ACO CA-60, 4,2 MM, OU 5,0 MM, OU 6,0 MM, OU 7,0 MM, VERGALHAO | C95: KG | D95: 9.22
A96: 43062 | B96: ACO CA-60, 6,0 MM OU 7,0 MM, DOBRADO E CORTADO | C96: KG | D96: 10.22
A97: 43060 | B97: ACO CA-60, 8,0 MM OU 9,5 MM, VERGALHAO | C97: KG | D97: 8.03
A98: 20063 | B98: ACOPLAMENTO DE CONDUTOR PLUVIAL, EM PVC, DIAMETRO ENTRE 80 E 100 MM, PARA DRENAGEM PREDIAL | C98: UN | D98: 3.97
A99: 40410 | B99: ACOPLAMENTO RIGIDO EM FERRO FUNDIDO PARA SISTEMA DE TUBULACAO RANHURADA, DN 50 MM (2") | C99: UN | D99: 23.66
A100: 40411 | B100: ACOPLAMENTO RIGIDO EM FERRO FUNDIDO PARA SISTEMA DE TUBULACAO RANHURADA, DN 65 MM (2 1/2") | C100: UN | D100: 25.67
A101: 40412 | B101: ACOPLAMENTO RIGIDO EM FERRO FUNDIDO PARA SISTEMA DE TUBULACAO RANHURADA, DN 80 MM (3") | C101: UN | D101: 28.82
A102: 38838 | B102: ADAPTADOR DE COBRE PARA TUBULACAO PEX, DN 16 X 15 MM | C102: UN | D102: 9.66
A103: 38839 | B103: ADAPTADOR DE COBRE PARA TUBULACAO PEX, DN 20 X 22 MM | C103: UN | D103: 11.37
A104: 55 | B104: ADAPTADOR DE COMPRESSAO EM POLIPROPILENO (PP), PARA TUBO EM PEAD, 20 MM X 1/2", PARA LIGACAO PREDIAL DE AGUA (NTS 179) | C104: UN | D104: 4.2
A105: 61 | B105: ADAPTADOR DE COMPRESSAO EM POLIPROPILENO (PP), PARA TUBO EM PEAD, 20 MM X 3/4", PARA LIGACAO PREDIAL DE AGUA (NTS 179) | C105: UN | D105: 3.97
A106: 62 | B106: ADAPTADOR DE COMPRESSAO EM POLIPROPILENO (PP), PARA TUBO EM PEAD, 32 MM X 1", PARA LIGACAO PREDIAL DE AGUA (NTS 179) | C106: UN | D106: 8.23
A107: 77 | B107: ADAPTADOR PVC PARA SIFAO METALICO, SOLDAVEL, COM ANEL BORRACHA (JE), 40 MM X 1 1/2" | C107: UN | D107: 1.27
A108: 76 | B108: ADAPTADOR PVC PARA SIFAO, ROSCAVEL, 40 MM X 1 1/4" | C108: UN | D108: 1.29
A109: 67 | B109: ADAPTADOR PVC ROSCAVEL, COM FLANGES E ANEL DE VEDACAO, 1/2", PARA CAIXA D' AGUA | C109: UN | D109: 12.48
A110: 71 | B110: ADAPTADOR PVC ROSCAVEL, COM FLANGES E ANEL DE VEDACAO, 1", PARA CAIXA D' AGUA | C110: UN | D110: 22.94
A111: 73 | B111: ADAPTADOR PVC ROSCAVEL, COM FLANGES E ANEL DE VEDACAO, 3/4", PARA CAIXA D' AGUA | C111: UN | D111: 17.13
A112: 103 | B112: ADAPTADOR PVC SOLDAVEL CURTO COM BOLSA E ROSCA, 110 MM X 4", PARA AGUA FRIA | C112: UN | D112: 50.95
A113: 107 | B113: ADAPTADOR PVC SOLDAVEL CURTO COM BOLSA E ROSCA, 20 MM X 1/2", PARA AGUA FRIA | C113: UN | D113: 0.8
A114: 65 | B114: ADAPTADOR PVC SOLDAVEL CURTO COM BOLSA E ROSCA, 25 MM X 3/4", PARA AGUA FRIA | C114: UN | D114: 0.98
A115: 108 | B115: ADAPTADOR PVC SOLDAVEL CURTO COM BOLSA E ROSCA, 32 MM X 1", PARA AGUA FRIA | C115: UN | D115: 2.03
A116: 110 | B116: ADAPTADOR PVC SOLDAVEL CURTO COM BOLSA E ROSCA, 40 MM X 1 1/2", PARA AGUA FRIA | C116: UN | D116: 7.87
A117: 109 | B117: ADAPTADOR PVC SOLDAVEL CURTO COM BOLSA E ROSCA, 40 MM X 1 1/4", PARA AGUA FRIA | C117: UN | D117: 3.88
A118: 111 | B118: ADAPTADOR PVC SOLDAVEL CURTO COM BOLSA E ROSCA, 50 MM X 1 1/4", PARA AGUA FRIA | C118: UN | D118: 9.07
A119: 112 | B119: ADAPTADOR PVC SOLDAVEL CURTO COM BOLSA E ROSCA, 50 MM X1 1/2", PARA AGUA FRIA | C119: UN | D119: 4.93
A120: 113 | B120: ADAPTADOR PVC SOLDAVEL CURTO COM BOLSA E ROSCA, 60 MM X 2", PARA AGUA FRIA | C120: UN | D120: 13.4
A121: 104 | B121: ADAPTADOR PVC SOLDAVEL CURTO COM BOLSA E ROSCA, 75 MM X 2 1/2", PARA AGUA FRIA | C121: UN | D121: 19.49
A122: 102 | B122: ADAPTADOR PVC SOLDAVEL CURTO COM BOLSA E ROSCA, 85 MM X 3", PARA AGUA FRIA | C122: UN | D122: 32
A123: 95 | B123: ADAPTADOR PVC SOLDAVEL, COM FLANGE E ANEL DE VEDACAO, 20 MM X 1/2", PARA CAIXA D'AGUA | C123: UN | D123: 10.83
A124: 96 | B124: ADAPTADOR PVC SOLDAVEL, COM FLANGE E ANEL DE VEDACAO, 25 MM X 3/4", PARA CAIXA D'AGUA | C124: UN | D124: 12.46
A125: 97 | B125: ADAPTADOR PVC SOLDAVEL, COM FLANGE E ANEL DE VEDACAO, 32 MM X 1", PARA CAIXA D'AGUA | C125: UN | D125: 16.18
A126: 98 | B126: ADAPTADOR PVC SOLDAVEL, COM FLANGE E ANEL DE VEDACAO, 40 MM X 1 1/4", PARA CAIXA D'AGUA | C126: UN | D126: 21.8
A127: 99 | B127: ADAPTADOR PVC SOLDAVEL, COM FLANGE E ANEL DE VEDACAO, 50 MM X 1 1/2", PARA CAIXA D'AGUA | C127: UN | D127: 26.44
A128: 100 | B128: ADAPTADOR PVC SOLDAVEL, COM FLANGES E ANEL DE VEDACAO, 60 MM X 2", PARA CAIXA D' AGUA | C128: UN | D128: 36.89
A129: 75 | B129: ADAPTADOR PVC SOLDAVEL, COM FLANGES LIVRES, 110 MM X 4", PARA CAIXA D' AGUA | C129: UN | D129: 384.48
A130: 114 | B130: ADAPTADOR PVC SOLDAVEL, COM FLANGES LIVRES, 25 MM X 3/4", PARA CAIXA D' AGUA | C130: UN | D130: 14.01
A131: 68 | B131: ADAPTADOR PVC SOLDAVEL, COM FLANGES LIVRES, 32 MM X 1", PARA CAIXA D' AGUA | C131: UN | D131: 21.42
A132: 86 | B132: ADAPTADOR PVC SOLDAVEL, COM FLANGES LIVRES, 40 MM X 1 1/4", PARA CAIXA D' AGUA | C132: UN | D132: 39.83
A133: 66 | B133: ADAPTADOR PVC SOLDAVEL, COM FLANGES LIVRES, 50 MM X 1 1/2", PARA CAIXA D' AGUA | C133: UN | D133: 39.97
A134: 69 | B134: ADAPTADOR PVC SOLDAVEL, COM FLANGES LIVRES, 60 MM X 2", PARA CAIXA D' AGUA | C134: UN | D134: 61.09
A135: 83 | B135: ADAPTADOR PVC SOLDAVEL, COM FLANGES LIVRES, 75 MM X 2 1/2", PARA CAIXA D' AGUA | C135: UN | D135: 195.12
A136: 74 | B136: ADAPTADOR PVC SOLDAVEL, COM FLANGES LIVRES, 85 MM X 3", PARA CAIXA D' AGUA | C136: UN | D136: 272.41
A137: 106 | B137: ADAPTADOR PVC SOLDAVEL, LONGO, COM FLANGE LIVRE, 110 MM X 4", PARA CAIXA D' AGUA | C137: UN | D137: 413.84
A138: 87 | B138: ADAPTADOR PVC SOLDAVEL, LONGO, COM FLANGE LIVRE, 25 MM X 3/4", PARA CAIXA D' AGUA | C138: UN | D138: 19.67
A139: 88 | B139: ADAPTADOR PVC SOLDAVEL, LONGO, COM FLANGE LIVRE, 32 MM X 1", PARA CAIXA D' AGUA | C139: UN | D139: 21.95
A140: 89 | B140: ADAPTADOR PVC SOLDAVEL, LONGO, COM FLANGE LIVRE, 40 MM X 1 1/4", PARA CAIXA D' AGUA | C140: UN | D140: 32.46
A141: 90 | B141: ADAPTADOR PVC SOLDAVEL, LONGO, COM FLANGE LIVRE, 50 MM X 1 1/2", PARA CAIXA D' AGUA | C141: UN | D141: 37.19
A142: 81 | B142: ADAPTADOR PVC SOLDAVEL, LONGO, COM FLANGE LIVRE, 60 MM X 2", PARA CAIXA D' AGUA | C142: UN | D142: 63.61
A143: 82 | B143: ADAPTADOR PVC SOLDAVEL, LONGO, COM FLANGE LIVRE, 75 MM X 2 1/2", PARA CAIXA D' AGUA | C143: UN | D143: 246.92
A144: 105 | B144: ADAPTADOR PVC SOLDAVEL, LONGO, COM FLANGE LIVRE, 85 MM X 3", PARA CAIXA D' AGUA | C144: UN | D144: 289.09
A145: 60 | B145: ADAPTADOR PVC, COM REGISTRO, PARA PEAD, 20 MM X 3/4", PARA LIGACAO PREDIAL DE AGUA | C145: UN | D145: 5.45
A146: 72 | B146: ADAPTADOR PVC, ROSCAVEL, COM FLANGES E ANEL DE VEDACAO, 1 1/2", PARA CAIXA D'AGUA | C146: UN | D146: 38.88
A147: 70 | B147: ADAPTADOR PVC, ROSCAVEL, COM FLANGES E ANEL DE VEDACAO, 1 1/4", PARA CAIXA D' AGUA | C147: UN | D147: 32.52
A148: 85 | B148: ADAPTADOR PVC, ROSCAVEL, COM FLANGES E ANEL DE VEDACAO, 2", PARA CAIXA D' AGUA | C148: UN | D148: 47.19
A149: 84 | B149: ADAPTADOR PVC, ROSCAVEL, PARA VALVULA PIA OU LAVATORIO, 40 MM | C149: UN | D149: 0.54
A150: 37997 | B150: ADAPTADOR, CPVC, SOLDAVEL, 15 MM, PARA AGUA QUENTE | C150: UN | D150: 6.16
A151: 37998 | B151: ADAPTADOR, CPVC, SOLDAVEL, 22 MM, PARA AGUA QUENTE | C151: UN | D151: 6.39
A152: 10899 | B152: ADAPTADOR, EM LATAO, ENGATE RAPIDO 2 1/2" X ROSCA INTERNA 5 FIOS 2 1/2", PARA INSTALACAO PREDIAL DE COMBATE A INCENDIO | C152: UN | D152: 55.19
A153: 10900 | B153: ADAPTADOR, EM LATAO, ENGATE RAPIDO1 1/2" X ROSCA INTERNA 5 FIOS 2 1/2", PARA INSTALACAO PREDIAL DE COMBATE A INCENDIO | C153: UN | D153: 43.19
A154: 46 | B154: ADAPTADOR, PVC PBA, BOLSA/ROSCA, JE, DN 75 / DE 85 MM | C154: UN | D154: 46.01
A155: 51 | B155: ADAPTADOR, PVC PBA, A BOLSA DEFOFO, JE, DN 100 / DE 110 MM | C155: UN | D155: 126.93
A156: 12863 | B156: ADAPTADOR, PVC PBA, A BOLSA DEFOFO, JE, DN 50 / DE 60 MM | C156: UN | D156: 29.24
A157: 50 | B157: ADAPTADOR, PVC PBA, A BOLSA DEFOFO, JE, DN 75 / DE 85 MM | C157: UN | D157: 66.28
A158: 47 | B158: ADAPTADOR, PVC PBA, BOLSA/ROSCA, JE, DN 100 / DE 110 MM | C158: UN | D158: 78.67
A159: 48 | B159: ADAPTADOR, PVC PBA, BOLSA/ROSCA, JE, DN 50 / DE 60 MM | C159: UN | D159: 20.52
A160: 52 | B160: ADAPTADOR, PVC PBA, PONTA/ROSCA, JE, DN 50 / DE 60 MM | C160: UN | D160: 15.59
A161: 43 | B161: ADAPTADOR, PVC PBA, PONTA/ROSCA, JE, DN 75 / DE 85 MM | C161: UN | D161: 52.62
A162: 4791 | B162: ADESIVO ACRILICO/COLA DE CONTATO | C162: KG | D162: 24.89
A163: 157 | B163: ADESIVO ESTRUTURAL A BASE DE RESINA EPOXI PARA INJECAO EM TRINCAS, BICOMPONENTE, BAIXA VISCOSIDADE | C163: KG | D163: 75.77
A164: 156 | B164: ADESIVO ESTRUTURAL A BASE DE RESINA EPOXI, BICOMPONENTE, FLUIDO | C164: KG | D164: 26.97
A165: 131 | B165: ADESIVO ESTRUTURAL A BASE DE RESINA EPOXI, BICOMPONENTE, PASTOSO (TIXOTROPICO) | C165: KG | D165: 23.07
A166: 39719 | B166: ADESIVO LIQUIDO A BASE DE RESINAS PARA COLAGEM DE ESPUMA DE ISOLAMENTO TERMICO FLEXIVEL | C166: L | D166: 76.89
A167: 21114 | B167: ADESIVO PARA TUBOS CPVC, *75* G | C167: UN | D167: 16.47
A168: 119 | B168: ADESIVO PLASTICO PARA PVC, BISNAGA COM 75 GR | C168: UN | D168: 6.5
A169: 20080 | B169: ADESIVO PLASTICO PARA PVC, FRASCO COM 175 GR | C169: UN | D169: 18.63
A170: 122 | B170: ADESIVO PLASTICO PARA PVC, FRASCO COM 850 GR | C170: UN | D170: 58.71
A171: 3410 | B171: ADESIVO/COLA PARA EPS (ISOPOR) E OUTROS MATERIAIS | C171: KG | D171: 14.71
A172: 124 | B172: ADITIVO ACELERADOR DE PEGA E ENDURECIMENTO PARA ARGAMASSAS E CONCRETOS, LIQUIDO E ISENTO DE CLORETOS | C172: L | D172: 8.89
A173: 7334 | B173: ADITIVO ADESIVO LIQUIDO PARA ARGAMASSAS DE REVESTIMENTOS CIMENTICIOS | C173: L | D173: 10.35
A174: 123 | B174: ADITIVO IMPERMEABILIZANTE DE PEGA NORMAL PARA ARGAMASSAS E CONCRETOS SEM ARMACAO, LIQUIDO E ISENTO DE CLORETOS | C174: L | D174: 3.64
A175: 127 | B175: ADITIVO IMPERMEABILIZANTE DE PEGA ULTRARRAPIDA, LIQUIDO E ISENTO DE CLORETOS | C175: L | D175: 8.69
A176: 41373 | B176: ADITIVO LIQUIDO IMPERMEABILIZANTE CRISTALIZANTE | C176: L | D176: 12.1
A177: 133 | B177: ADITIVO LIQUIDO INCORPORADOR DE AR PARA CONCRETO E ARGAMASSA, LIQUIDO E ISENTO DE CLORETOS | C177: L | D177: 3.61
A178: 43617 | B178: ADITIVO PLASTIFICANTE E ESTABILIZADOR PARA ARGAMASSAS DE ASSENTAMENTO E REBOCO, LIQUIDO E ISENTO DE CLORETOS | C178: L | D178: 4.03
A179: 132 | B179: ADITIVO PLASTIFICANTE RETARDADOR DE PEGA E REDUTOR DE AGUA PARA CONCRETO, LIQUIDO E ISENTO DE CLORETOS | C179: L | D179: 3.74
A180: 43618 | B180: ADITIVO SUPERPLASTIFICANTE DE PEGA NORMAL PARA CONCRETO, LIQUIDO E ISENTO DE CLORETOS | C180: KG | D180: 9.42
A181: 37476 | B181: ADUELA/ GALERIA PRÃ-MOLDADA DE CONCRETO ARMADO, SEÃÃO RETANGULAR INTERNA DE 1,50 X 1,50 M (L X A), MÃSULA DE 20X20CM, C = 1.00 M, EMÃN = 15 CM, TB-45 E FCK DO CONCRETO = 30 MPA. | C181: UN | D181: 2397.96
A182: 37478 | B182: ADUELA/ GALERIA PRÃ-MOLDADA DE CONCRETO ARMADO, SEÃÃO RETANGULAR INTERNA DE 2,00 X 2,00 M (L X A), MÃSULA DE 20X20CM, C = 1.00 M, EMÃN = 15 CM, TB-45 E FCK DO CONCRETO = 30 MPA. | C182: UN | D182: 3003.5
A183: 37477 | B183: ADUELA/ GALERIA PRÃ-MOLDADA DE CONCRETO ARMADO, SEÃÃO RETANGULAR INTERNA DE 2,50 X 2,50 M (L X A), MÃSULA DE 20X20CM, C = 1.00 M, EMÃN = 15 CM, TB-45 E FCK DO CONCRETO = 30 MPA. | C183: UN | D183: 4069.27
A184: 37479 | B184: ADUELA/ GALERIA PRÃ-MOLDADA DE CONCRETO ARMADO, SEÃÃO RETANGULAR INTERNA DE 3,00 X 3,00 M (L X A), MÃSULA DE 20X20CM, C = 1.00 M, EMÃN = 20 CM, TB-45 E FCK DO CONCRETO = 30 MPA. | C184: UN | D184: 4826.2
A185: 41632 | B185: ADUELA/GALERIA DE CONCRETO ARMADO, SECAO RETANGULAR 2.00 X 1.00 M (L X A), C = 1.00 M, E = 20 CM | C185: UN | D185: 2622.01
A186: 41634 | B186: ADUELA/GALERIA DE CONCRETO ARMADO, SECAO RETANGULAR 2.00 X 1.50 M (L X A), C = 1.00 M, E = 20 CM | C186: UN | D186: 2869.61
A187: 41633 | B187: ADUELA/GALERIA DE CONCRETO ARMADO, SECAO RETANGULAR 2.50 X 1.00 M (L X A), C = 1.00 M, E = 20 CM | C187: UN | D187: 3079.2
A188: 41635 | B188: ADUELA/GALERIA DE CONCRETO ARMADO, SECAO RETANGULAR 2.50 X 1.50 M (L X A), C = 1.00 M, E = 20 CM | C188: UN | D188: 3454.64
A189: 4319 | B189: AFASTADOR PARA TELHA DE FIBROCIMENTO CANALETE 90 OU KALHETAO | C189: UN | D189: 1.63
A190: 42409 | B190: AGENTE DE CURA, PROTETOR DA EVAPORACAO DA AGUA DE HIDRATACAO DO CONCRETO | C190: KG | D190: 5.93
A191: 40553 | B191: AGREGADO RECICLADO, TIPO RACHAO RECICLADO CINZA, CLASSE A | C191: M3 | D191: 35.7
A192: 6114 | B192: AJUDANTE DE ARMADOR | C192: H | D192: 12.46
A193: 40912 | B193: AJUDANTE DE ARMADOR (MENSALISTA) | C193: MES | D193: 2212.73
A194: 247 | B194: AJUDANTE DE ELETRICISTA | C194: H | D194: 12.55
A195: 40919 | B195: AJUDANTE DE ELETRICISTA (MENSALISTA) | C195: MES | D195: 2231.35
A196: 25958 | B196: AJUDANTE DE ESTRUTURAS METALICAS | C196: H | D196: 14.41
A197: 40984 | B197: AJUDANTE DE ESTRUTURAS METALICAS (MENSALISTA) | C197: MES | D197: 2559.15
A198: 248 | B198: AJUDANTE DE OPERACAO EM GERAL | C198: H | D198: 12.89
A199: 41086 | B199: AJUDANTE DE OPERACAO EM GERAL (MENSALISTA) | C199: MES | D199: 2289.65
A200: 34466 | B200: AJUDANTE DE PINTOR | C200: H | D200: 12.89
... 11889 more rows

Sheet DIVERSAS
B1: DIVERSAS
A2: CÓDIGO | B2: DESCRIÇÃO | C2: UNIDADE | D2: PREÇO
A3: 1 | B3: CACA | C3: 5 | D3: 5
